Workbook

Sheet Welcome Spreadsheet
B1: Indoor Recirculating Aquaculture Analysis
D31: Authors: Dr. Kwamena Quagrainie & Ulka Malekar

Sheet Notes
A2: SPECIES DATA
A3: This worksheet contains the species data relating to growth rates of four (4) species; Hybrid Striped Bass, Tilapia, Yellow Perch and Shrimp. It is coded “orange,” meaning you can cautiously change the growth rates for the various species if you know what your actual growth rates are. Otherwise, do not touch this worksheet.
A5: ENTER SYSTEMS PARAMETERS HERE
A6: This worksheet is coded “green” meaning proceed to enter your data relating to the system. Please enter data in yellow cells with blue font to reflect your situation.
A8: Stocking year: | B8: Enter the year you want to begin your operation.
A9: Stocking Month: | B9: Enter the month you want to begin stocking fish.
A10: Type of Fish: | B10: Place cursor on this cell to select your species from a ‘pull down’ menu.
A11: Number of production phases: | B11: Enter the number of production phases (stages). If you have only one phase, enter the number of days under phase 1 and ‘0’ for phases 2 and 3.
A12: Phase 1 number of days (fingerling) | B12: Enter the number of days for phase 1
A13: Phase 2 number of days (growout-1) | B13: Enter the number of days for phase 2 (Enter '0' if you do not use this phase)
A14: Phase 3 number of days (growout-2) | B14: Enter the number of days for phase 3 (Enter '0' if you do not use this phase)
A15: Tank Capacity per phase | B15: Enter the capacity of your tanks in each phase
A16: Total number of Nursery tanks | B16: Enter the number of nursery tanks (Phase 1)
A17: Total number of Growout tanks | B17: Enter the number growout tanks (Phase2 & 3 )
A19: CLICK on the ‘Show Schedule’ Tab to update your schedule. Note, always update your schedule if you change the number of days and/or the number of tanks.
A21: ENTER OPERATIONS PARAMETERS HERE
A22: This worksheet is coded “green” meaning proceed to enter your data relating to your operations. Please enter data in yellow cells with blue font to reflect your situation. There are 6 tables in this worksheet for you to enter your data:
A23: Capital Investment Costs; Operating Parameters per production phase; Operating Costs; Overhead Cost; Loan Information; Gross Receipts
A25: SPECIES DATA
A26: This worksheet contains the cash flows. It is coded “red,” meaning you should not change anything. You can observe how the business cash flows.
A28: Cost Comparison (Operating-Overhead Cost)
A29: This worksheet compares your overhead cost with operating cost. It is coded “red,” meaning you should not change anything.
A31: Income Statement
A32: This worksheet contains the annual income statement showing net returns. It is coded “red,” meaning you should not change anything. You can observe a comparison of net returns with your own capital versus using a loan.

Sheet SpecieData
A1: Shrimp | B1: 0 | C1: 1 | D1: 2 | E1: 10 | F1: 20 | G1: 25
A2: 1 | B2: 2 | C2: 3 | D2: 4 | E2: 5 | F2: 6 | G2: 7 | H2: 8
A3: Other fishes | B3: 10 | C3: 30 | D3: 50 | E3: 80 | F3: 100 | G3: 200
A4: Species | B4: Daily grth rate: 10g | C4: Daily grth rate: 30g | D4: Daily grth rate: 50g | E4: Daily grth rate: 80g | F4: Daily grth rate: 100g | G4: Daily grth rate: 200g | H4: Daily grth rate: >200g
A5: Hybrid Striped Bass | B5: 0.2 | C5: 0.2 | D5: 0.7 | E5: 0.7 | F5: 0.8 | G5: 2.5 | H5: 2.65
A6: Tilapia | B6: 0.2 | C6: 0.4 | D6: 1.59 | E6: 1.79 | F6: 2.69 | G6: 3.69 | H6: 5.9999
A7: Yellow Perch | B7: 0.12 | C7: 0.12 | D7: 0.199 | E7: 0.5 | F7: 1.9 | G7: 2.7 | H7: 3
A8: Shrimp | B8: 0.0142 | C8: 0.0142 | D8: 0.0142 | E8: 0.214285 | F8: 0.214285 | G8: 0.214285 | H8: 0.214285
B10: =IF(Name="Shrimp",0,10) -> 0 | C10: =IF(Name="Shrimp",1,30) -> 1 | D10: =IF(Name="Shrimp",2,50) -> 2 | E10: =IF(Name="Shrimp",10,80) -> 10 | F10: =IF(Name="Shrimp",20,100) -> 20 | G10: =IF(Name="Shrimp",25,200) -> 25
B12: =IF('Enter Operation Parameters Here'!$D$35<SpecieData!B$10,(SpecieData!B$10-'Enter Operation Parameters Here'!$D$35)/VLOOKUP(Name,SpecieData!$A$5:$H$8,SpecieData!B$2,FALSE),"") ->  | C12: =IF(B12="",IF('Enter Operation Parameters Here'!$D$35<SpecieData!C$10,(SpecieData!C$10-'Enter Operation Parameters Here'!$D$35)/VLOOKUP(Name,SpecieData!$A$5:$H$8,SpecieData!C$2,FALSE),""),(SpecieData!C$10-B$10)/VLOOKUP(Name,SpecieData!$A$5:$H$8,SpecieData!C$2,FALSE)) ->  | D12: =IF(C12="",IF('Enter Operation Parameters Here'!$D$35<SpecieData!D$10,(SpecieData!D$10-'Enter Operation Parameters Here'!$D$35)/VLOOKUP(Name,SpecieData!$A$5:$H$8,SpecieData!D$2,FALSE),""),(SpecieData!D$10-C$10)/VLOOKUP(Name,SpecieData!$A$5:$H$8,SpecieData!D$2,FALSE)) -> 70.42253521 | E12: =IF(D12="",IF('Enter Operation Parameters Here'!$D$35<SpecieData!E$10,(SpecieData!E$10-'Enter Operation Parameters Here'!$D$35)/VLOOKUP(Name,SpecieData!$A$5:$H$8,SpecieData!E$2,FALSE),""),(SpecieData!E$10-D$10)/VLOOKUP(Name,SpecieData!$A$5:$H$8,SpecieData!E$2,FALSE)) -> 37.33345778 | F12: =IF(E12="",IF('Enter Operation Parameters Here'!$D$35<SpecieData!F$10,(SpecieData!F$10-'Enter Operation Parameters Here'!$D$35)/VLOOKUP(Name,SpecieData!$A$5:$H$8,SpecieData!F$2,FALSE),""),(SpecieData!F$10-E$10)/VLOOKUP(Name,SpecieData!$A$5:$H$8,SpecieData!F$2,FALSE)) -> 46.66682222 | G12: =IF(F12="",IF('Enter Operation Parameters Here'!$D$35<SpecieData!G$10,(SpecieData!G$10-'Enter Operation Parameters Here'!$D$35)/VLOOKUP(Name,SpecieData!$A$5:$H$8,SpecieData!G$2,FALSE),""),(SpecieData!G$10-F$10)/VLOOKUP(Name,SpecieData!$A$5:$H$8,SpecieData!G$2,FALSE)) -> 23.33341111 | H12: =IF(G12="",IF('Enter Operation Parameters Here'!$D$35<SpecieData!H$10,(SpecieData!H$10-'Enter Operation Parameters Here'!$D$35)/VLOOKUP(Name,SpecieData!$A$5:$H$8,SpecieData!H$2,FALSE),""),(SpecieData!H$10-G$10)/VLOOKUP(Name,SpecieData!$A$5:$H$8,SpecieData!H$2,FALSE)) -> -116.6670556
A13: cumulative days | B13: =SUM($B$12:B12) -> 0 | C13: =SUM($B$12:C12) -> 0 | D13: =SUM($B$12:D12) -> 70.42253521 | E13: =SUM($B$12:E12) -> 107.755993 | F13: =SUM($B$12:F12) -> 154.4228152 | G13: =SUM($B$12:G12) -> 177.7562263 | H13: =SUM($B$12:H12) -> 61.08917077
B14: ='Enter Systems Parameters Here'!B12-B$13 -> 30 | C14: =IF((C$13>'Enter Systems Parameters Here'!B12),"",'Enter Systems Parameters Here'!B12-C$13) -> 30 | D14: =IF((D$13>'Enter Systems Parameters Here'!B12),"",'Enter Systems Parameters Here'!B12-D$13) ->  | E14: =IF((E$13>'Enter Systems Parameters Here'!B12),"",('Enter Systems Parameters Here'!B12-E$13)) ->  | F14: =IF(-(F$13-'Enter Systems Parameters Here'!B12)<0,"",-(F$13-'Enter Systems Parameters Here'!B12)) ->  | G14: =IF(-(G$13-'Enter Systems Parameters Here'!B12)<0,"",-(G$13-'Enter Systems Parameters Here'!B12)) ->  | H14: =IF(-(H$13-'Enter Systems Parameters Here'!B12)<0,"",-(H$13-'Enter Systems Parameters Here'!B12)) -> 
B15: =-(B$13-'Enter Systems Parameters Here'!B12-'Enter Systems Parameters Here'!B13) -> 150 | C15: =IF(-(C$13-'Enter Systems Parameters Here'!B12-'Enter Systems Parameters Here'!B13)<0,"",-(C$13-'Enter Systems Parameters Here'!B12-'Enter Systems Parameters Here'!B13)) -> 150 | D15: =IF(-(D$13-'Enter Systems Parameters Here'!B12-'Enter Systems Parameters Here'!B13)<0,"",-(D$13-'Enter Systems Parameters Here'!B12-'Enter Systems Parameters Here'!B13)) -> 79.57746479 | E15: =IF(-(E$13-'Enter Systems Parameters Here'!B12-'Enter Systems Parameters Here'!B13)<0,"",-(E$13-'Enter Systems Parameters Here'!B12-'Enter Systems Parameters Here'!B13)) -> 42.24400701 | F15: =IF(-(F$13-'Enter Systems Parameters Here'!B12-'Enter Systems Parameters Here'!B13)<0,"",-(F$13-'Enter Systems Parameters Here'!B12-'Enter Systems Parameters Here'!B13)) ->  | G15: =IF(-(G$13-'Enter Systems Parameters Here'!B12-'Enter Systems Parameters Here'!B13)<0,"",-(G$13-'Enter Systems Parameters Here'!B12-'Enter Systems Parameters Here'!B13)) -> 
B16: =-(B$13-'Enter Systems Parameters Here'!B12-'Enter Systems Parameters Here'!B13-'Enter Systems Parameters Here'!B14) -> 150 | C16: =IF(-(C$13-'Enter Systems Parameters Here'!B12-'Enter Systems Parameters Here'!B13-'Enter Systems Parameters Here'!B14)<0,"",-(C$13-'Enter Systems Parameters Here'!B12-'Enter Systems Parameters Here'!B13-'Enter Systems Parameters Here'!B14)) -> 150 | D16: =IF(-(D$13-'Enter Systems Parameters Here'!B12-'Enter Systems Parameters Here'!B13-'Enter Systems Parameters Here'!B14)<0,"",-(D$13-'Enter Systems Parameters Here'!B12-'Enter Systems Parameters Here'!B13-'Enter Systems Parameters Here'!B14)) -> 79.57746479 | E16: =IF(-(E$13-'Enter Systems Parameters Here'!B12-'Enter Systems Parameters Here'!B13-'Enter Systems Parameters Here'!B14)<0,"",-(E$13-'Enter Systems Parameters Here'!B12-'Enter Systems Parameters Here'!B13-'Enter Systems Parameters Here'!B14)) -> 42.24400701 | F16: =IF(-(F$13-'Enter Systems Parameters Here'!B12-'Enter Systems Parameters Here'!B13-'Enter Systems Parameters Here'!B14)<0,"",-(F$13-'Enter Systems Parameters Here'!B12-'Enter Systems Parameters Here'!B13-'Enter Systems Parameters Here'!B14)) ->  | G16: =IF(-(G$13-'Enter Systems Parameters Here'!B12-'Enter Systems Parameters Here'!B13-'Enter Systems Parameters Here'!B14)<0,"",-(G$13-'Enter Systems Parameters Here'!B12-'Enter Systems Parameters Here'!B13-'Enter Systems Parameters Here'!B14)) ->  | I16: days at next rate | J16: weight at end of phase
A17: Phase 1 final weight | B17: =IF(B14=$I17,B$10+B14*VLOOKUP(Name,SpecieData!$A$5:$H$8,SpecieData!B$2+1,FALSE),"") -> 0.426 | C17: =IF(C14=$I17,C$10+C14*VLOOKUP(Name,SpecieData!$A$5:$H$8,SpecieData!C$2+1,FALSE),"") -> 1.426 | D17: =IF(D14=$I17,D$10+D14*VLOOKUP(Name,SpecieData!$A$5:$H$8,SpecieData!D$2+1,FALSE),"") ->  | E17: =IF(E14=$I17,E$10+E14*VLOOKUP(Name,SpecieData!$A$5:$H$8,SpecieData!E$2+1,FALSE),"") ->  | F17: =IF(F14=$I17,F$10+F14*VLOOKUP(Name,SpecieData!$A$5:$H$8,SpecieData!F$2+1,FALSE),"") ->  | G17: =IF(G14=$I17,G$10+G14*VLOOKUP(Name,SpecieData!$A$5:$H$8,SpecieData!G$2+1,FALSE),"") ->  | I17: =MIN(B14:H14) -> 30 | J17: =SUM(B17:H17) -> 1.852
A18: phase 2 final weight | B18: =IF(B15=$I18,B$10+B15*VLOOKUP(Name,SpecieData!$A$5:$H$8,SpecieData!B$2+1,FALSE),"") ->  | C18: =IF(C15=$I18,C$10+C15*VLOOKUP(Name,SpecieData!$A$5:$H$8,SpecieData!C$2+1,FALSE),"") ->  | D18: =IF(D15=$I18,D$10+D15*VLOOKUP(Name,SpecieData!$A$5:$H$8,SpecieData!D$2+1,FALSE),"") ->  | E18: =IF(E15=$I18,E$10+E15*VLOOKUP(Name,SpecieData!$A$5:$H$8,SpecieData!E$2+1,FALSE),"") -> 19.05225704 | F18: =IF(F15=$I18,F$10+F15*VLOOKUP(Name,SpecieData!$A$5:$H$8,SpecieData!F$2+1,FALSE),"") ->  | G18: =IF(G15=$I18,G$10+G15*VLOOKUP(Name,SpecieData!$A$5:$H$8,SpecieData!G$2+1,FALSE),"") ->  | H18: =IF(H15=$I18,H$10+H15*VLOOKUP(Name,SpecieData!$A$5:$H$8,SpecieData!H$2+1,FALSE),"") ->  | I18: =MIN(B15:H15) -> 42.24400701 | J18: =SUM(B18:H18) -> 19.05225704
A19: phase 3 final weight | B19: =IF(B16=$I19,B$10+B16*VLOOKUP(Name,SpecieData!$A$5:$H$8,SpecieData!B$2+1,FALSE),"") ->  | C19: =IF(C16=$I19,C$10+C16*VLOOKUP(Name,SpecieData!$A$5:$H$8,SpecieData!C$2+1,FALSE),"") ->  | D19: =IF(D16=$I19,D$10+D16*VLOOKUP(Name,SpecieData!$A$5:$H$8,SpecieData!D$2+1,FALSE),"") ->  | E19: =IF(E16=$I19,E$10+E16*VLOOKUP(Name,SpecieData!$A$5:$H$8,SpecieData!E$2+1,FALSE),"") -> 19.05225704 | F19: =IF(F16=$I19,F$10+F16*VLOOKUP(Name,SpecieData!$A$5:$H$8,SpecieData!F$2+1,FALSE),"") ->  | G19: =IF(G16=$I19,G$10+G16*VLOOKUP(Name,SpecieData!$A$5:$H$8,SpecieData!G$2+1,FALSE),"") ->  | H19: =IF(H16=$I19,H$10+H16*VLOOKUP(Name,SpecieData!$A$5:$H$8,SpecieData!H$2+1,FALSE),"") ->  | I19: =MIN(B16:H16) -> 42.24400701 | J19: =IF(Name="Shrimp",J18,SUM(B19:H19)) -> 19.05225704
A23: Wt. | B23: 5.08 cm (2 inch) | C23: 10.16 cm (4 inch) | D23: 15.24 cm (6 inch) | E23: 20.32 cm (8 inch)
A24: Hybrid Striped Bass | B24: =(1.99*5.08^3)/10^2 -> 2.608820589 | C24: =(1.99*10.16^3)/10^2 -> 20.87056471 | D24: =(1.99*15.24^3)/10^2 -> 70.4381559 | E24: =(1.99*20.32^3)/10^2 -> 166.9645177
A25: Tilapia | B25: =(2.1*5.08^3)/10^2 -> 2.753026752 | C25: =(2.1*10.16^3)/10^2 -> 22.02421402 | D25: =(2.1*15.24^3)/10^2 -> 74.3317223 | E25: =(2.1*20.32^3)/10^2 -> 176.1937121
A26: Yellow Perch | B26: =(1.36*5.08^3)/10^2 -> 1.782912563 | C26: =(1.36*10.16^3)/10^2 -> 14.26330051 | D26: =(1.36*15.24^3)/10^2 -> 48.13863921 | E26: =(1.36*20.32^3)/10^2 -> 114.106404
A28: g/day
A29: Hybrid Striped Bass | C29: =(C24-B24)/30.5 -> 0.5987457089 | D29: =(D24-C24)/30.5 -> 1.625166924 | E29: =(E24-D24)/30.5 -> 3.164798747
A30: Tilapia | C30: =(C25-B25)/30.5 -> 0.6318422054 | D30: 1.715000272 | E30: 3.339737371
A31: Yellow Perch | C31: 0.4091930473 | D31: 1.110666843 | E31: 2.162877536
B33: Tilapia | E33: Hybrid Striped Bass | H33: Yellow Perch | L33: Shrimp Bio mass
A34: L ength (inch) | B34: Weight (g) | C34: Weight (lb) | D34: Stocking Rate (lbs/gal) | E34: Weight (g) | F34: Weight (lb) | G34: Stocking Rate (lbs/gal) | H34: Weight (g) | I34: Weight (lb) | J34: Stocking Rate (lbs/gal) | K34: phase 1 | L34: 0.085
A35: 2 | B35: 3 | C35: 0.0064 | D35: 0.18 | E35: 3 | F35: 0.00576 | G35: 0.09548610448 | H35: 2 | I35: 0.00392 | J35: 0.106944437 | K35: 2 | L35: 0.15
A36: 4 | B36: 23 | C36: 0.0512 | D36: 0.36 | E36: 21 | F36: 0.04608 | G36: 0.190972209 | H36: 14 | I36: 0.03136 | J36: 0.213888874 | K36: 3 | L36: 0
A37: 6 | B37: 78 | C37: 0.1728 | D37: 0.53 | E37: 71 | F37: 0.15552 | G37: 0.2864583134 | H37: 48 | I37: 0.10584 | J37: 0.3208333111
A38: 8 | B38: 186 | C38: 0.4096 | D38: 0.71 | E38: 167 | F38: 0.36864 | G38: 0.3819444179 | H38: 114 | I38: 0.25088 | J38: 0.4277777481
A39: 10 | B39: 363 | C39: 0.8 | D39: 0.89 | E39: 327 | F39: 0.72 | G39: 0.4774305224 | H39: 222 | I39: 0.49 | J39: 0.5347221851
A40: 12 | B40: 627 | C40: 1.3824 | D40: 1.07 | E40: 564 | F40: 1.24416 | G40: 0.5729166269 | H40: 384 | I40: 0.84672 | J40: 0.6416666221
A41: 14 | B41: 996 | C41: 2.1952 | D41: 1.25 | E41: 896 | F41: 1.97568 | G41: 0.6684027314 | H41: 610 | I41: 1.34456 | J41: 0.7486110591
C43: Wt (lb) | F43: Stocking Rate lbs/ gal
A44: L (inch) | B44: tilapia | C44: HSB | D44: perch | F44: tilapia | G44: HSB | H44: perch
A45: 2 | B45: =(800*(A45)^3)/10^6 -> 0.0064 | C45: =(720*(A45)^3)/10^6 -> 0.00576 | D45: =(490*(A45)^3)/10^6 -> 0.00392 | F45: =(A45/1.5)/7.48052 -> 0.1782407284 | G45: =(A45/2.8)/7.48052 -> 0.09548610448 | H45: =(A45/2.5)/7.48052 -> 0.106944437
A46: 4 | B46: =(800*(A46)^3)/10^6 -> 0.0512 | C46: =(720*(A46)^3)/10^6 -> 0.04608 | D46: =(490*(A46)^3)/10^6 -> 0.03136 | F46: =(A46/1.5)/7.48052 -> 0.3564814567 | G46: =(A46/2.8)/7.48052 -> 0.190972209 | H46: =(A46/2.5)/7.48052 -> 0.213888874
A47: 6 | B47: 0.1728 | C47: 0.15552 | D47: 0.10584 | F47: 0.5347221851 | G47: 0.2864583134 | H47: 0.3208333111
A48: 8 | B48: 0.4096 | C48: 0.36864 | D48: 0.25088 | F48: 0.7129629135 | G48: 0.3819444179 | H48: 0.4277777481
A49: 10 | B49: 0.8 | C49: 0.72 | D49: 0.49 | F49: 0.8912036418 | G49: 0.4774305224 | H49: 0.5347221851
A50: 12 | B50: 1.3824 | C50: 1.24416 | D50: 0.84672 | F50: 1.06944437 | G50: 0.5729166269 | H50: 0.6416666221
A51: 14 | B51: 2.1952 | C51: 1.97568 | D51: 1.34456 | F51: 1.247685099 | G51: 0.6684027314 | H51: 0.7486110591
A52: Calculated from Timmons & Ebeling (2007) - Recirculating Aquaculture p.96 & 119

Sheet Enter Systems Parameters Here
B1: RECIRCULATING AQUACULTURE SYSTEM
B2: The budget presented below is a guide to assist you in projecting costs and returns for your aquaculture enterprise. This spreadsheet is just a tool to be used for planning your aquaculture operation and developing your own budget, specific to your situation.
B3: You should change the cells in yellow with blue font to reflect your situation.
A7: Stocking year | B7: 2012 | C7: Enter the year you want to begin your operation
A8: Stocking Month | B8: January | C8: Enter the month you want to begin stocking fish. | Q8: January | S8: Hybrid Striped Bass
A9: Type of Fish | B9: Shrimp | D9: Place cursor on this cell to select your species from a ‘pull down’ menu. | Q9: February | S9: Tilapia
Q10: March | S10: Yellow Perch
A11: Number of production phases | B11: 2 | C11: Enter the number of production phases (stages). If you have only one phase, enter the number of days under phase 1 and ‘0’ for phases 2 and 3. | Q11: April | S11: Shrimp
A12: Phase 1 number of days (fingerling) | B12: 30 | Q12: May
A13: Phase 2 number of days (growout-1) | B13: 120 | Q13: June
A14: Phase 3 number of days (growout-2) | B14: 0 | Q14: July
Q15: August
Q16: September
B17: PHASE I | C17: PHASE II | D17: PHASE III | Q17: October
A18: Tank Capacity per phase | B18: 600 | C18: 6000 | D18: 0 | E18: Enter the capacity of your tanks in each phase. | Q18: November
A19: Max Allowed Biomass | B19: =IF(Name="Shrimp",SpecieData!L34,IF(Name="Yellow Perch",SpecieData!J35,IF(Name="Tilapia",SpecieData!D35,SpecieData!G35))) -> 0.085 | C19: =IF(Nmae="Shrimp",SpecieData!L35,IF(Nmae="Yellow Perch",SpecieData!J37,IF(Nmae="Tilapia",SpecieData!D38,SpecieData!G38))) -> 0.15 | D19: =IF(Nmae="Shrimp",SpecieData!L36,IF(Nmae="Yellow Perch",SpecieData!J39,IF(Nmae="Tilapia",SpecieData!D40,SpecieData!G40))) -> 0 | E19: =IF('Enter Operation Parameters Here'!F45>'Enter Systems Parameters Here'!R21,"BIOMASS EXCEEEDED:Decrease the Phase1 water volume OR Increase the phase3 water volume",IF('Enter Operation Parameters Here'!E45>'Enter Systems Parameters Here'!Q21,"BIOMASS EXCEEDED: Decrease the Phase1 water volume OR Increase the phase2 water volume","")) ->  | Q19: December
A20: Total number of Nursery tanks | B20: 2
A21: Total number of Growout tanks | B21: 4 | C21: =IF(B21<C24+D24,"Number of tanks should be atleast equal to total number of months in phase 2and phase 3","") ->  | Q21: =ROUNDUP(C19,1) -> 0.2 | R21: =ROUNDUP(D19,1) -> 0
A24: Approx time | B24: =ROUND(B12/30,0) -> 1 | C24: =ROUND(B13/30,0) -> 4 | D24: =ROUND(B14/30,0) -> 0
A25: Maximum Bio mass in each phase | B25: =B18*B19 -> 51 | C25: =C18*C19 -> 900 | D25: =D18*D19 -> 0
A26: Fish Weight at end of each phase | B26: =SpecieData!J17/453.59237 -> 0.004082961096 | C26: =SpecieData!J18/453.59237 -> 0.04200303687 | D26: =SpecieData!J19/453.59237 -> 0.04200303687
A27: Maximum Fishes | B27: =B25/B26 -> 12490.9346 | C27: =C25/C26 -> 21427.02212 | D27: =D25/D26 -> 0
A28: Utilization of tanks | B28: =IF(Name="Shrimp",B25/C25,B25/D25) -> 0.05666666667 | C28: =IF(Name="Shrimp",C25/C25,C25/D25) -> 1 | D28: =IF(Name="Shrimp",0,D25/D25) -> 0
A29: Tanks can be used per stocking | B29: =B20/B24 -> 2 | C29: =B21*C28/(C24*(C28+D28)) -> 1 | D29: =IF(Name="Shrimp",0,B21*D28/(D24*(D28+C28))) -> 0
A30: Start Month | B30: =MONTH(1&B8) -> 1 | G30: CLICK ON THIS TAB TO UPDATE YOUR SCHEDULE
A31: Tanks to be used per cycle | B31: =IF(ROUNDDOWN(B29,0)=0,ROUNDUP(B29,0),ROUNDDOWN(B29,0)) -> 2 | C31: =IF(ROUNDDOWN(C29,0)=0,ROUNDUP(C29,0),ROUNDDOWN(C29,0)) -> 1 | D31: =IF(ROUNDDOWN(D29,0)=0,ROUNDUP(D29,0),ROUNDDOWN(D29,0)) -> 0
A32: Tanks to be used | C32: =C31*B21/(C31+D31) -> 4 | D32: =D31*B21/(C31+D31) -> 0
A36: Year | B36: January | C36: February | D36: March | E36: April | F36: May | G36: June | H36: July | I36: August | J36: September | K36: October | L36: November | M36: December | N36: # of times harvest per year
A38: =B7 -> 2012 | B38: Stock nursery | C38: Stock nursery | D38: Stock nursery | E38: Stock nursery | F38: Stock nursery | G38: Stock nursery | H38: Stock nursery | I38: Stock nursery | J38: Stock nursery | K38: Stock nursery | L38: Stock nursery | M38: Stock nursery
F39: Harvest | G39: Harvest | H39: Harvest | I39: Harvest | J39: Harvest | K39: Harvest | L39: Harvest | M39: Harvest | N39: 8
A41: =A38+1 -> 2013 | B41: Stock nursery | C41: Stock nursery | D41: Stock nursery | E41: Stock nursery | F41: Stock nursery | G41: Stock nursery | H41: Stock nursery | I41: Stock nursery | J41: Stock nursery | K41: Stock nursery | L41: Stock nursery | M41: Stock nursery
B42: Harvest | C42: Harvest | D42: Harvest | E42: Harvest | F42: Harvest | G42: Harvest | H42: Harvest | I42: Harvest | J42: Harvest | K42: Harvest | L42: Harvest | M42: Harvest | N42: 12
A44: =A41+1 -> 2014 | B44: Stock nursery | C44: Stock nursery | D44: Stock nursery | E44: Stock nursery | F44: Stock nursery | G44: Stock nursery | H44: Stock nursery | I44: Stock nursery | J44: Stock nursery | K44: Stock nursery | L44: Stock nursery | M44: Stock nursery
B45: Harvest | C45: Harvest | D45: Harvest | E45: Harvest | F45: Harvest | G45: Harvest | H45: Harvest | I45: Harvest | J45: Harvest | K45: Harvest | L45: Harvest | M45: Harvest | N45: 12
A47: =A44+1 -> 2015 | B47: Stock nursery | C47: Stock nursery | D47: Stock nursery | E47: Stock nursery | F47: Stock nursery | G47: Stock nursery | H47: Stock nursery | I47: Stock nursery | J47: Stock nursery | K47: Stock nursery | L47: Stock nursery | M47: Stock nursery
B48: Harvest | C48: Harvest | D48: Harvest | E48: Harvest | F48: Harvest | G48: Harvest | H48: Harvest | I48: Harvest | J48: Harvest | K48: Harvest | L48: Harvest | M48: Harvest | N48: 12
A50: =A47+1 -> 2016 | B50: Stock nursery | C50: Stock nursery | D50: Stock nursery | E50: Stock nursery | F50: Stock nursery | G50: Stock nursery | H50: Stock nursery | I50: Stock nursery | J50: Stock nursery | K50: Stock nursery | L50: Stock nursery | M50: Stock nursery
B51: Harvest | C51: Harvest | D51: Harvest | E51: Harvest | F51: Harvest | G51: Harvest | H51: Harvest | I51: Harvest | J51: Harvest | K51: Harvest | L51: Harvest | M51: Harvest | N51: 12
A53: =A50+1 -> 2017 | B53: Stock nursery | C53: Stock nursery | D53: Stock nursery | E53: Stock nursery | F53: Stock nursery | G53: Stock nursery | H53: Stock nursery | I53: Stock nursery | J53: Stock nursery | K53: Stock nursery | L53: Stock nursery | M53: Stock nursery
B54: Harvest | C54: Harvest | D54: Harvest | E54: Harvest | F54: Harvest | G54: Harvest | H54: Harvest | I54: Harvest | J54: Harvest | K54: Harvest | L54: Harvest | M54: Harvest | N54: 12
A56: =A53+1 -> 2018 | B56: Stock nursery | C56: Stock nursery | D56: Stock nursery | E56: Stock nursery | F56: Stock nursery | G56: Stock nursery | H56: Stock nursery | I56: Stock nursery | J56: Stock nursery | K56: Stock nursery | L56: Stock nursery | M56: Stock nursery
B57: Harvest | C57: Harvest | D57: Harvest | E57: Harvest | F57: Harvest | G57: Harvest | H57: Harvest | I57: Harvest | J57: Harvest | K57: Harvest | L57: Harvest | M57: Harvest | N57: 12
A59: =A56+1 -> 2019 | B59: Stock nursery | C59: Stock nursery | D59: Stock nursery | E59: Stock nursery | F59: Stock nursery | G59: Stock nursery | H59: Stock nursery | I59: Stock nursery | J59: Stock nursery | K59: Stock nursery | L59: Stock nursery | M59: Stock nursery
B60: Harvest | C60: Harvest | D60: Harvest | E60: Harvest | F60: Harvest | G60: Harvest | H60: Harvest | I60: Harvest | J60: Harvest | K60: Harvest | L60: Harvest | M60: Harvest | N60: 12
A62: =A59+1 -> 2020 | B62: Stock nursery | C62: Stock nursery | D62: Stock nursery | E62: Stock nursery | F62: Stock nursery | G62: Stock nursery | H62: Stock nursery | I62: Stock nursery | J62: Stock nursery | K62: Stock nursery | L62: Stock nursery | M62: Stock nursery
B63: Harvest | C63: Harvest | D63: Harvest | E63: Harvest | F63: Harvest | G63: Harvest | H63: Harvest | I63: Harvest | J63: Harvest | K63: Harvest | L63: Harvest | M63: Harvest | N63: 12
A65: =A62+1 -> 2021 | B65: Stock nursery | C65: Stock nursery | D65: Stock nursery | E65: Stock nursery | F65: Stock nursery | G65: Stock nursery | H65: Stock nursery | I65: Stock nursery | J65: Stock nursery | K65: Stock nursery | L65: Stock nursery | M65: Stock nursery
B66: Harvest | C66: Harvest | D66: Harvest | E66: Harvest | F66: Harvest | G66: Harvest | H66: Harvest | I66: Harvest | J66: Harvest | K66: Harvest | L66: Harvest | M66: Harvest | N66: 12
BH69: Harvest P3

Sheet Enter Operation Parameters Here
B4: Capital Investment Costs | D4: Unit Cost | E4: Number | F4: Cost | G4: Yrs of use | H4: Salvage value | I4: Yearly cost
B5: Land | C5: unit | E5: 1 | F5: =+D5*E5 -> 0 | G5: 30 | H5: =0.1*F5 -> 0 | I5: =(F5-H5)/G5 -> 0
B6: Building: Pole barn with concrete floor | C6: unit | D6: 25000 | E6: 1 | F6: =+D6*E6 -> 25000 | G6: 30 | H6: =0.1*F6 -> 2500 | I6: =(F6-H6)/G6 -> 750
B7: Complete RAS System | C7: unit | D7: 45000 | E7: 1 | F7: =+D7*E7 -> 45000 | G7: 10 | H7: =0.1*F7 -> 4500 | I7: =(F7-H7)/G7 -> 4050
B8: Tank Plywood | D8: 28 | E8: 258 | F8: =+D8*E8 -> 7224
B9: Support Equipment:
B10: Water Heater | D10: 1500 | E10: 1 | F10: =+D10*E10 -> 1500
B11: Water Storage | D11: 750 | E11: 3 | F11: 2250
B12: Emergency Generator | C12: unit | D12: 10000 | E12: 1 | F12: 10000 | G12: 10 | H12: =0.1*F12 -> 1000 | I12: =(F12-H12)/G12 -> 900
B13: Purge Tank | D13: 2500 | E13: 2 | F13: 5000
B14: Agitators | D14: 400 | E14: 8 | F14: 3200
B15: Blower | C15: unit | D15: 950 | E15: 2 | F15: 1900 | G15: 5 | H15: =0.1*F15 -> 190 | I15: =(F15-H15)/G15 -> 342
B16: Booster Pumps | D16: 250 | E16: 1 | F16: 250
B17: Monitoring Equipment | D17: 750 | E17: 1 | F17: 750
B18: Feeding Equipment | D18: 750 | E18: 1 | F18: 750
B19: Water Quality Equipment | D19: 1500 | E19: 1 | F19: 1500
B20: Fish Handling Equipment | D20: 1000 | E20: 1 | F20: 1000
B21: Feed Storage | D21: 500 | E21: 1 | F21: 500
B22: Construction labor & overhead | C22: unit | E22: 1 | F22: 0 | G22: 5 | H22: =0.1*F22 -> 0 | I22: =(F22-H22)/G22 -> 0
B23: Settling pond | C23: unit | E23: 1 | F23: 0 | G23: 10 | H23: =0.1*F23 -> 0 | I23: 0
B24: Transport tank | C24: unit | D24: 1000 | E24: 1 | F24: 1000 | G24: 10 | H24: =0.1*F24 -> 100 | I24: 90
B25: Well & motor | C25: unit | D25: 20000 | E25: 1 | F25: 2500 | G25: 20 | H25: 1 | I25: 124.95
B26: Miscellaneous equipment (dip nets, scale, testing equipment, purge tanks, buckets etc) | C26: unit | D26: 2500 | E26: 1 | F26: 2500 | G26: 5 | H26: =0.1*F26 -> 250 | I26: 450
B27: Miscellaneous labor (installation of system, utilities, plumbing, etc) | C27: $ | F27: 5000 | G27: 20 | H27: 0 | I27: 250
B28: Total Capital Investment | D28: =SUM(D5:D27) -> 114378 | I28: =SUM(I5:I27) -> 6956.95
B31: Operating parameters per production phase | D31: Phase 1 (fingerling) | E31: Phase 2 (growout-1) | F31: Phase 3 (growout-2) | G31: Cycle Total
B32: Number of tanks | D32: ='Enter Systems Parameters Here'!B31 -> 2 | E32: ='Enter Systems Parameters Here'!C31 -> 1 | F32: ='Enter Systems Parameters Here'!D31 -> 0
B33: Water volume per tank | D33: ='Enter Systems Parameters Here'!B18 -> 600 | E33: ='Enter Systems Parameters Here'!C18 -> 6000 | F33: ='Enter Systems Parameters Here'!D18 -> 0
B34: Water volume per phase | C34: gal | D34: =D33*D32 -> 1200 | E34: =E32*E33 -> 6000 | F34: =F33*F32 -> 0
B35: Size stocked | C35: gms | D35: 1 | E35: =$D$36 -> 1.852 | F35: =$E$36 -> 19.05225704
B36: Size harvested (in grams) | C36: gms | D36: =SpecieData!J17 -> 1.852 | E36: =SpecieData!J18 -> 19.05225704 | F36: =SpecieData!J19 -> 19.05225704
B37: Size Harvested (in pounds) | C37: lbs | D37: =D36/453.59237 -> 0.004082961096 | E37: =0.002204623*E36 -> 0.04200304408 | F37: =0.002204623*F36 -> 0.04200304408
B38: Survival rate | C38: % | D38: 0.9 | E38: 0.9 | F38: 1
B39: Feed cost | C39: $/lb | D39: =0.5 -> 0.5 | E39: =0.5 -> 0.5 | F39: =0.5 -> 0.5
B40: Feed conversion | C40: ratio | D40: 0.8 | E40: 1.3 | F40: 1.3
B41: Beginning number of fish | C41: number | D41: =D42/D38 -> 27757.63243 | E41: =+D41*D38 -> 24981.86919 | F41: =+E41*E38 -> 22483.68227 | G41: =D41 -> 27757.63243
B42: Ending number of fish | C42: number | D42: =D44/D37 -> 24981.86919 | E42: =+E41*E38 -> 22483.68227 | F42: =+F41*F38 -> 22483.68227 | G42: =$F$42 -> 22483.68227
B43: Beginning biomass | C43: lb | D43: =D35*D41*0.002204 -> 61.17782188 | E43: =+E35/453.59237*E41 -> 102 | F43: =+F35*0.002204623*F41 -> 944.3830975 | G43: =$D$43 -> 61.17782188
B44: Ending biomass | C44: lb | D44: =D34*'Enter Systems Parameters Here'!B19 -> 102 | E44: =E42*E37 -> 944.3830975 | F44: =F42*F37 -> 944.3830975 | G44: =F44 -> 944.3830975
B45: Maximum standing biomass | C45: lb/gal | D45: =+D44/D34 -> 0.085 | E45: =ROUND(E44/E34,2) -> 0.16 | F45: =IF(F34<>0,F44/F34,0) -> 0
B46: Feed used | C46: lb | D46: =+(D44-D43)*D40 -> 32.65774249 | E46: =+(E44-E43)*E40 -> 1095.098027 | F46: =+(F44-F43)*F40 -> 0 | G46: =SUM(D46:F46) -> 1127.755769
B47: Kwh per lb of production | C47: kwh/ lb prod. | D47: 1.5
B48: Kwh used | C48: kwh | D48: =(D46/G46)*G44*$D$47 -> 41.02140843 | E48: =(E46/G46)*G44*$D$47 -> 1375.553238 | F48: =(F46/G46)*G44*$D$47 -> 0 | G48: =SUM(D48:F48) -> 1416.574646
B49: Oxygen used | C49: $ / 100 cubic feet | D49: =+$D$46*0.3 -> 9.797322748 | E49: =E46*0.3 -> 328.529408 | F49: =F46*0.3 -> 0 | G49: =SUM(D49:F49) -> 338.3267308
B52: Operating costs | C52: unit | D52: cost/unit | E52: quantity/cycle | F52: $/cycle
B53: Variable Cost
B54: Fingerlings | C54: $/piece | D54: 0.05 | E54: =$D$41 -> 27757.63243 | F54: =+D54*E54 -> 1387.881622
B55: Feed (wt avg) | C55: $/lb | D55: =SUM(D39*D46,E39*E46,F39*F46)/G46 -> 0.5 | E55: =+G46 -> 1127.755769 | F55: =+D55*E55 -> 563.8778846
B56: Electricity | C56: $/kwh | D56: 0.1 | E56: =+G48 -> 1416.574646 | F56: =+D56*E56 -> 141.6574646
B57: Oxygen Price | C57: $/cubic feet | D57: 12.05 | E57: =G49/100 -> 3.383267308 | F57: =D57*E57 -> 40.76837106
B58: Hired labor | C58: $/hour | D58: 10 | E58: 200 | F58: =+D58*E58 -> 2000
B59: Tansportation cost of fingerlings | C59: $/lb | D59: 0 | E59: =$D$41 -> 27757.63243 | F59: =+D59*E59 -> 0
B60: Tansportation cost to Market | C60: $/lb | D60: 0 | E60: =$H$44 -> 0 | F60: =+D60*E60 -> 0
B61: Chemicals | C61: $/cycle | D61: 200 | E61: - | F61: =D61 -> 200
B62: Total variable cost | F62: =SUM(F54:F61) -> 4334.185342
B65: Overhead Cost | F65: $/year
B66: Oxygen tank rental | D66: 750 | E66: 1 | F66: =+D66*12*E66 -> 9000
B67: Electrical demand charge | D67: 100 | E67: 1 | F67: =+D67*12*E67 -> 1200
B68: Maintenance (3% of cap inv) | C68: 0.03 | D68: =$C$68*I28*12 -> 2504.502 | E68: 1 | F68: =+D68*E68 -> 2504.502
B69: Insurance | C69: 3% of TCI | D69: 0.1
B70: Adminstration/Management - legal fees, professional services, etc. (% of total overhead) | C70: 5% of TVC | D70: 0.05
B71: Other
B72: Total overhead cost | F72: =SUM(F66:F71) -> 12704.502
M74: 1 | N74: 2 | O74: 3 | P74: 4 | Q74: 5 | R74: 6 | S74: 7 | T74: 8 | U74: 9 | V74: 10 | W74: 11 | X74: 12 | Y74: 13 | Z74: 14 | AA74: 15 | AB74: 16 | AC74: 17 | AD74: 18 | AE74: 19 | AF74: 20 | AG74: 21 | AH74: 22 | AI74: 23 | AJ74: 24 | AK74: 25 | AL74: 26 | AM74: 27 | AN74: 28 | AO74: 29 | AP74: 30
B75: Loan Information | D75: Years | E75: Interest Rate | F75: Loan Balance | G75: Cost per year | M75: year 1 | N75: year 2 | O75: year 3 | P75: year 4 | Q75: year 5 | R75: year 6 | S75: year 7 | T75: year 8 | U75: year 9 | V75: year 10 | W75: year 11 | X75: year 12 | Y75: year 13 | Z75: year 14 | AA75: year 15 | AB75: year 16 | AC75: year 17 | AD75: year 18 | AE75: year 19 | AF75: year 20 | AG75: year 21 | AH75: year 22 | AI75: year 23 | AJ75: year 24 | AK75: year 25 | AL75: year 26 | AM75: year 27 | AN75: year 28 | AO75: year 29 | AP75: year 30
B76: Capital | D76: 5 | E76: 0.09 | F76: =(100%-I76)*$D$28 -> 91502.4 | G76: =IF(D76>0,-PMT(E76,D76,F76),0) -> 23524.57683 | H76: Down Payment | I76: 0.2 | M76: =-IF($F76=0,0,IF($D76<M$74,0,IPMT($E76,M$74,$D76,$F76,))) -> 8235.216 | N76: 6859.173525 | O76: 5359.287227 | P76: 3724.411163 | Q76: 1942.396252 | R76: 0 | S76: 0 | T76: 0 | U76: 0 | V76: 0 | W76: 0 | X76: 0 | Y76: 0 | Z76: 0 | AA76: 0 | AB76: 0 | AC76: =-IF($F76=0,0,IF($D76<AC$74,0,IPMT($E76,AC$74,$D76,$F76,))) -> 0 | AD76: 0 | AE76: 0 | AF76: 0 | AG76: 0 | AH76: 0 | AI76: 0 | AJ76: 0 | AK76: 0 | AL76: 0 | AM76: 0 | AN76: 0 | AO76: 0 | AP76: 0
B77: Loan 2 | D77: 0 | E77: 0 | F77: 0 | G77: =IF(D77>0,-PMT(E77,D77,F77),0) -> 0 | M77: 0 | N77: 0 | O77: 0 | P77: 0 | Q77: 0 | R77: 0 | S77: 0 | T77: 0 | U77: 0 | V77: 0 | W77: 0 | X77: 0 | Y77: 0 | Z77: 0 | AA77: 0 | AB77: 0 | AC77: 0 | AD77: 0 | AE77: 0 | AF77: 0 | AG77: 0 | AH77: 0 | AI77: 0 | AJ77: 0 | AK77: 0 | AL77: 0 | AM77: 0 | AN77: 0 | AO77: 0 | AP77: 0
B78: Loan 3 | D78: 0 | E78: 0 | F78: 0 | G78: =IF(D78>0,-PMT(E78,D78,F78),0) -> 0 | M78: 0 | N78: 0 | O78: 0 | P78: 0 | Q78: 0 | R78: 0 | S78: 0 | T78: 0 | U78: 0 | V78: 0 | W78: 0 | X78: 0 | Y78: 0 | Z78: 0 | AA78: 0 | AB78: 0 | AC78: 0 | AD78: 0 | AE78: 0 | AF78: 0 | AG78: 0 | AH78: 0 | AI78: 0 | AJ78: 0 | AK78: 0 | AL78: 0 | AM78: 0 | AN78: 0 | AO78: 0 | AP78: 0
B79: Loan 4 | D79: 0 | E79: 0 | F79: 0 | G79: =IF(D79>0,-PMT(E79,D79,F79),0) -> 0 | M79: 0 | N79: 0 | O79: 0 | P79: 0 | Q79: 0 | R79: 0 | S79: 0 | T79: 0 | U79: 0 | V79: 0 | W79: 0 | X79: 0 | Y79: 0 | Z79: 0 | AA79: 0 | AB79: 0 | AC79: 0 | AD79: 0 | AE79: 0 | AF79: 0 | AG79: 0 | AH79: 0 | AI79: 0 | AJ79: 0 | AK79: 0 | AL79: 0 | AM79: 0 | AN79: 0 | AO79: 0 | AP79: 0
B80: Total loan cost | F80: =SUM(F76:F79) -> 91502.4 | G80: =SUM(G76:G79) -> 23524.57683 | L80: Interest | M80: =IF(SUM(M76:M79)=0,"",SUM(M76:M79)) -> 8235.216 | N80: =IF(SUM(N76:N79)=0,"",SUM(N76:N79)) -> 6859.173525 | O80: =IF(SUM(O76:O79)=0,"",SUM(O76:O79)) -> 5359.287227 | P80: =IF(SUM(P76:P79)=0,"",SUM(P76:P79)) -> 3724.411163 | Q80: =IF(SUM(Q76:Q79)=0,"",SUM(Q76:Q79)) -> 1942.396252 | R80: 0 | S80: 0 | T80: 0 | U80: 0 | V80: 0 | W80: 0 | X80: 0 | Y80: 0 | Z80: 0 | AA80: 0 | AB80: 0 | AC80: 0 | AD80: 0 | AE80: 0 | AF80: 0 | AG80: 0 | AH80: 0 | AI80: 0 | AJ80: 0 | AK80: 0 | AL80: 0 | AM80: 0 | AN80: 0 | AO80: 0 | AP80: 0 | AQ80: 0
L81: Principal | M81: =IF(M80=0,0,F76/D76) -> 18300.48 | N81: =IF(N$80=0,0,$F$76/$D$76) -> 18300.48 | O81: =IF(O$80=0,0,$F$76/$D$76) -> 18300.48 | P81: 18300.48 | Q81: 18300.48 | R81: 0 | S81: 0 | T81: 0 | U81: 0 | V81: 0 | W81: 0 | X81: 0 | Y81: 0 | Z81: 0 | AA81: 0 | AB81: 0 | AC81: 0 | AD81: 0 | AE81: 0 | AF81: 0 | AG81: 0 | AH81: 0 | AI81: 0 | AJ81: 0 | AK81: 0 | AL81: 0 | AM81: 0 | AN81: 0 | AO81: 0 | AP81: 0
B83: Gross Receipts | C83: unit | D83: cost/unit | E83: quantity/cycle | F83: $/cycle
B84: Direct Fish sale | C84: lb | D84: 7 | E84: =$G$44 -> 944.3830975 | F84: =+D84*E84 -> 6610.681682
B85: Wholesale fish Price | M85: =AVERAGE(M80:AP80) -> 870.6828056
B86: Miscellaneous Receipts | C86: $ | D86: 0 | F86: =+D86*E86 -> 0
B87: Total receipts | F87: =SUM(F84:F86) -> 6610.681682

Sheet Cash Flow
C1: CASH FLOW
B2: YEAR 1 | C2: YEAR 1
C3: January | D3: February | E3: March | F3: April | G3: May | H3: June | I3: July | J3: August | K3: September | L3: October | M3: November | N3: December | O3: Total | X3: January | Y3: February | Z3: March | AA3: April | AB3: May | AC3: June | AD3: July | AE3: August | AF3: September | AG3: October | AH3: November | AI3: December | AJ3: Number of times
A4: ='Enter Systems Parameters Here'!$B$7 -> 2012 | B4: Gross Receipts: | W4: ='Enter Systems Parameters Here'!A38 -> 2012 | X4: Stock nursery | Y4: Stock nursery | Z4: Stock nursery | AA4: Stock nursery | AB4: Stock nursery | AC4: Stock nursery | AD4: Stock nursery | AE4: Stock nursery | AF4: Stock nursery | AG4: Stock nursery | AH4: Stock nursery | AI4: Stock nursery | AJ4: 12
A5: ='Enter Systems Parameters Here'!$B$7 -> 2012 | B5: Fish sale | C5: =IF('Enter Systems Parameters Here'!B$39="Harvest", 'Enter Operation Parameters Here'!$D$84*'Enter Operation Parameters Here'!$G$44,0) -> 0 | D5: =IF('Enter Systems Parameters Here'!C$39="Harvest", 'Enter Operation Parameters Here'!$D$84*'Enter Operation Parameters Here'!$G$44,0) -> 0 | E5: =IF('Enter Systems Parameters Here'!D$39="Harvest", 'Enter Operation Parameters Here'!$D$84*'Enter Operation Parameters Here'!$G$44,0) -> 0 | F5: =IF('Enter Systems Parameters Here'!E$39="Harvest", 'Enter Operation Parameters Here'!$D$84*'Enter Operation Parameters Here'!$G$44,0) -> 0 | G5: =IF('Enter Systems Parameters Here'!F$39="Harvest", 'Enter Operation Parameters Here'!$D$84*'Enter Operation Parameters Here'!$G$44,0) -> 6610.681682 | H5: =IF('Enter Systems Parameters Here'!G$39="Harvest", 'Enter Operation Parameters Here'!$D$84*'Enter Operation Parameters Here'!$G$44,0) -> 6610.681682 | I5: =IF('Enter Systems Parameters Here'!H$39="Harvest", 'Enter Operation Parameters Here'!$D$84*'Enter Operation Parameters Here'!$G$44,0) -> 6610.681682 | J5: =IF('Enter Systems Parameters Here'!I$39="Harvest", 'Enter Operation Parameters Here'!$D$84*'Enter Operation Parameters Here'!$G$44,0) -> 6610.681682 | K5: =IF('Enter Systems Parameters Here'!J$39="Harvest", 'Enter Operation Parameters Here'!$D$84*'Enter Operation Parameters Here'!$G$44,0) -> 6610.681682 | L5: =IF('Enter Systems Parameters Here'!K$39="Harvest", 'Enter Operation Parameters Here'!$D$84*'Enter Operation Parameters Here'!$G$44,0) -> 6610.681682 | M5: =IF('Enter Systems Parameters Here'!L$39="Harvest", 'Enter Operation Parameters Here'!$D$84*'Enter Operation Parameters Here'!$G$44,0) -> 6610.681682 | N5: =IF('Enter Systems Parameters Here'!M$39="Harvest", 'Enter Operation Parameters Here'!$D$84*'Enter Operation Parameters Here'!$G$44,0) -> 6610.681682 | O5: =SUM(C5:N5) -> 52885.45346 | X5: Stock P2 | Y5: Stock P2 | Z5: Stock P2 | AA5: Stock P2 | AB5: Stock P2 | AC5: Stock P2 | AD5: Stock P2 | AE5: Stock P2 | AF5: Stock P2 | AG5: Stock P2 | AH5: Stock P2 | AI5: Stock P2 | AJ5: 12
A6: ='Enter Systems Parameters Here'!$B$7 -> 2012 | B6: Miscellaneous Receipts | O6: =SUM(C6:N6) -> 0 | AJ6: 0
A7: ='Enter Systems Parameters Here'!$B$7 -> 2012 | B7: Total Receipts | C7: =SUM(C5:C6) -> 0 | D7: 0 | E7: 0 | F7: 0 | G7: 6610.681682 | H7: 6610.681682 | I7: 6610.681682 | J7: 6610.681682 | K7: 6610.681682 | L7: 6610.681682 | M7: 6610.681682 | N7: 6610.681682 | O7: =SUM(C7:N7) -> 52885.45346 | W7: ='Enter Systems Parameters Here'!A41 -> 2013 | X7: Stock nursery | Y7: Stock nursery | Z7: Stock nursery | AA7: Stock nursery | AB7: Stock nursery | AC7: Stock nursery | AD7: Stock nursery | AE7: Stock nursery | AF7: Stock nursery | AG7: Stock nursery | AH7: Stock nursery | AI7: Stock nursery | AJ7: 12
A8: ='Enter Systems Parameters Here'!$B$7 -> 2012 | X8: Stock P2 | Y8: Stock P2 | Z8: Stock P2 | AA8: Stock P2 | AB8: Stock P2 | AC8: Stock P2 | AD8: Stock P2 | AE8: Stock P2 | AF8: Stock P2 | AG8: Stock P2 | AH8: Stock P2 | AI8: Stock P2 | AJ8: 12
A9: ='Enter Systems Parameters Here'!$B$7 -> 2012 | B9: Variable Inputs: | AJ9: 0
A10: ='Enter Systems Parameters Here'!$B$7 -> 2012 | B10: Fingerlings (4") | C10: =IF('Enter Systems Parameters Here'!B$38="Stock nursery",'Enter Operation Parameters Here'!$D$54*'Enter Operation Parameters Here'!$D$41,0) -> 1387.881622 | D10: =IF('Enter Systems Parameters Here'!C$38="Stock nursery",'Enter Operation Parameters Here'!$D$54*'Enter Operation Parameters Here'!$D$41,0) -> 1387.881622 | E10: =IF('Enter Systems Parameters Here'!D$38="Stock nursery",'Enter Operation Parameters Here'!$D$54*'Enter Operation Parameters Here'!$D$41,0) -> 1387.881622 | F10: =IF('Enter Systems Parameters Here'!E$38="Stock nursery",'Enter Operation Parameters Here'!$D$54*'Enter Operation Parameters Here'!$D$41,0) -> 1387.881622 | G10: =IF('Enter Systems Parameters Here'!F$38="Stock nursery",'Enter Operation Parameters Here'!$D$54*'Enter Operation Parameters Here'!$D$41,0) -> 1387.881622 | H10: =IF('Enter Systems Parameters Here'!G$38="Stock nursery",'Enter Operation Parameters Here'!$D$54*'Enter Operation Parameters Here'!$D$41,0) -> 1387.881622 | I10: =IF('Enter Systems Parameters Here'!H$38="Stock nursery",'Enter Operation Parameters Here'!$D$54*'Enter Operation Parameters Here'!$D$41,0) -> 1387.881622 | J10: =IF('Enter Systems Parameters Here'!I$38="Stock nursery",'Enter Operation Parameters Here'!$D$54*'Enter Operation Parameters Here'!$D$41,0) -> 1387.881622 | K10: =IF('Enter Systems Parameters Here'!J$38="Stock nursery",'Enter Operation Parameters Here'!$D$54*'Enter Operation Parameters Here'!$D$41,0) -> 1387.881622 | L10: =IF('Enter Systems Parameters Here'!K$38="Stock nursery",'Enter Operation Parameters Here'!$D$54*'Enter Operation Parameters Here'!$D$41,0) -> 1387.881622 | M10: =IF('Enter Systems Parameters Here'!L$38="Stock nursery",'Enter Operation Parameters Here'!$D$54*'Enter Operation Parameters Here'!$D$41,0) -> 1387.881622 | N10: =IF('Enter Systems Parameters Here'!M$38="Stock nursery",'Enter Operation Parameters Here'!$D$54*'Enter Operation Parameters Here'!$D$41,0) -> 1387.881622 | O10: =SUM(C10:N10) -> 16654.57946 | W10: ='Enter Systems Parameters Here'!A44 -> 2014 | X10: Stock nursery | Y10: Stock nursery | Z10: Stock nursery | AA10: Stock nursery | AB10: Stock nursery | AC10: Stock nursery | AD10: Stock nursery | AE10: Stock nursery | AF10: Stock nursery | AG10: Stock nursery | AH10: Stock nursery | AI10: Stock nursery | AJ10: 12
A11: ='Enter Systems Parameters Here'!$B$7 -> 2012 | B11: Feed | C11: ='Operating-Overhead Cost'!$B$4/12 -> 563.8778846 | D11: ='Operating-Overhead Cost'!$B$4/12 -> 563.8778846 | E11: ='Operating-Overhead Cost'!$B$4/12 -> 563.8778846 | F11: ='Operating-Overhead Cost'!$B$4/12 -> 563.8778846 | G11: ='Operating-Overhead Cost'!$B$4/12 -> 563.8778846 | H11: ='Operating-Overhead Cost'!$B$4/12 -> 563.8778846 | I11: ='Operating-Overhead Cost'!$B$4/12 -> 563.8778846 | J11: ='Operating-Overhead Cost'!$B$4/12 -> 563.8778846 | K11: ='Operating-Overhead Cost'!$B$4/12 -> 563.8778846 | L11: ='Operating-Overhead Cost'!$B$4/12 -> 563.8778846 | M11: ='Operating-Overhead Cost'!$B$4/12 -> 563.8778846 | N11: ='Operating-Overhead Cost'!$B$4/12 -> 563.8778846 | O11: =SUM(C11:N11) -> 6766.534615 | X11: Stock P2 | Y11: Stock P2 | Z11: Stock P2 | AA11: Stock P2 | AB11: Stock P2 | AC11: Stock P2 | AD11: Stock P2 | AE11: Stock P2 | AF11: Stock P2 | AG11: Stock P2 | AH11: Stock P2 | AI11: Stock P2 | AJ11: 12
A12: ='Enter Systems Parameters Here'!$B$7 -> 2012 | B12: Chemicals | C12: ='Operating-Overhead Cost'!$B$10/12 -> 133.3333333 | D12: ='Operating-Overhead Cost'!$B$10/12 -> 133.3333333 | E12: ='Operating-Overhead Cost'!$B$10/12 -> 133.3333333 | F12: ='Operating-Overhead Cost'!$B$10/12 -> 133.3333333 | G12: ='Operating-Overhead Cost'!$B$10/12 -> 133.3333333 | H12: ='Operating-Overhead Cost'!$B$10/12 -> 133.3333333 | I12: ='Operating-Overhead Cost'!$B$10/12 -> 133.3333333 | J12: ='Operating-Overhead Cost'!$B$10/12 -> 133.3333333 | K12: ='Operating-Overhead Cost'!$B$10/12 -> 133.3333333 | L12: ='Operating-Overhead Cost'!$B$10/12 -> 133.3333333 | M12: ='Operating-Overhead Cost'!$B$10/12 -> 133.3333333 | N12: ='Operating-Overhead Cost'!$B$10/12 -> 133.3333333 | O12: =SUM(C12:N12) -> 1600 | AJ12: 0
A13: ='Enter Systems Parameters Here'!$B$7 -> 2012 | B13: Electricity | C13: ='Operating-Overhead Cost'!$B$5/12 -> 94.43830975 | D13: ='Operating-Overhead Cost'!$B$5/12 -> 94.43830975 | E13: ='Operating-Overhead Cost'!$B$5/12 -> 94.43830975 | F13: ='Operating-Overhead Cost'!$B$5/12 -> 94.43830975 | G13: ='Operating-Overhead Cost'!$B$5/12 -> 94.43830975 | H13: ='Operating-Overhead Cost'!$B$5/12 -> 94.43830975 | I13: ='Operating-Overhead Cost'!$B$5/12 -> 94.43830975 | J13: ='Operating-Overhead Cost'!$B$5/12 -> 94.43830975 | K13: ='Operating-Overhead Cost'!$B$5/12 -> 94.43830975 | L13: ='Operating-Overhead Cost'!$B$5/12 -> 94.43830975 | M13: ='Operating-Overhead Cost'!$B$5/12 -> 94.43830975 | N13: ='Operating-Overhead Cost'!$B$5/12 -> 94.43830975 | O13: 1133.259717 | W13: ='Enter Systems Parameters Here'!A47 -> 2015 | X13: Stock nursery | Y13: Stock nursery | Z13: Stock nursery | AA13: Stock nursery | AB13: Stock nursery | AC13: Stock nursery | AD13: Stock nursery | AE13: Stock nursery | AF13: Stock nursery | AG13: Stock nursery | AH13: Stock nursery | AI13: Stock nursery | AJ13: 12
A14: ='Enter Systems Parameters Here'!$B$7 -> 2012 | B14: Oxygen | C14: ='Operating-Overhead Cost'!$B$6/12 -> 27.17891404 | D14: ='Operating-Overhead Cost'!$B$6/12 -> 27.17891404 | E14: ='Operating-Overhead Cost'!$B$6/12 -> 27.17891404 | F14: ='Operating-Overhead Cost'!$B$6/12 -> 27.17891404 | G14: ='Operating-Overhead Cost'!$B$6/12 -> 27.17891404 | H14: ='Operating-Overhead Cost'!$B$6/12 -> 27.17891404 | I14: ='Operating-Overhead Cost'!$B$6/12 -> 27.17891404 | J14: ='Operating-Overhead Cost'!$B$6/12 -> 27.17891404 | K14: ='Operating-Overhead Cost'!$B$6/12 -> 27.17891404 | L14: ='Operating-Overhead Cost'!$B$6/12 -> 27.17891404 | M14: ='Operating-Overhead Cost'!$B$6/12 -> 27.17891404 | N14: ='Operating-Overhead Cost'!$B$6/12 -> 27.17891404 | O14: 326.1469684 | X14: Stock P2 | Y14: Stock P2 | Z14: Stock P2 | AA14: Stock P2 | AB14: Stock P2 | AC14: Stock P2 | AD14: Stock P2 | AE14: Stock P2 | AF14: Stock P2 | AG14: Stock P2 | AH14: Stock P2 | AI14: Stock P2 | AJ14: 12
A15: ='Enter Systems Parameters Here'!$B$7 -> 2012 | B15: Hired Labor - Hours | C15: ='Operating-Overhead Cost'!$B$7/12 -> 1333.333333 | D15: ='Operating-Overhead Cost'!$B$7/12 -> 1333.333333 | E15: ='Operating-Overhead Cost'!$B$7/12 -> 1333.333333 | F15: ='Operating-Overhead Cost'!$B$7/12 -> 1333.333333 | G15: ='Operating-Overhead Cost'!$B$7/12 -> 1333.333333 | H15: ='Operating-Overhead Cost'!$B$7/12 -> 1333.333333 | I15: ='Operating-Overhead Cost'!$B$7/12 -> 1333.333333 | J15: ='Operating-Overhead Cost'!$B$7/12 -> 1333.333333 | K15: ='Operating-Overhead Cost'!$B$7/12 -> 1333.333333 | L15: ='Operating-Overhead Cost'!$B$7/12 -> 1333.333333 | M15: ='Operating-Overhead Cost'!$B$7/12 -> 1333.333333 | N15: ='Operating-Overhead Cost'!$B$7/12 -> 1333.333333 | O15: 16000 | AJ15: 0
A16: ='Enter Systems Parameters Here'!$B$7 -> 2012 | B16: Transportation Costs of Fingerlings | C16: ='Operating-Overhead Cost'!$B$8/12 -> 0 | D16: ='Operating-Overhead Cost'!$B$8/12 -> 0 | E16: ='Operating-Overhead Cost'!$B$8/12 -> 0 | F16: ='Operating-Overhead Cost'!$B$8/12 -> 0 | G16: ='Operating-Overhead Cost'!$B$8/12 -> 0 | H16: ='Operating-Overhead Cost'!$B$8/12 -> 0 | I16: ='Operating-Overhead Cost'!$B$8/12 -> 0 | J16: ='Operating-Overhead Cost'!$B$8/12 -> 0 | K16: ='Operating-Overhead Cost'!$B$8/12 -> 0 | L16: ='Operating-Overhead Cost'!$B$8/12 -> 0 | M16: ='Operating-Overhead Cost'!$B$8/12 -> 0 | N16: ='Operating-Overhead Cost'!$B$8/12 -> 0 | O16: 0 | W16: ='Enter Systems Parameters Here'!A50 -> 2016 | X16: Stock nursery | Y16: Stock nursery | Z16: Stock nursery | AA16: Stock nursery | AB16: Stock nursery | AC16: Stock nursery | AD16: Stock nursery | AE16: Stock nursery | AF16: Stock nursery | AG16: Stock nursery | AH16: Stock nursery | AI16: Stock nursery | AJ16: 12
A17: ='Enter Systems Parameters Here'!$B$7 -> 2012 | B17: Transportation Costs to Market | C17: ='Operating-Overhead Cost'!$B$9/12 -> 0 | D17: ='Operating-Overhead Cost'!$B$9/12 -> 0 | E17: ='Operating-Overhead Cost'!$B$9/12 -> 0 | F17: ='Operating-Overhead Cost'!$B$9/12 -> 0 | G17: ='Operating-Overhead Cost'!$B$9/12 -> 0 | H17: ='Operating-Overhead Cost'!$B$9/12 -> 0 | I17: ='Operating-Overhead Cost'!$B$9/12 -> 0 | J17: ='Operating-Overhead Cost'!$B$9/12 -> 0 | K17: ='Operating-Overhead Cost'!$B$9/12 -> 0 | L17: ='Operating-Overhead Cost'!$B$9/12 -> 0 | M17: ='Operating-Overhead Cost'!$B$9/12 -> 0 | N17: ='Operating-Overhead Cost'!$B$9/12 -> 0 | O17: 0 | X17: Stock P2 | Y17: Stock P2 | Z17: Stock P2 | AA17: Stock P2 | AB17: Stock P2 | AC17: Stock P2 | AD17: Stock P2 | AE17: Stock P2 | AF17: Stock P2 | AG17: Stock P2 | AH17: Stock P2 | AI17: Stock P2 | AJ17: 12
A18: ='Enter Systems Parameters Here'!$B$7 -> 2012 | B18: Miscellaneous | O18: =5%*(O19+O26) -> 2355.45244 | AJ18: 0
A19: ='Enter Systems Parameters Here'!$B$7 -> 2012 | B19: Total Variable Cost | C19: =SUM(C10:C18) -> 3540.043397 | D19: 3540.043397 | E19: 3540.043397 | F19: 3540.043397 | G19: 3540.043397 | H19: 3540.043397 | I19: 3540.043397 | J19: 3540.043397 | K19: 3540.043397 | L19: 3540.043397 | M19: 3540.043397 | N19: 3540.043397 | O19: =SUM(O10:O17) -> 42480.52076 | W19: ='Enter Systems Parameters Here'!A53 -> 2017 | X19: Stock nursery | Y19: Stock nursery | Z19: Stock nursery | AA19: Stock nursery | AB19: Stock nursery | AC19: Stock nursery | AD19: Stock nursery | AE19: Stock nursery | AF19: Stock nursery | AG19: Stock nursery | AH19: Stock nursery | AI19: Stock nursery | AJ19: 12
A20: ='Enter Systems Parameters Here'!$B$7 -> 2012 | X20: Stock P2 | Y20: Stock P2 | Z20: Stock P2 | AA20: Stock P2 | AB20: Stock P2 | AC20: Stock P2 | AD20: Stock P2 | AE20: Stock P2 | AF20: Stock P2 | AG20: Stock P2 | AH20: Stock P2 | AI20: Stock P2 | AJ20: 12
A21: ='Enter Systems Parameters Here'!$B$7 -> 2012 | B21: Overhead Costs | AJ21: 0
A22: ='Enter Systems Parameters Here'!$B$7 -> 2012 | B22: Repair & maintenance | C22: ='Enter Operation Parameters Here'!$D$68/12 -> 208.7085 | D22: ='Enter Operation Parameters Here'!$D$68/12 -> 208.7085 | E22: ='Enter Operation Parameters Here'!$D$68/12 -> 208.7085 | F22: ='Enter Operation Parameters Here'!$D$68/12 -> 208.7085 | G22: ='Enter Operation Parameters Here'!$D$68/12 -> 208.7085 | H22: ='Enter Operation Parameters Here'!$D$68/12 -> 208.7085 | I22: ='Enter Operation Parameters Here'!$D$68/12 -> 208.7085 | J22: ='Enter Operation Parameters Here'!$D$68/12 -> 208.7085 | K22: ='Enter Operation Parameters Here'!$D$68/12 -> 208.7085 | L22: ='Enter Operation Parameters Here'!$D$68/12 -> 208.7085 | M22: ='Enter Operation Parameters Here'!$D$68/12 -> 208.7085 | N22: ='Enter Operation Parameters Here'!$D$68/12 -> 208.7085 | O22: =SUM(C22:N22) -> 2504.502 | W22: ='Enter Systems Parameters Here'!A56 -> 2018 | X22: Stock nursery | Y22: Stock nursery | Z22: Stock nursery | AA22: Stock nursery | AB22: Stock nursery | AC22: Stock nursery | AD22: Stock nursery | AE22: Stock nursery | AF22: Stock nursery | AG22: Stock nursery | AH22: Stock nursery | AI22: Stock nursery | AJ22: 12
A23: ='Enter Systems Parameters Here'!$B$7 -> 2012 | B23: Insurance | C23: ='Enter Operation Parameters Here'!$G$69/12 -> 0 | D23: ='Enter Operation Parameters Here'!$G$69/12 -> 0 | E23: ='Enter Operation Parameters Here'!$G$69/12 -> 0 | F23: ='Enter Operation Parameters Here'!$G$69/12 -> 0 | G23: ='Enter Operation Parameters Here'!$G$69/12 -> 0 | H23: ='Enter Operation Parameters Here'!$G$69/12 -> 0 | I23: ='Enter Operation Parameters Here'!$G$69/12 -> 0 | J23: ='Enter Operation Parameters Here'!$G$69/12 -> 0 | K23: ='Enter Operation Parameters Here'!$G$69/12 -> 0 | L23: ='Enter Operation Parameters Here'!$G$69/12 -> 0 | M23: ='Enter Operation Parameters Here'!$G$69/12 -> 0 | N23: ='Enter Operation Parameters Here'!$G$69/12 -> 0 | O23: =SUM(C23:N23) -> 0 | X23: Stock P2 | Y23: Stock P2 | Z23: Stock P2 | AA23: Stock P2 | AB23: Stock P2 | AC23: Stock P2 | AD23: Stock P2 | AE23: Stock P2 | AF23: Stock P2 | AG23: Stock P2 | AH23: Stock P2 | AI23: Stock P2 | AJ23: 12
A24: ='Enter Systems Parameters Here'!$B$7 -> 2012 | B24: Adminstration/Management - legal fees, professional services, etc. | C24: ='Operating-Overhead Cost'!$B$15/12 -> 177.0021698 | D24: ='Operating-Overhead Cost'!$B$15/12 -> 177.0021698 | E24: ='Operating-Overhead Cost'!$B$15/12 -> 177.0021698 | F24: ='Operating-Overhead Cost'!$B$15/12 -> 177.0021698 | G24: ='Operating-Overhead Cost'!$B$15/12 -> 177.0021698 | H24: ='Operating-Overhead Cost'!$B$15/12 -> 177.0021698 | I24: ='Operating-Overhead Cost'!$B$15/12 -> 177.0021698 | J24: ='Operating-Overhead Cost'!$B$15/12 -> 177.0021698 | K24: ='Operating-Overhead Cost'!$B$15/12 -> 177.0021698 | L24: ='Operating-Overhead Cost'!$B$15/12 -> 177.0021698 | M24: ='Operating-Overhead Cost'!$B$15/12 -> 177.0021698 | N24: ='Operating-Overhead Cost'!$B$15/12 -> 177.0021698 | O24: =SUM(C24:N24) -> 2124.026038 | AJ24: 0
A25: ='Enter Systems Parameters Here'!$B$7 -> 2012 | B25: Other | C25: ='Enter Operation Parameters Here'!$G$71/12 -> 0 | D25: ='Enter Operation Parameters Here'!$G$71/12 -> 0 | E25: ='Enter Operation Parameters Here'!$G$71/12 -> 0 | F25: ='Enter Operation Parameters Here'!$G$71/12 -> 0 | G25: ='Enter Operation Parameters Here'!$G$71/12 -> 0 | H25: ='Enter Operation Parameters Here'!$G$71/12 -> 0 | I25: ='Enter Operation Parameters Here'!$G$71/12 -> 0 | J25: ='Enter Operation Parameters Here'!$G$71/12 -> 0 | K25: ='Enter Operation Parameters Here'!$G$71/12 -> 0 | L25: ='Enter Operation Parameters Here'!$G$71/12 -> 0 | M25: ='Enter Operation Parameters Here'!$G$71/12 -> 0 | N25: ='Enter Operation Parameters Here'!$G$71/12 -> 0 | O25: =SUM(C25:N25) -> 0 | W25: ='Enter Systems Parameters Here'!A59 -> 2019 | X25: Stock nursery | Y25: Stock nursery | Z25: Stock nursery | AA25: Stock nursery | AB25: Stock nursery | AC25: Stock nursery | AD25: Stock nursery | AE25: Stock nursery | AF25: Stock nursery | AG25: Stock nursery | AH25: Stock nursery | AI25: Stock nursery | AJ25: 12
A26: ='Enter Systems Parameters Here'!$B$7 -> 2012 | B26: Total Overhead Costs | C26: =SUM(C22:C25) -> 385.7106698 | D26: =SUM(D22:D25) -> 385.7106698 | E26: =SUM(E22:E25) -> 385.7106698 | F26: 385.7106698 | G26: 385.7106698 | H26: 385.7106698 | I26: 385.7106698 | J26: 385.7106698 | K26: 385.7106698 | L26: 385.7106698 | M26: 385.7106698 | N26: 385.7106698 | O26: =SUM(O22:O25) -> 4628.528038 | X26: Stock P2 | Y26: Stock P2 | Z26: Stock P2 | AA26: Stock P2 | AB26: Stock P2 | AC26: Stock P2 | AD26: Stock P2 | AE26: Stock P2 | AF26: Stock P2 | AG26: Stock P2 | AH26: Stock P2 | AI26: Stock P2 | AJ26: 12
A27: ='Enter Systems Parameters Here'!$B$7 -> 2012 | AJ27: 0
A28: ='Enter Systems Parameters Here'!$B$7 -> 2012 | B28: Loan | C28: ='Enter Operation Parameters Here'!$M$81/12 -> 1525.04 | D28: ='Enter Operation Parameters Here'!$M$81/12 -> 1525.04 | E28: ='Enter Operation Parameters Here'!$M$81/12 -> 1525.04 | F28: ='Enter Operation Parameters Here'!$M$81/12 -> 1525.04 | G28: ='Enter Operation Parameters Here'!$M$81/12 -> 1525.04 | H28: ='Enter Operation Parameters Here'!$M$81/12 -> 1525.04 | I28: ='Enter Operation Parameters Here'!$M$81/12 -> 1525.04 | J28: ='Enter Operation Parameters Here'!$M$81/12 -> 1525.04 | K28: ='Enter Operation Parameters Here'!$M$81/12 -> 1525.04 | L28: ='Enter Operation Parameters Here'!$M$81/12 -> 1525.04 | M28: ='Enter Operation Parameters Here'!$M$81/12 -> 1525.04 | N28: ='Enter Operation Parameters Here'!$M$81/12 -> 1525.04 | O28: =SUM(F28:N28) -> 13725.36 | W28: ='Enter Systems Parameters Here'!A62 -> 2020 | X28: Stock nursery | Y28: Stock nursery | Z28: Stock nursery | AA28: Stock nursery | AB28: Stock nursery | AC28: Stock nursery | AD28: Stock nursery | AE28: Stock nursery | AF28: Stock nursery | AG28: Stock nursery | AH28: Stock nursery | AI28: Stock nursery | AJ28: 12
A29: ='Enter Systems Parameters Here'!$B$7 -> 2012 | X29: Stock P2 | Y29: Stock P2 | Z29: Stock P2 | AA29: Stock P2 | AB29: Stock P2 | AC29: Stock P2 | AD29: Stock P2 | AE29: Stock P2 | AF29: Stock P2 | AG29: Stock P2 | AH29: Stock P2 | AI29: Stock P2 | AJ29: 12
A30: ='Enter Systems Parameters Here'!$B$7 -> 2012 | B30: Cash Flow | C30: =C7-SUM(C19,C26,C28) -> -5450.794067 | D30: =D7-SUM(D19,D26,D28)+C30 -> -10901.58813 | E30: -16352.3822 | F30: -21803.17627 | G30: -20643.28865 | H30: -19483.40103 | I30: -18323.51342 | J30: -17163.6258 | K30: -16003.73819 | L30: -14843.85057 | M30: -13683.96296 | N30: -12524.07534 | AJ30: 0
W31: ='Enter Systems Parameters Here'!A65 -> 2021 | X31: Stock nursery | Y31: Stock nursery | Z31: Stock nursery | AA31: Stock nursery | AB31: Stock nursery | AC31: Stock nursery | AD31: Stock nursery | AE31: Stock nursery | AF31: Stock nursery | AG31: Stock nursery | AH31: Stock nursery | AI31: Stock nursery | AJ31: 12
B32: YEAR 2 | C32: YEAR 2 | X32: Stock P2 | Y32: Stock P2 | Z32: Stock P2 | AA32: Stock P2 | AB32: Stock P2 | AC32: Stock P2 | AD32: Stock P2 | AE32: Stock P2 | AF32: Stock P2 | AG32: Stock P2 | AH32: Stock P2 | AI32: Stock P2 | AJ32: 12
C33: January | D33: February | E33: March | F33: April | G33: May | H33: June | I33: July | J33: August | K33: September | L33: October | M33: November | N33: December | AJ33: 0
A34: =A$30+1 -> 2013 | B34: Gross Receipts: | O34: =SUM(C34:N34) -> 0
A35: =A$30+1 -> 2013 | B35: Fish sale | C35: =IF('Enter Systems Parameters Here'!B$42="Harvest", 'Enter Operation Parameters Here'!$D$84*'Enter Operation Parameters Here'!$G$44,0) -> 6610.681682 | D35: =IF('Enter Systems Parameters Here'!C$42="Harvest", 'Enter Operation Parameters Here'!$D$84*'Enter Operation Parameters Here'!$G$44,0) -> 6610.681682 | E35: =IF('Enter Systems Parameters Here'!D$42="Harvest", 'Enter Operation Parameters Here'!$D$84*'Enter Operation Parameters Here'!$G$44,0) -> 6610.681682 | F35: =IF('Enter Systems Parameters Here'!E$42="Harvest", 'Enter Operation Parameters Here'!$D$84*'Enter Operation Parameters Here'!$G$44,0) -> 6610.681682 | G35: =IF('Enter Systems Parameters Here'!F$42="Harvest", 'Enter Operation Parameters Here'!$D$84*'Enter Operation Parameters Here'!$G$44,0) -> 6610.681682 | H35: =IF('Enter Systems Parameters Here'!G$42="Harvest", 'Enter Operation Parameters Here'!$D$84*'Enter Operation Parameters Here'!$G$44,0) -> 6610.681682 | I35: =IF('Enter Systems Parameters Here'!H$42="Harvest", 'Enter Operation Parameters Here'!$D$84*'Enter Operation Parameters Here'!$G$44,0) -> 6610.681682 | J35: =IF('Enter Systems Parameters Here'!I$42="Harvest", 'Enter Operation Parameters Here'!$D$84*'Enter Operation Parameters Here'!$G$44,0) -> 6610.681682 | K35: =IF('Enter Systems Parameters Here'!J$42="Harvest", 'Enter Operation Parameters Here'!$D$84*'Enter Operation Parameters Here'!$G$44,0) -> 6610.681682 | L35: =IF('Enter Systems Parameters Here'!K$42="Harvest", 'Enter Operation Parameters Here'!$D$84*'Enter Operation Parameters Here'!$G$44,0) -> 6610.681682 | M35: =IF('Enter Systems Parameters Here'!L$42="Harvest", 'Enter Operation Parameters Here'!$D$84*'Enter Operation Parameters Here'!$G$44,0) -> 6610.681682 | N35: =IF('Enter Systems Parameters Here'!M$42="Harvest", 'Enter Operation Parameters Here'!$D$84*'Enter Operation Parameters Here'!$G$44,0) -> 6610.681682 | O35: =SUM(C35:N35) -> 79328.18019
A36: 2013 | B36: Miscellaneous Receipts | O36: =SUM(C36:N36) -> 0
A37: 2013 | B37: Total Receipts | C37: =SUM(C35:C36) -> 6610.681682 | D37: =SUM(D35:D36) -> 6610.681682 | E37: 6610.681682 | F37: 6610.681682 | G37: 6610.681682 | H37: 6610.681682 | I37: 6610.681682 | J37: 6610.681682 | K37: 6610.681682 | L37: 6610.681682 | M37: 6610.681682 | N37: 6610.681682 | O37: =SUM(C37:N37) -> 79328.18019
A38: 2013
A39: 2013 | B39: Variable Inputs:
A40: 2013 | B40: Fingerlings (4") | C40: =IF('Enter Systems Parameters Here'!B$41="Stock nursery",'Enter Operation Parameters Here'!$D$54*'Enter Operation Parameters Here'!$D$41,0) -> 1387.881622 | D40: =IF('Enter Systems Parameters Here'!C$41="Stock nursery",'Enter Operation Parameters Here'!$D$54*'Enter Operation Parameters Here'!$D$41,0) -> 1387.881622 | E40: =IF('Enter Systems Parameters Here'!D$41="Stock nursery",'Enter Operation Parameters Here'!$D$54*'Enter Operation Parameters Here'!$D$41,0) -> 1387.881622 | F40: =IF('Enter Systems Parameters Here'!E$41="Stock nursery",'Enter Operation Parameters Here'!$D$54*'Enter Operation Parameters Here'!$D$41,0) -> 1387.881622 | G40: =IF('Enter Systems Parameters Here'!F$41="Stock nursery",'Enter Operation Parameters Here'!$D$54*'Enter Operation Parameters Here'!$D$41,0) -> 1387.881622 | H40: =IF('Enter Systems Parameters Here'!G$41="Stock nursery",'Enter Operation Parameters Here'!$D$54*'Enter Operation Parameters Here'!$D$41,0) -> 1387.881622 | I40: =IF('Enter Systems Parameters Here'!H$41="Stock nursery",'Enter Operation Parameters Here'!$D$54*'Enter Operation Parameters Here'!$D$41,0) -> 1387.881622 | J40: =IF('Enter Systems Parameters Here'!I$41="Stock nursery",'Enter Operation Parameters Here'!$D$54*'Enter Operation Parameters Here'!$D$41,0) -> 1387.881622 | K40: =IF('Enter Systems Parameters Here'!J$41="Stock nursery",'Enter Operation Parameters Here'!$D$54*'Enter Operation Parameters Here'!$D$41,0) -> 1387.881622 | L40: =IF('Enter Systems Parameters Here'!K$41="Stock nursery",'Enter Operation Parameters Here'!$D$54*'Enter Operation Parameters Here'!$D$41,0) -> 1387.881622 | M40: =IF('Enter Systems Parameters Here'!L$41="Stock nursery",'Enter Operation Parameters Here'!$D$54*'Enter Operation Parameters Here'!$D$41,0) -> 1387.881622 | N40: =IF('Enter Systems Parameters Here'!M$41="Stock nursery",'Enter Operation Parameters Here'!$D$54*'Enter Operation Parameters Here'!$D$41,0) -> 1387.881622 | O40: =SUM(C40:N40) -> 16654.57946
A41: 2013 | B41: Feed | C41: ='Operating-Overhead Cost'!$C$4/12 -> 563.8778846 | D41: ='Operating-Overhead Cost'!$C$4/12 -> 563.8778846 | E41: ='Operating-Overhead Cost'!$C$4/12 -> 563.8778846 | F41: ='Operating-Overhead Cost'!$C$4/12 -> 563.8778846 | G41: ='Operating-Overhead Cost'!$C$4/12 -> 563.8778846 | H41: ='Operating-Overhead Cost'!$C$4/12 -> 563.8778846 | I41: ='Operating-Overhead Cost'!$C$4/12 -> 563.8778846 | J41: ='Operating-Overhead Cost'!$C$4/12 -> 563.8778846 | K41: ='Operating-Overhead Cost'!$C$4/12 -> 563.8778846 | L41: ='Operating-Overhead Cost'!$C$4/12 -> 563.8778846 | M41: ='Operating-Overhead Cost'!$C$4/12 -> 563.8778846 | N41: ='Operating-Overhead Cost'!$C$4/12 -> 563.8778846 | O41: 6766.534615
A42: 2013 | B42: Chemicals | C42: ='Operating-Overhead Cost'!$C$10/12 -> 200 | D42: ='Operating-Overhead Cost'!$C$10/12 -> 200 | E42: ='Operating-Overhead Cost'!$C$10/12 -> 200 | F42: ='Operating-Overhead Cost'!$C$10/12 -> 200 | G42: ='Operating-Overhead Cost'!$C$10/12 -> 200 | H42: ='Operating-Overhead Cost'!$C$10/12 -> 200 | I42: ='Operating-Overhead Cost'!$C$10/12 -> 200 | J42: ='Operating-Overhead Cost'!$C$10/12 -> 200 | K42: ='Operating-Overhead Cost'!$C$10/12 -> 200 | L42: ='Operating-Overhead Cost'!$C$10/12 -> 200 | M42: ='Operating-Overhead Cost'!$C$10/12 -> 200 | N42: ='Operating-Overhead Cost'!$C$10/12 -> 200 | O42: 2400
A43: 2013 | B43: Electricity | C43: ='Operating-Overhead Cost'!$C$5/12 -> 141.6574646 | D43: ='Operating-Overhead Cost'!$C$5/12 -> 141.6574646 | E43: ='Operating-Overhead Cost'!$C$5/12 -> 141.6574646 | F43: ='Operating-Overhead Cost'!$C$5/12 -> 141.6574646 | G43: ='Operating-Overhead Cost'!$C$5/12 -> 141.6574646 | H43: ='Operating-Overhead Cost'!$C$5/12 -> 141.6574646 | I43: ='Operating-Overhead Cost'!$C$5/12 -> 141.6574646 | J43: ='Operating-Overhead Cost'!$C$5/12 -> 141.6574646 | K43: ='Operating-Overhead Cost'!$C$5/12 -> 141.6574646 | L43: ='Operating-Overhead Cost'!$C$5/12 -> 141.6574646 | M43: ='Operating-Overhead Cost'!$C$5/12 -> 141.6574646 | N43: ='Operating-Overhead Cost'!$C$5/12 -> 141.6574646 | O43: 1699.889575
A44: 2013 | B44: Oxygen | C44: ='Operating-Overhead Cost'!$C$6/12 -> 40.76837106 | D44: ='Operating-Overhead Cost'!$C$6/12 -> 40.76837106 | E44: ='Operating-Overhead Cost'!$C$6/12 -> 40.76837106 | F44: ='Operating-Overhead Cost'!$C$6/12 -> 40.76837106 | G44: ='Operating-Overhead Cost'!$C$6/12 -> 40.76837106 | H44: ='Operating-Overhead Cost'!$C$6/12 -> 40.76837106 | I44: ='Operating-Overhead Cost'!$C$6/12 -> 40.76837106 | J44: ='Operating-Overhead Cost'!$C$6/12 -> 40.76837106 | K44: ='Operating-Overhead Cost'!$C$6/12 -> 40.76837106 | L44: ='Operating-Overhead Cost'!$C$6/12 -> 40.76837106 | M44: ='Operating-Overhead Cost'!$C$6/12 -> 40.76837106 | N44: ='Operating-Overhead Cost'!$C$6/12 -> 40.76837106 | O44: 489.2204527
A45: 2013 | B45: Hired Labor - Hours | C45: ='Operating-Overhead Cost'!$C$7/12 -> 2000 | D45: ='Operating-Overhead Cost'!$C$7/12 -> 2000 | E45: ='Operating-Overhead Cost'!$C$7/12 -> 2000 | F45: ='Operating-Overhead Cost'!$C$7/12 -> 2000 | G45: ='Operating-Overhead Cost'!$C$7/12 -> 2000 | H45: ='Operating-Overhead Cost'!$C$7/12 -> 2000 | I45: ='Operating-Overhead Cost'!$C$7/12 -> 2000 | J45: ='Operating-Overhead Cost'!$C$7/12 -> 2000 | K45: ='Operating-Overhead Cost'!$C$7/12 -> 2000 | L45: ='Operating-Overhead Cost'!$C$7/12 -> 2000 | M45: ='Operating-Overhead Cost'!$C$7/12 -> 2000 | N45: ='Operating-Overhead Cost'!$C$7/12 -> 2000 | O45: 24000
A46: 2013 | B46: Transportation Costs of Fingerlings | C46: ='Operating-Overhead Cost'!$C$8/12 -> 0 | D46: ='Operating-Overhead Cost'!$C$8/12 -> 0 | E46: ='Operating-Overhead Cost'!$C$8/12 -> 0 | F46: ='Operating-Overhead Cost'!$C$8/12 -> 0 | G46: ='Operating-Overhead Cost'!$C$8/12 -> 0 | H46: ='Operating-Overhead Cost'!$C$8/12 -> 0 | I46: ='Operating-Overhead Cost'!$C$8/12 -> 0 | J46: ='Operating-Overhead Cost'!$C$8/12 -> 0 | K46: ='Operating-Overhead Cost'!$C$8/12 -> 0 | L46: ='Operating-Overhead Cost'!$C$8/12 -> 0 | M46: ='Operating-Overhead Cost'!$C$8/12 -> 0 | N46: ='Operating-Overhead Cost'!$C$8/12 -> 0 | O46: 0
A47: 2013 | B47: Transportation Costs to Market | C47: ='Operating-Overhead Cost'!$C$9/12 -> 0 | D47: ='Operating-Overhead Cost'!$C$9/12 -> 0 | E47: ='Operating-Overhead Cost'!$C$9/12 -> 0 | F47: ='Operating-Overhead Cost'!$C$9/12 -> 0 | G47: ='Operating-Overhead Cost'!$C$9/12 -> 0 | H47: ='Operating-Overhead Cost'!$C$9/12 -> 0 | I47: ='Operating-Overhead Cost'!$C$9/12 -> 0 | J47: ='Operating-Overhead Cost'!$C$9/12 -> 0 | K47: ='Operating-Overhead Cost'!$C$9/12 -> 0 | L47: ='Operating-Overhead Cost'!$C$9/12 -> 0 | M47: ='Operating-Overhead Cost'!$C$9/12 -> 0 | N47: ='Operating-Overhead Cost'!$C$9/12 -> 0 | O47: 0
A48: 2013 | B48: Miscellaneous | O48: =5%*(O49+O56) -> 2855.761865
A49: 2013 | B49: Total Variable Cost | C49: =SUM(C40:C48) -> 4334.185342 | D49: 4334.185342 | E49: 4334.185342 | F49: 4334.185342 | G49: 4334.185342 | H49: 4334.185342 | I49: 4334.185342 | J49: 4334.185342 | K49: 4334.185342 | L49: 4334.185342 | M49: 4334.185342 | N49: 4334.185342 | O49: =SUM(O40:O47) -> 52010.2241
A50: 2013
A51: 2013 | B51: Overhead Costs
A52: 2013 | B52: Repair & maintenance | C52: ='Enter Operation Parameters Here'!$D$68/12 -> 208.7085 | D52: ='Enter Operation Parameters Here'!$D$68/12 -> 208.7085 | E52: ='Enter Operation Parameters Here'!$D$68/12 -> 208.7085 | F52: ='Enter Operation Parameters Here'!$D$68/12 -> 208.7085 | G52: ='Enter Operation Parameters Here'!$D$68/12 -> 208.7085 | H52: ='Enter Operation Parameters Here'!$D$68/12 -> 208.7085 | I52: ='Enter Operation Parameters Here'!$D$68/12 -> 208.7085 | J52: ='Enter Operation Parameters Here'!$D$68/12 -> 208.7085 | K52: ='Enter Operation Parameters Here'!$D$68/12 -> 208.7085 | L52: ='Enter Operation Parameters Here'!$D$68/12 -> 208.7085 | M52: ='Enter Operation Parameters Here'!$D$68/12 -> 208.7085 | N52: ='Enter Operation Parameters Here'!$D$68/12 -> 208.7085 | O52: =SUM(C52:N52) -> 2504.502
A53: 2013 | B53: Insurance | C53: ='Enter Operation Parameters Here'!$G$69/12 -> 0 | D53: ='Enter Operation Parameters Here'!$G$69/12 -> 0 | E53: ='Enter Operation Parameters Here'!$G$69/12 -> 0 | F53: ='Enter Operation Parameters Here'!$G$69/12 -> 0 | G53: ='Enter Operation Parameters Here'!$G$69/12 -> 0 | H53: ='Enter Operation Parameters Here'!$G$69/12 -> 0 | I53: ='Enter Operation Parameters Here'!$G$69/12 -> 0 | J53: ='Enter Operation Parameters Here'!$G$69/12 -> 0 | K53: ='Enter Operation Parameters Here'!$G$69/12 -> 0 | L53: ='Enter Operation Parameters Here'!$G$69/12 -> 0 | M53: ='Enter Operation Parameters Here'!$G$69/12 -> 0 | N53: ='Enter Operation Parameters Here'!$G$69/12 -> 0 | O53: =SUM(C53:N53) -> 0
A54: 2013 | B54: Adminstration/Management - legal fees, professional services, etc. | C54: ='Operating-Overhead Cost'!$C$15/12 -> 216.7092671 | D54: ='Operating-Overhead Cost'!$C$15/12 -> 216.7092671 | E54: ='Operating-Overhead Cost'!$C$15/12 -> 216.7092671 | F54: ='Operating-Overhead Cost'!$C$15/12 -> 216.7092671 | G54: ='Operating-Overhead Cost'!$C$15/12 -> 216.7092671 | H54: ='Operating-Overhead Cost'!$C$15/12 -> 216.7092671 | I54: ='Operating-Overhead Cost'!$C$15/12 -> 216.7092671 | J54: ='Operating-Overhead Cost'!$C$15/12 -> 216.7092671 | K54: ='Operating-Overhead Cost'!$C$15/12 -> 216.7092671 | L54: ='Operating-Overhead Cost'!$C$15/12 -> 216.7092671 | M54: ='Operating-Overhead Cost'!$C$15/12 -> 216.7092671 | N54: ='Operating-Overhead Cost'!$C$15/12 -> 216.7092671 | O54: =SUM(C54:N54) -> 2600.511205
A55: 2013 | B55: Other | C55: ='Enter Operation Parameters Here'!$G$71/12 -> 0 | D55: ='Enter Operation Parameters Here'!$G$71/12 -> 0 | E55: ='Enter Operation Parameters Here'!$G$71/12 -> 0 | F55: ='Enter Operation Parameters Here'!$G$71/12 -> 0 | G55: ='Enter Operation Parameters Here'!$G$71/12 -> 0 | H55: ='Enter Operation Parameters Here'!$G$71/12 -> 0 | I55: ='Enter Operation Parameters Here'!$G$71/12 -> 0 | J55: ='Enter Operation Parameters Here'!$G$71/12 -> 0 | K55: ='Enter Operation Parameters Here'!$G$71/12 -> 0 | L55: ='Enter Operation Parameters Here'!$G$71/12 -> 0 | M55: ='Enter Operation Parameters Here'!$G$71/12 -> 0 | N55: ='Enter Operation Parameters Here'!$G$71/12 -> 0 | O55: =SUM(C55:N55) -> 0
A56: 2013 | B56: Total Overhead Costs | C56: =SUM(C52:C55) -> 425.4177671 | D56: =SUM(D52:D55) -> 425.4177671 | E56: 425.4177671 | F56: 425.4177671 | G56: 425.4177671 | H56: 425.4177671 | I56: 425.4177671 | J56: 425.4177671 | K56: 425.4177671 | L56: 425.4177671 | M56: 425.4177671 | N56: 425.4177671 | O56: =SUM(O52:O55) -> 5105.013205
A57: 2013
A58: 2013 | B58: Loan | C58: ='Enter Operation Parameters Here'!$N$81/12 -> 1525.04 | D58: ='Enter Operation Parameters Here'!$N$81/12 -> 1525.04 | E58: ='Enter Operation Parameters Here'!$N$81/12 -> 1525.04 | F58: ='Enter Operation Parameters Here'!$N$81/12 -> 1525.04 | G58: ='Enter Operation Parameters Here'!$N$81/12 -> 1525.04 | H58: ='Enter Operation Parameters Here'!$N$81/12 -> 1525.04 | I58: ='Enter Operation Parameters Here'!$N$81/12 -> 1525.04 | J58: ='Enter Operation Parameters Here'!$N$81/12 -> 1525.04 | K58: ='Enter Operation Parameters Here'!$N$81/12 -> 1525.04 | L58: ='Enter Operation Parameters Here'!$N$81/12 -> 1525.04 | M58: ='Enter Operation Parameters Here'!$N$81/12 -> 1525.04 | N58: ='Enter Operation Parameters Here'!$N$81/12 -> 1525.04 | O58: =SUM(C58:N58) -> 18300.48
A59: 2013
A60: 2013 | B60: Cash Flow | C60: =C37-SUM(C49,C56,C58)+N30 -> -12198.03677 | D60: =D37-SUM(D49,D56,D58)+C60 -> -11871.9982 | E60: -11545.95962 | F60: -11219.92105 | G60: -10893.88248 | H60: -10567.8439 | I60: -10241.80533 | J60: -9915.766756 | K60: -9589.728183 | L60: -9263.68961 | M60: -8937.651037 | N60: =N37-SUM(N49,N56,N58)+M60 -> -8611.612464
B62: YEAR 3 | C62: YEAR 3 | Q62: look 4 leap year
C63: January | D63: February | E63: March | F63: April | G63: May | H63: June | I63: July | J63: August | K63: September | L63: October | M63: November | N63: December
A64: =A34+1 -> 2014 | B64: Gross Receipts:
A65: =A35+1 -> 2014 | B65: Fish sale | C65: =IF('Enter Systems Parameters Here'!B$45="Harvest", 'Enter Operation Parameters Here'!$D$84*'Enter Operation Parameters Here'!$G$44,0) -> 6610.681682 | D65: =IF('Enter Systems Parameters Here'!C$45="Harvest", 'Enter Operation Parameters Here'!$D$84*'Enter Operation Parameters Here'!$G$44,0) -> 6610.681682 | E65: =IF('Enter Systems Parameters Here'!D$45="Harvest", 'Enter Operation Parameters Here'!$D$84*'Enter Operation Parameters Here'!$G$44,0) -> 6610.681682 | F65: =IF('Enter Systems Parameters Here'!E$45="Harvest", 'Enter Operation Parameters Here'!$D$84*'Enter Operation Parameters Here'!$G$44,0) -> 6610.681682 | G65: =IF('Enter Systems Parameters Here'!F$45="Harvest", 'Enter Operation Parameters Here'!$D$84*'Enter Operation Parameters Here'!$G$44,0) -> 6610.681682 | H65: =IF('Enter Systems Parameters Here'!G$45="Harvest", 'Enter Operation Parameters Here'!$D$84*'Enter Operation Parameters Here'!$G$44,0) -> 6610.681682 | I65: =IF('Enter Systems Parameters Here'!H$45="Harvest", 'Enter Operation Parameters Here'!$D$84*'Enter Operation Parameters Here'!$G$44,0) -> 6610.681682 | J65: =IF('Enter Systems Parameters Here'!I$45="Harvest", 'Enter Operation Parameters Here'!$D$84*'Enter Operation Parameters Here'!$G$44,0) -> 6610.681682 | K65: =IF('Enter Systems Parameters Here'!J$45="Harvest", 'Enter Operation Parameters Here'!$D$84*'Enter Operation Parameters Here'!$G$44,0) -> 6610.681682 | L65: =IF('Enter Systems Parameters Here'!K$45="Harvest", 'Enter Operation Parameters Here'!$D$84*'Enter Operation Parameters Here'!$G$44,0) -> 6610.681682 | M65: =IF('Enter Systems Parameters Here'!L$45="Harvest", 'Enter Operation Parameters Here'!$D$84*'Enter Operation Parameters Here'!$G$44,0) -> 6610.681682 | N65: =IF('Enter Systems Parameters Here'!M$45="Harvest", 'Enter Operation Parameters Here'!$D$84*'Enter Operation Parameters Here'!$G$44,0) -> 6610.681682 | O65: =SUM(C65:N65) -> 79328.18019
A66: =A36+1 -> 2014 | B66: Miscellaneous Receipts | O66: =SUM(C66:N66) -> 0
A67: =A37+1 -> 2014 | B67: Total Receipts | C67: =SUM(C65:C66) -> 6610.681682 | D67: =SUM(D65:D66) -> 6610.681682 | E67: 6610.681682 | F67: 6610.681682 | G67: 6610.681682 | H67: 6610.681682 | I67: 6610.681682 | J67: 6610.681682 | K67: 6610.681682 | L67: 6610.681682 | M67: 6610.681682 | N67: 6610.681682 | O67: =SUM(C67:N67) -> 79328.18019
A68: 2014
A69: 2014 | B69: Variable Inputs:
A70: 2014 | B70: Fingerlings (4") | C70: =IF('Enter Systems Parameters Here'!B$44="Stock nursery",'Enter Operation Parameters Here'!$D$54*'Enter Operation Parameters Here'!$D$41,0) -> 1387.881622 | D70: =IF('Enter Systems Parameters Here'!C$44="Stock nursery",'Enter Operation Parameters Here'!$D$54*'Enter Operation Parameters Here'!$D$41,0) -> 1387.881622 | E70: =IF('Enter Systems Parameters Here'!D$44="Stock nursery",'Enter Operation Parameters Here'!$D$54*'Enter Operation Parameters Here'!$D$41,0) -> 1387.881622 | F70: =IF('Enter Systems Parameters Here'!E$44="Stock nursery",'Enter Operation Parameters Here'!$D$54*'Enter Operation Parameters Here'!$D$41,0) -> 1387.881622 | G70: =IF('Enter Systems Parameters Here'!F$44="Stock nursery",'Enter Operation Parameters Here'!$D$54*'Enter Operation Parameters Here'!$D$41,0) -> 1387.881622 | H70: =IF('Enter Systems Parameters Here'!G$44="Stock nursery",'Enter Operation Parameters Here'!$D$54*'Enter Operation Parameters Here'!$D$41,0) -> 1387.881622 | I70: =IF('Enter Systems Parameters Here'!H$44="Stock nursery",'Enter Operation Parameters Here'!$D$54*'Enter Operation Parameters Here'!$D$41,0) -> 1387.881622 | J70: =IF('Enter Systems Parameters Here'!I$44="Stock nursery",'Enter Operation Parameters Here'!$D$54*'Enter Operation Parameters Here'!$D$41,0) -> 1387.881622 | K70: =IF('Enter Systems Parameters Here'!J$44="Stock nursery",'Enter Operation Parameters Here'!$D$54*'Enter Operation Parameters Here'!$D$41,0) -> 1387.881622 | L70: =IF('Enter Systems Parameters Here'!K$44="Stock nursery",'Enter Operation Parameters Here'!$D$54*'Enter Operation Parameters Here'!$D$41,0) -> 1387.881622 | M70: =IF('Enter Systems Parameters Here'!L$44="Stock nursery",'Enter Operation Parameters Here'!$D$54*'Enter Operation Parameters Here'!$D$41,0) -> 1387.881622 | N70: =IF('Enter Systems Parameters Here'!M$44="Stock nursery",'Enter Operation Parameters Here'!$D$54*'Enter Operation Parameters Here'!$D$41,0) -> 1387.881622 | O70: =SUM(C70:N70) -> 16654.57946
A71: 2014 | B71: Feed | C71: ='Operating-Overhead Cost'!$D$4/12 -> 563.8778846 | D71: ='Operating-Overhead Cost'!$D$4/12 -> 563.8778846 | E71: ='Operating-Overhead Cost'!$D$4/12 -> 563.8778846 | F71: ='Operating-Overhead Cost'!$D$4/12 -> 563.8778846 | G71: ='Operating-Overhead Cost'!$D$4/12 -> 563.8778846 | H71: ='Operating-Overhead Cost'!$D$4/12 -> 563.8778846 | I71: ='Operating-Overhead Cost'!$D$4/12 -> 563.8778846 | J71: ='Operating-Overhead Cost'!$D$4/12 -> 563.8778846 | K71: ='Operating-Overhead Cost'!$D$4/12 -> 563.8778846 | L71: ='Operating-Overhead Cost'!$D$4/12 -> 563.8778846 | M71: ='Operating-Overhead Cost'!$D$4/12 -> 563.8778846 | N71: ='Operating-Overhead Cost'!$D$4/12 -> 563.8778846 | O71: 6766.534615
A72: 2014 | B72: Chemicals | C72: ='Operating-Overhead Cost'!$D$10/12 -> 200 | D72: ='Operating-Overhead Cost'!$D$10/12 -> 200 | E72: ='Operating-Overhead Cost'!$D$10/12 -> 200 | F72: ='Operating-Overhead Cost'!$D$10/12 -> 200 | G72: ='Operating-Overhead Cost'!$D$10/12 -> 200 | H72: ='Operating-Overhead Cost'!$D$10/12 -> 200 | I72: ='Operating-Overhead Cost'!$D$10/12 -> 200 | J72: ='Operating-Overhead Cost'!$D$10/12 -> 200 | K72: ='Operating-Overhead Cost'!$D$10/12 -> 200 | L72: ='Operating-Overhead Cost'!$D$10/12 -> 200 | M72: ='Operating-Overhead Cost'!$D$10/12 -> 200 | N72: ='Operating-Overhead Cost'!$D$10/12 -> 200 | O72: 2400
A73: 2014 | B73: Electricity | C73: ='Operating-Overhead Cost'!$D$5/12 -> 141.6574646 | D73: ='Operating-Overhead Cost'!$D$5/12 -> 141.6574646 | E73: ='Operating-Overhead Cost'!$D$5/12 -> 141.6574646 | F73: ='Operating-Overhead Cost'!$D$5/12 -> 141.6574646 | G73: ='Operating-Overhead Cost'!$D$5/12 -> 141.6574646 | H73: ='Operating-Overhead Cost'!$D$5/12 -> 141.6574646 | I73: ='Operating-Overhead Cost'!$D$5/12 -> 141.6574646 | J73: ='Operating-Overhead Cost'!$D$5/12 -> 141.6574646 | K73: ='Operating-Overhead Cost'!$D$5/12 -> 141.6574646 | L73: ='Operating-Overhead Cost'!$D$5/12 -> 141.6574646 | M73: ='Operating-Overhead Cost'!$D$5/12 -> 141.6574646 | N73: ='Operating-Overhead Cost'!$D$5/12 -> 141.6574646 | O73: 1699.889575
A74: 2014 | B74: Oxygen | C74: ='Operating-Overhead Cost'!$D$6/12 -> 40.76837106 | D74: ='Operating-Overhead Cost'!$D$6/12 -> 40.76837106 | E74: ='Operating-Overhead Cost'!$D$6/12 -> 40.76837106 | F74: ='Operating-Overhead Cost'!$D$6/12 -> 40.76837106 | G74: ='Operating-Overhead Cost'!$D$6/12 -> 40.76837106 | H74: ='Operating-Overhead Cost'!$D$6/12 -> 40.76837106 | I74: ='Operating-Overhead Cost'!$D$6/12 -> 40.76837106 | J74: ='Operating-Overhead Cost'!$D$6/12 -> 40.76837106 | K74: ='Operating-Overhead Cost'!$D$6/12 -> 40.76837106 | L74: ='Operating-Overhead Cost'!$D$6/12 -> 40.76837106 | M74: ='Operating-Overhead Cost'!$D$6/12 -> 40.76837106 | N74: ='Operating-Overhead Cost'!$D$6/12 -> 40.76837106 | O74: 489.2204527
A75: =A45+1 -> 2014 | B75: Hired Labor - Hours | C75: ='Operating-Overhead Cost'!$D$7/12 -> 2000 | D75: ='Operating-Overhead Cost'!$D$7/12 -> 2000 | E75: ='Operating-Overhead Cost'!$D$7/12 -> 2000 | F75: ='Operating-Overhead Cost'!$D$7/12 -> 2000 | G75: ='Operating-Overhead Cost'!$D$7/12 -> 2000 | H75: ='Operating-Overhead Cost'!$D$7/12 -> 2000 | I75: ='Operating-Overhead Cost'!$D$7/12 -> 2000 | J75: ='Operating-Overhead Cost'!$D$7/12 -> 2000 | K75: ='Operating-Overhead Cost'!$D$7/12 -> 2000 | L75: ='Operating-Overhead Cost'!$D$7/12 -> 2000 | M75: ='Operating-Overhead Cost'!$D$7/12 -> 2000 | N75: ='Operating-Overhead Cost'!$D$7/12 -> 2000 | O75: 24000
A76: 2014 | B76: Transportation Costs of Fingerlings | C76: ='Operating-Overhead Cost'!$D$8/12 -> 0 | D76: ='Operating-Overhead Cost'!$D$8/12 -> 0 | E76: ='Operating-Overhead Cost'!$D$8/12 -> 0 | F76: ='Operating-Overhead Cost'!$D$8/12 -> 0 | G76: ='Operating-Overhead Cost'!$D$8/12 -> 0 | H76: ='Operating-Overhead Cost'!$D$8/12 -> 0 | I76: ='Operating-Overhead Cost'!$D$8/12 -> 0 | J76: ='Operating-Overhead Cost'!$D$8/12 -> 0 | K76: ='Operating-Overhead Cost'!$D$8/12 -> 0 | L76: ='Operating-Overhead Cost'!$D$8/12 -> 0 | M76: ='Operating-Overhead Cost'!$D$8/12 -> 0 | N76: ='Operating-Overhead Cost'!$D$8/12 -> 0 | O76: 0
A77: 2014 | B77: Transportation Costs to Market | C77: ='Operating-Overhead Cost'!$D$9/12 -> 0 | D77: ='Operating-Overhead Cost'!$D$9/12 -> 0 | E77: ='Operating-Overhead Cost'!$D$9/12 -> 0 | F77: ='Operating-Overhead Cost'!$D$9/12 -> 0 | G77: ='Operating-Overhead Cost'!$D$9/12 -> 0 | H77: ='Operating-Overhead Cost'!$D$9/12 -> 0 | I77: ='Operating-Overhead Cost'!$D$9/12 -> 0 | J77: ='Operating-Overhead Cost'!$D$9/12 -> 0 | K77: ='Operating-Overhead Cost'!$D$9/12 -> 0 | L77: ='Operating-Overhead Cost'!$D$9/12 -> 0 | M77: ='Operating-Overhead Cost'!$D$9/12 -> 0 | N77: ='Operating-Overhead Cost'!$D$9/12 -> 0 | O77: 0
A78: 2014 | B78: Miscellaneous | O78: =5%*(O79+O86) -> 2855.761865
A79: 2014 | B79: Total Variable Cost | C79: =SUM(C70:C78) -> 4334.185342 | D79: 4334.185342 | E79: 4334.185342 | F79: 4334.185342 | G79: 4334.185342 | H79: 4334.185342 | I79: 4334.185342 | J79: 4334.185342 | K79: 4334.185342 | L79: 4334.185342 | M79: 4334.185342 | N79: 4334.185342 | O79: =SUM(O70:O77) -> 52010.2241
A80: 2014
A81: 2014 | B81: Overhead Costs
A82: 2014 | B82: Repair & maintenance | C82: ='Enter Operation Parameters Here'!$D$68/12 -> 208.7085 | D82: ='Enter Operation Parameters Here'!$D$68/12 -> 208.7085 | E82: ='Enter Operation Parameters Here'!$D$68/12 -> 208.7085 | F82: ='Enter Operation Parameters Here'!$D$68/12 -> 208.7085 | G82: ='Enter Operation Parameters Here'!$D$68/12 -> 208.7085 | H82: ='Enter Operation Parameters Here'!$D$68/12 -> 208.7085 | I82: ='Enter Operation Parameters Here'!$D$68/12 -> 208.7085 | J82: ='Enter Operation Parameters Here'!$D$68/12 -> 208.7085 | K82: ='Enter Operation Parameters Here'!$D$68/12 -> 208.7085 | L82: ='Enter Operation Parameters Here'!$D$68/12 -> 208.7085 | M82: ='Enter Operation Parameters Here'!$D$68/12 -> 208.7085 | N82: ='Enter Operation Parameters Here'!$D$68/12 -> 208.7085 | O82: =SUM(C82:N82) -> 2504.502
A83: 2014 | B83: Insurance | C83: ='Enter Operation Parameters Here'!$G$69/12 -> 0 | D83: ='Enter Operation Parameters Here'!$G$69/12 -> 0 | E83: ='Enter Operation Parameters Here'!$G$69/12 -> 0 | F83: ='Enter Operation Parameters Here'!$G$69/12 -> 0 | G83: ='Enter Operation Parameters Here'!$G$69/12 -> 0 | H83: ='Enter Operation Parameters Here'!$G$69/12 -> 0 | I83: ='Enter Operation Parameters Here'!$G$69/12 -> 0 | J83: ='Enter Operation Parameters Here'!$G$69/12 -> 0 | K83: ='Enter Operation Parameters Here'!$G$69/12 -> 0 | L83: ='Enter Operation Parameters Here'!$G$69/12 -> 0 | M83: ='Enter Operation Parameters Here'!$G$69/12 -> 0 | N83: ='Enter Operation Parameters Here'!$G$69/12 -> 0 | O83: =SUM(C83:N83) -> 0
A84: 2014 | B84: Adminstration/Management - legal fees, professional services, etc. | C84: ='Operating-Overhead Cost'!$D$15/12 -> 216.7092671 | D84: ='Operating-Overhead Cost'!$D$15/12 -> 216.7092671 | E84: ='Operating-Overhead Cost'!$D$15/12 -> 216.7092671 | F84: ='Operating-Overhead Cost'!$D$15/12 -> 216.7092671 | G84: ='Operating-Overhead Cost'!$D$15/12 -> 216.7092671 | H84: ='Operating-Overhead Cost'!$D$15/12 -> 216.7092671 | I84: ='Operating-Overhead Cost'!$D$15/12 -> 216.7092671 | J84: ='Operating-Overhead Cost'!$D$15/12 -> 216.7092671 | K84: ='Operating-Overhead Cost'!$D$15/12 -> 216.7092671 | L84: ='Operating-Overhead Cost'!$D$15/12 -> 216.7092671 | M84: ='Operating-Overhead Cost'!$D$15/12 -> 216.7092671 | N84: ='Operating-Overhead Cost'!$D$15/12 -> 216.7092671 | O84: =SUM(C84:N84) -> 2600.511205
A85: 2014 | B85: Other | C85: ='Enter Operation Parameters Here'!$G$71/12 -> 0 | D85: ='Enter Operation Parameters Here'!$G$71/12 -> 0 | E85: ='Enter Operation Parameters Here'!$G$71/12 -> 0 | F85: ='Enter Operation Parameters Here'!$G$71/12 -> 0 | G85: ='Enter Operation Parameters Here'!$G$71/12 -> 0 | H85: ='Enter Operation Parameters Here'!$G$71/12 -> 0 | I85: ='Enter Operation Parameters Here'!$G$71/12 -> 0 | J85: ='Enter Operation Parameters Here'!$G$71/12 -> 0 | K85: ='Enter Operation Parameters Here'!$G$71/12 -> 0 | L85: ='Enter Operation Parameters Here'!$G$71/12 -> 0 | M85: ='Enter Operation Parameters Here'!$G$71/12 -> 0 | N85: ='Enter Operation Parameters Here'!$G$71/12 -> 0 | O85: =SUM(C85:N85) -> 0
A86: 2014 | B86: Total Overhead Costs | C86: =SUM(C82:C85) -> 425.4177671 | D86: =SUM(D82:D85) -> 425.4177671 | E86: 425.4177671 | F86: 425.4177671 | G86: 425.4177671 | H86: 425.4177671 | I86: 425.4177671 | J86: 425.4177671 | K86: 425.4177671 | L86: 425.4177671 | M86: 425.4177671 | N86: 425.4177671 | O86: =SUM(O82:O85) -> 5105.013205
A87: 2014
A88: 2014 | B88: Loan | C88: ='Enter Operation Parameters Here'!$O$81/12 -> 1525.04 | D88: ='Enter Operation Parameters Here'!$O$81/12 -> 1525.04 | E88: ='Enter Operation Parameters Here'!$O$81/12 -> 1525.04 | F88: ='Enter Operation Parameters Here'!$O$81/12 -> 1525.04 | G88: ='Enter Operation Parameters Here'!$O$81/12 -> 1525.04 | H88: ='Enter Operation Parameters Here'!$O$81/12 -> 1525.04 | I88: ='Enter Operation Parameters Here'!$O$81/12 -> 1525.04 | J88: ='Enter Operation Parameters Here'!$O$81/12 -> 1525.04 | K88: ='Enter Operation Parameters Here'!$O$81/12 -> 1525.04 | L88: ='Enter Operation Parameters Here'!$O$81/12 -> 1525.04 | M88: ='Enter Operation Parameters Here'!$O$81/12 -> 1525.04 | N88: ='Enter Operation Parameters Here'!$O$81/12 -> 1525.04 | O88: =SUM(C88:N88) -> 18300.48
A89: 2014
A90: 2014 | B90: Cash Flow | C90: =C67-SUM(C79,C86,C88)+N60 -> -8285.573891 | D90: =D67-SUM(D79,D86,D88)+C90 -> -7959.535318 | E90: -7633.496744 | F90: -7307.458171 | G90: -6981.419598 | H90: -6655.381025 | I90: -6329.342452 | J90: -6003.303879 | K90: -5677.265306 | L90: -5351.226733 | M90: -5025.188159 | N90: -4699.149586
B92: YEAR 4 | C92: YEAR 4
C93: January | D93: February | E93: March | F93: April | G93: May | H93: June | I93: July | J93: August | K93: September | L93: October | M93: November | N93: December
A94: 2015 | B94: Gross Receipts:
A95: 2015 | B95: Fish sale | C95: =IF('Enter Systems Parameters Here'!B$48="Harvest", 'Enter Operation Parameters Here'!$D$84*'Enter Operation Parameters Here'!$G$44,0) -> 6610.681682 | D95: =IF('Enter Systems Parameters Here'!C$48="Harvest", 'Enter Operation Parameters Here'!$D$84*'Enter Operation Parameters Here'!$G$44,0) -> 6610.681682 | E95: =IF('Enter Systems Parameters Here'!D$48="Harvest", 'Enter Operation Parameters Here'!$D$84*'Enter Operation Parameters Here'!$G$44,0) -> 6610.681682 | F95: =IF('Enter Systems Parameters Here'!E$48="Harvest", 'Enter Operation Parameters Here'!$D$84*'Enter Operation Parameters Here'!$G$44,0) -> 6610.681682 | G95: =IF('Enter Systems Parameters Here'!F$48="Harvest", 'Enter Operation Parameters Here'!$D$84*'Enter Operation Parameters Here'!$G$44,0) -> 6610.681682 | H95: =IF('Enter Systems Parameters Here'!G$48="Harvest", 'Enter Operation Parameters Here'!$D$84*'Enter Operation Parameters Here'!$G$44,0) -> 6610.681682 | I95: =IF('Enter Systems Parameters Here'!H$48="Harvest", 'Enter Operation Parameters Here'!$D$84*'Enter Operation Parameters Here'!$G$44,0) -> 6610.681682 | J95: =IF('Enter Systems Parameters Here'!I$48="Harvest", 'Enter Operation Parameters Here'!$D$84*'Enter Operation Parameters Here'!$G$44,0) -> 6610.681682 | K95: =IF('Enter Systems Parameters Here'!J$48="Harvest", 'Enter Operation Parameters Here'!$D$84*'Enter Operation Parameters Here'!$G$44,0) -> 6610.681682 | L95: =IF('Enter Systems Parameters Here'!K$48="Harvest", 'Enter Operation Parameters Here'!$D$84*'Enter Operation Parameters Here'!$G$44,0) -> 6610.681682 | M95: =IF('Enter Systems Parameters Here'!L$48="Harvest", 'Enter Operation Parameters Here'!$D$84*'Enter Operation Parameters Here'!$G$44,0) -> 6610.681682 | N95: =IF('Enter Systems Parameters Here'!M$48="Harvest", 'Enter Operation Parameters Here'!$D$84*'Enter Operation Parameters Here'!$G$44,0) -> 6610.681682 | O95: =SUM(C95:N95) -> 79328.18019
A96: 2015 | B96: Miscellaneous Receipts | O96: =SUM(C96:N96) -> 0
A97: 2015 | B97: Total Receipts | C97: =SUM(C95:C96) -> 6610.681682 | D97: =SUM(D95:D96) -> 6610.681682 | E97: 6610.681682 | F97: 6610.681682 | G97: 6610.681682 | H97: 6610.681682 | I97: 6610.681682 | J97: 6610.681682 | K97: 6610.681682 | L97: 6610.681682 | M97: 6610.681682 | N97: 6610.681682 | O97: =SUM(C97:N97) -> 79328.18019
A98: 2015
A99: 2015 | B99: Variable Inputs:
A100: =A70+1 -> 2015 | B100: Fingerlings (4") | C100: =IF('Enter Systems Parameters Here'!B$47="Stock nursery",'Enter Operation Parameters Here'!$D$54*'Enter Operation Parameters Here'!$D$41,0) -> 1387.881622 | D100: =IF('Enter Systems Parameters Here'!C$47="Stock nursery",'Enter Operation Parameters Here'!$D$54*'Enter Operation Parameters Here'!$D$41,0) -> 1387.881622 | E100: =IF('Enter Systems Parameters Here'!D$47="Stock nursery",'Enter Operation Parameters Here'!$D$54*'Enter Operation Parameters Here'!$D$41,0) -> 1387.881622 | F100: =IF('Enter Systems Parameters Here'!E$47="Stock nursery",'Enter Operation Parameters Here'!$D$54*'Enter Operation Parameters Here'!$D$41,0) -> 1387.881622 | G100: =IF('Enter Systems Parameters Here'!F$47="Stock nursery",'Enter Operation Parameters Here'!$D$54*'Enter Operation Parameters Here'!$D$41,0) -> 1387.881622 | H100: =IF('Enter Systems Parameters Here'!G$47="Stock nursery",'Enter Operation Parameters Here'!$D$54*'Enter Operation Parameters Here'!$D$41,0) -> 1387.881622 | I100: =IF('Enter Systems Parameters Here'!H$47="Stock nursery",'Enter Operation Parameters Here'!$D$54*'Enter Operation Parameters Here'!$D$41,0) -> 1387.881622 | J100: =IF('Enter Systems Parameters Here'!I$47="Stock nursery",'Enter Operation Parameters Here'!$D$54*'Enter Operation Parameters Here'!$D$41,0) -> 1387.881622 | K100: =IF('Enter Systems Parameters Here'!J$47="Stock nursery",'Enter Operation Parameters Here'!$D$54*'Enter Operation Parameters Here'!$D$41,0) -> 1387.881622 | L100: =IF('Enter Systems Parameters Here'!K$47="Stock nursery",'Enter Operation Parameters Here'!$D$54*'Enter Operation Parameters Here'!$D$41,0) -> 1387.881622 | M100: =IF('Enter Systems Parameters Here'!L$47="Stock nursery",'Enter Operation Parameters Here'!$D$54*'Enter Operation Parameters Here'!$D$41,0) -> 1387.881622 | N100: =IF('Enter Systems Parameters Here'!M$47="Stock nursery",'Enter Operation Parameters Here'!$D$54*'Enter Operation Parameters Here'!$D$41,0) -> 1387.881622 | O100: =SUM(C100:N100) -> 16654.57946
A101: =A71+1 -> 2015 | B101: Feed | C101: ='Operating-Overhead Cost'!$E$4/12 -> 563.8778846 | D101: ='Operating-Overhead Cost'!$E$4/12 -> 563.8778846 | E101: ='Operating-Overhead Cost'!$E$4/12 -> 563.8778846 | F101: ='Operating-Overhead Cost'!$E$4/12 -> 563.8778846 | G101: ='Operating-Overhead Cost'!$E$4/12 -> 563.8778846 | H101: ='Operating-Overhead Cost'!$E$4/12 -> 563.8778846 | I101: ='Operating-Overhead Cost'!$E$4/12 -> 563.8778846 | J101: ='Operating-Overhead Cost'!$E$4/12 -> 563.8778846 | K101: ='Operating-Overhead Cost'!$E$4/12 -> 563.8778846 | L101: ='Operating-Overhead Cost'!$E$4/12 -> 563.8778846 | M101: ='Operating-Overhead Cost'!$E$4/12 -> 563.8778846 | N101: ='Operating-Overhead Cost'!$E$4/12 -> 563.8778846 | O101: 6766.534615
A102: =A72+1 -> 2015 | B102: Chemicals | C102: ='Operating-Overhead Cost'!$E$10/12 -> 200 | D102: ='Operating-Overhead Cost'!$E$10/12 -> 200 | E102: ='Operating-Overhead Cost'!$E$10/12 -> 200 | F102: ='Operating-Overhead Cost'!$E$10/12 -> 200 | G102: ='Operating-Overhead Cost'!$E$10/12 -> 200 | H102: ='Operating-Overhead Cost'!$E$10/12 -> 200 | I102: ='Operating-Overhead Cost'!$E$10/12 -> 200 | J102: ='Operating-Overhead Cost'!$E$10/12 -> 200 | K102: ='Operating-Overhead Cost'!$E$10/12 -> 200 | L102: ='Operating-Overhead Cost'!$E$10/12 -> 200 | M102: ='Operating-Overhead Cost'!$E$10/12 -> 200 | N102: ='Operating-Overhead Cost'!$E$10/12 -> 200 | O102: 2400
A103: =A73+1 -> 2015 | B103: Electricity | C103: ='Operating-Overhead Cost'!$E$5/12 -> 141.6574646 | D103: ='Operating-Overhead Cost'!$E$5/12 -> 141.6574646 | E103: ='Operating-Overhead Cost'!$E$5/12 -> 141.6574646 | F103: ='Operating-Overhead Cost'!$E$5/12 -> 141.6574646 | G103: ='Operating-Overhead Cost'!$E$5/12 -> 141.6574646 | H103: ='Operating-Overhead Cost'!$E$5/12 -> 141.6574646 | I103: ='Operating-Overhead Cost'!$E$5/12 -> 141.6574646 | J103: ='Operating-Overhead Cost'!$E$5/12 -> 141.6574646 | K103: ='Operating-Overhead Cost'!$E$5/12 -> 141.6574646 | L103: ='Operating-Overhead Cost'!$E$5/12 -> 141.6574646 | M103: ='Operating-Overhead Cost'!$E$5/12 -> 141.6574646 | N103: ='Operating-Overhead Cost'!$E$5/12 -> 141.6574646 | O103: 1699.889575
A104: =A74+1 -> 2015 | B104: Oxygen | C104: ='Operating-Overhead Cost'!$E$6/12 -> 40.76837106 | D104: ='Operating-Overhead Cost'!$E$6/12 -> 40.76837106 | E104: ='Operating-Overhead Cost'!$E$6/12 -> 40.76837106 | F104: ='Operating-Overhead Cost'!$E$6/12 -> 40.76837106 | G104: ='Operating-Overhead Cost'!$E$6/12 -> 40.76837106 | H104: ='Operating-Overhead Cost'!$E$6/12 -> 40.76837106 | I104: ='Operating-Overhead Cost'!$E$6/12 -> 40.76837106 | J104: ='Operating-Overhead Cost'!$E$6/12 -> 40.76837106 | K104: ='Operating-Overhead Cost'!$E$6/12 -> 40.76837106 | L104: ='Operating-Overhead Cost'!$E$6/12 -> 40.76837106 | M104: ='Operating-Overhead Cost'!$E$6/12 -> 40.76837106 | N104: ='Operating-Overhead Cost'!$E$6/12 -> 40.76837106 | O104: 489.2204527
A105: =A75+1 -> 2015 | B105: Hired Labor - Hours | C105: ='Operating-Overhead Cost'!$E$7/12 -> 2000 | D105: ='Operating-Overhead Cost'!$E$7/12 -> 2000 | E105: ='Operating-Overhead Cost'!$E$7/12 -> 2000 | F105: ='Operating-Overhead Cost'!$E$7/12 -> 2000 | G105: ='Operating-Overhead Cost'!$E$7/12 -> 2000 | H105: ='Operating-Overhead Cost'!$E$7/12 -> 2000 | I105: ='Operating-Overhead Cost'!$E$7/12 -> 2000 | J105: ='Operating-Overhead Cost'!$E$7/12 -> 2000 | K105: ='Operating-Overhead Cost'!$E$7/12 -> 2000 | L105: ='Operating-Overhead Cost'!$E$7/12 -> 2000 | M105: ='Operating-Overhead Cost'!$E$7/12 -> 2000 | N105: ='Operating-Overhead Cost'!$E$7/12 -> 2000 | O105: 24000
A106: 2015 | B106: Transportation Costs of Fingerlings | C106: ='Operating-Overhead Cost'!$E$8/12 -> 0 | D106: ='Operating-Overhead Cost'!$E$8/12 -> 0 | E106: ='Operating-Overhead Cost'!$E$8/12 -> 0 | F106: ='Operating-Overhead Cost'!$E$8/12 -> 0 | G106: ='Operating-Overhead Cost'!$E$8/12 -> 0 | H106: ='Operating-Overhead Cost'!$E$8/12 -> 0 | I106: ='Operating-Overhead Cost'!$E$8/12 -> 0 | J106: ='Operating-Overhead Cost'!$E$8/12 -> 0 | K106: ='Operating-Overhead Cost'!$E$8/12 -> 0 | L106: ='Operating-Overhead Cost'!$E$8/12 -> 0 | M106: ='Operating-Overhead Cost'!$E$8/12 -> 0 | N106: ='Operating-Overhead Cost'!$E$8/12 -> 0 | O106: 0
A107: 2015 | B107: Transportation Costs to Market | C107: ='Operating-Overhead Cost'!$E$9/12 -> 0 | D107: ='Operating-Overhead Cost'!$E$9/12 -> 0 | E107: ='Operating-Overhead Cost'!$E$9/12 -> 0 | F107: ='Operating-Overhead Cost'!$E$9/12 -> 0 | G107: ='Operating-Overhead Cost'!$E$9/12 -> 0 | H107: ='Operating-Overhead Cost'!$E$9/12 -> 0 | I107: ='Operating-Overhead Cost'!$E$9/12 -> 0 | J107: ='Operating-Overhead Cost'!$E$9/12 -> 0 | K107: ='Operating-Overhead Cost'!$E$9/12 -> 0 | L107: ='Operating-Overhead Cost'!$E$9/12 -> 0 | M107: ='Operating-Overhead Cost'!$E$9/12 -> 0 | N107: ='Operating-Overhead Cost'!$E$9/12 -> 0 | O107: 0
A108: 2015 | B108: Miscellaneous | O108: =5%*(O109+O116) -> 2855.761865
A109: 2015 | B109: Total Variable Cost | C109: =SUM(C100:C108) -> 4334.185342 | D109: 4334.185342 | E109: 4334.185342 | F109: 4334.185342 | G109: 4334.185342 | H109: 4334.185342 | I109: 4334.185342 | J109: 4334.185342 | K109: 4334.185342 | L109: 4334.185342 | M109: 4334.185342 | N109: 4334.185342 | O109: =SUM(O100:O107) -> 52010.2241
A110: 2015
A111: 2015 | B111: Overhead Costs
A112: 2015 | B112: Repair & maintenance | C112: ='Enter Operation Parameters Here'!$D$68/12 -> 208.7085 | D112: ='Enter Operation Parameters Here'!$D$68/12 -> 208.7085 | E112: ='Enter Operation Parameters Here'!$D$68/12 -> 208.7085 | F112: ='Enter Operation Parameters Here'!$D$68/12 -> 208.7085 | G112: ='Enter Operation Parameters Here'!$D$68/12 -> 208.7085 | H112: ='Enter Operation Parameters Here'!$D$68/12 -> 208.7085 | I112: ='Enter Operation Parameters Here'!$D$68/12 -> 208.7085 | J112: ='Enter Operation Parameters Here'!$D$68/12 -> 208.7085 | K112: ='Enter Operation Parameters Here'!$D$68/12 -> 208.7085 | L112: ='Enter Operation Parameters Here'!$D$68/12 -> 208.7085 | M112: ='Enter Operation Parameters Here'!$D$68/12 -> 208.7085 | N112: ='Enter Operation Parameters Here'!$D$68/12 -> 208.7085 | O112: =SUM(C112:N112) -> 2504.502
A113: 2015 | B113: Insurance | C113: ='Enter Operation Parameters Here'!$G$69/12 -> 0 | D113: ='Enter Operation Parameters Here'!$G$69/12 -> 0 | E113: ='Enter Operation Parameters Here'!$G$69/12 -> 0 | F113: ='Enter Operation Parameters Here'!$G$69/12 -> 0 | G113: ='Enter Operation Parameters Here'!$G$69/12 -> 0 | H113: ='Enter Operation Parameters Here'!$G$69/12 -> 0 | I113: ='Enter Operation Parameters Here'!$G$69/12 -> 0 | J113: ='Enter Operation Parameters Here'!$G$69/12 -> 0 | K113: ='Enter Operation Parameters Here'!$G$69/12 -> 0 | L113: ='Enter Operation Parameters Here'!$G$69/12 -> 0 | M113: ='Enter Operation Parameters Here'!$G$69/12 -> 0 | N113: ='Enter Operation Parameters Here'!$G$69/12 -> 0 | O113: =SUM(C113:N113) -> 0
A114: 2015 | B114: Adminstration/Management - legal fees, professional services, etc. | C114: ='Operating-Overhead Cost'!$E$15/12 -> 216.7092671 | D114: ='Operating-Overhead Cost'!$E$15/12 -> 216.7092671 | E114: ='Operating-Overhead Cost'!$E$15/12 -> 216.7092671 | F114: ='Operating-Overhead Cost'!$E$15/12 -> 216.7092671 | G114: ='Operating-Overhead Cost'!$E$15/12 -> 216.7092671 | H114: ='Operating-Overhead Cost'!$E$15/12 -> 216.7092671 | I114: ='Operating-Overhead Cost'!$E$15/12 -> 216.7092671 | J114: ='Operating-Overhead Cost'!$E$15/12 -> 216.7092671 | K114: ='Operating-Overhead Cost'!$E$15/12 -> 216.7092671 | L114: ='Operating-Overhead Cost'!$E$15/12 -> 216.7092671 | M114: ='Operating-Overhead Cost'!$E$15/12 -> 216.7092671 | N114: ='Operating-Overhead Cost'!$E$15/12 -> 216.7092671 | O114: =SUM(C114:N114) -> 2600.511205
A115: 2015 | B115: Other | C115: ='Enter Operation Parameters Here'!$G$71/12 -> 0 | D115: ='Enter Operation Parameters Here'!$G$71/12 -> 0 | E115: ='Enter Operation Parameters Here'!$G$71/12 -> 0 | F115: ='Enter Operation Parameters Here'!$G$71/12 -> 0 | G115: ='Enter Operation Parameters Here'!$G$71/12 -> 0 | H115: ='Enter Operation Parameters Here'!$G$71/12 -> 0 | I115: ='Enter Operation Parameters Here'!$G$71/12 -> 0 | J115: ='Enter Operation Parameters Here'!$G$71/12 -> 0 | K115: ='Enter Operation Parameters Here'!$G$71/12 -> 0 | L115: ='Enter Operation Parameters Here'!$G$71/12 -> 0 | M115: ='Enter Operation Parameters Here'!$G$71/12 -> 0 | N115: ='Enter Operation Parameters Here'!$G$71/12 -> 0 | O115: =SUM(C115:N115) -> 0
A116: 2015 | B116: Total Overhead Costs | C116: =SUM(C112:C115) -> 425.4177671 | D116: =SUM(D112:D115) -> 425.4177671 | E116: 425.4177671 | F116: 425.4177671 | G116: 425.4177671 | H116: 425.4177671 | I116: 425.4177671 | J116: 425.4177671 | K116: 425.4177671 | L116: 425.4177671 | M116: 425.4177671 | N116: 425.4177671 | O116: =SUM(O112:O115) -> 5105.013205
A117: 2015
A118: 2015 | B118: Loan | C118: ='Enter Operation Parameters Here'!$P$81/12 -> 1525.04 | D118: ='Enter Operation Parameters Here'!$P$81/12 -> 1525.04 | E118: ='Enter Operation Parameters Here'!$P$81/12 -> 1525.04 | F118: ='Enter Operation Parameters Here'!$P$81/12 -> 1525.04 | G118: ='Enter Operation Parameters Here'!$P$81/12 -> 1525.04 | H118: ='Enter Operation Parameters Here'!$P$81/12 -> 1525.04 | I118: ='Enter Operation Parameters Here'!$P$81/12 -> 1525.04 | J118: ='Enter Operation Parameters Here'!$P$81/12 -> 1525.04 | K118: ='Enter Operation Parameters Here'!$P$81/12 -> 1525.04 | L118: ='Enter Operation Parameters Here'!$P$81/12 -> 1525.04 | M118: ='Enter Operation Parameters Here'!$P$81/12 -> 1525.04 | N118: ='Enter Operation Parameters Here'!$P$81/12 -> 1525.04 | O118: =SUM(C118:N118) -> 18300.48
A119: 2015
A120: 2015 | B120: Cash Flow | C120: =C97-SUM(C109,C116,C118)+N90 -> -4373.111013 | D120: =D97-SUM(D109,D116,D118)+C120 -> -4047.07244 | E120: -3721.033867 | F120: -3394.995294 | G120: -3068.956721 | H120: -2742.918148 | I120: -2416.879574 | J120: -2090.841001 | K120: -1764.802428 | L120: -1438.763855 | M120: -1112.725282 | N120: -786.6867089
B122: YEAR 5 | C122: YEAR 5
C123: January | D123: February | E123: March | F123: April | G123: May | H123: June | I123: July | J123: August | K123: September | L123: October | M123: November | N123: December
A124: 2016 | B124: Gross Receipts:
A125: 2016 | B125: Fish sale | C125: =IF('Enter Systems Parameters Here'!B$51="Harvest", 'Enter Operation Parameters Here'!$D$84*'Enter Operation Parameters Here'!$G$44,0) -> 6610.681682 | D125: =IF('Enter Systems Parameters Here'!C$51="Harvest", 'Enter Operation Parameters Here'!$D$84*'Enter Operation Parameters Here'!$G$44,0) -> 6610.681682 | E125: =IF('Enter Systems Parameters Here'!D$51="Harvest", 'Enter Operation Parameters Here'!$D$84*'Enter Operation Parameters Here'!$G$44,0) -> 6610.681682 | F125: =IF('Enter Systems Parameters Here'!E$51="Harvest", 'Enter Operation Parameters Here'!$D$84*'Enter Operation Parameters Here'!$G$44,0) -> 6610.681682 | G125: =IF('Enter Systems Parameters Here'!F$51="Harvest", 'Enter Operation Parameters Here'!$D$84*'Enter Operation Parameters Here'!$G$44,0) -> 6610.681682 | H125: =IF('Enter Systems Parameters Here'!G$51="Harvest", 'Enter Operation Parameters Here'!$D$84*'Enter Operation Parameters Here'!$G$44,0) -> 6610.681682 | I125: =IF('Enter Systems Parameters Here'!H$51="Harvest", 'Enter Operation Parameters Here'!$D$84*'Enter Operation Parameters Here'!$G$44,0) -> 6610.681682 | J125: =IF('Enter Systems Parameters Here'!I$51="Harvest", 'Enter Operation Parameters Here'!$D$84*'Enter Operation Parameters Here'!$G$44,0) -> 6610.681682 | K125: =IF('Enter Systems Parameters Here'!J$51="Harvest", 'Enter Operation Parameters Here'!$D$84*'Enter Operation Parameters Here'!$G$44,0) -> 6610.681682 | L125: =IF('Enter Systems Parameters Here'!K$51="Harvest", 'Enter Operation Parameters Here'!$D$84*'Enter Operation Parameters Here'!$G$44,0) -> 6610.681682 | M125: =IF('Enter Systems Parameters Here'!L$51="Harvest", 'Enter Operation Parameters Here'!$D$84*'Enter Operation Parameters Here'!$G$44,0) -> 6610.681682 | N125: =IF('Enter Systems Parameters Here'!M$51="Harvest", 'Enter Operation Parameters Here'!$D$84*'Enter Operation Parameters Here'!$G$44,0) -> 6610.681682 | O125: =SUM(C125:N125) -> 79328.18019
A126: 2016 | B126: Miscellaneous Receipts | O126: =SUM(C126:N126) -> 0
A127: 2016 | B127: Total Receipts | C127: =SUM(C125:C126) -> 6610.681682 | D127: =SUM(D125:D126) -> 6610.681682 | E127: 6610.681682 | F127: 6610.681682 | G127: 6610.681682 | H127: 6610.681682 | I127: 6610.681682 | J127: 6610.681682 | K127: 6610.681682 | L127: 6610.681682 | M127: 6610.681682 | N127: 6610.681682 | O127: =SUM(C127:N127) -> 79328.18019
A128: 2016
A129: 2016 | B129: Variable Inputs:
A130: 2016 | B130: Fingerlings (4") | C130: =IF('Enter Systems Parameters Here'!B$50="Stock nursery",'Enter Operation Parameters Here'!$D$54*'Enter Operation Parameters Here'!$D$41,0) -> 1387.881622 | D130: =IF('Enter Systems Parameters Here'!C$50="Stock nursery",'Enter Operation Parameters Here'!$D$54*'Enter Operation Parameters Here'!$D$41,0) -> 1387.881622 | E130: =IF('Enter Systems Parameters Here'!D$50="Stock nursery",'Enter Operation Parameters Here'!$D$54*'Enter Operation Parameters Here'!$D$41,0) -> 1387.881622 | F130: =IF('Enter Systems Parameters Here'!E$50="Stock nursery",'Enter Operation Parameters Here'!$D$54*'Enter Operation Parameters Here'!$D$41,0) -> 1387.881622 | G130: =IF('Enter Systems Parameters Here'!F$50="Stock nursery",'Enter Operation Parameters Here'!$D$54*'Enter Operation Parameters Here'!$D$41,0) -> 1387.881622 | H130: =IF('Enter Systems Parameters Here'!G$50="Stock nursery",'Enter Operation Parameters Here'!$D$54*'Enter Operation Parameters Here'!$D$41,0) -> 1387.881622 | I130: =IF('Enter Systems Parameters Here'!H$50="Stock nursery",'Enter Operation Parameters Here'!$D$54*'Enter Operation Parameters Here'!$D$41,0) -> 1387.881622 | J130: =IF('Enter Systems Parameters Here'!I$50="Stock nursery",'Enter Operation Parameters Here'!$D$54*'Enter Operation Parameters Here'!$D$41,0) -> 1387.881622 | K130: =IF('Enter Systems Parameters Here'!J$50="Stock nursery",'Enter Operation Parameters Here'!$D$54*'Enter Operation Parameters Here'!$D$41,0) -> 1387.881622 | L130: =IF('Enter Systems Parameters Here'!K$50="Stock nursery",'Enter Operation Parameters Here'!$D$54*'Enter Operation Parameters Here'!$D$41,0) -> 1387.881622 | M130: =IF('Enter Systems Parameters Here'!L$50="Stock nursery",'Enter Operation Parameters Here'!$D$54*'Enter Operation Parameters Here'!$D$41,0) -> 1387.881622 | N130: =IF('Enter Systems Parameters Here'!M$50="Stock nursery",'Enter Operation Parameters Here'!$D$54*'Enter Operation Parameters Here'!$D$41,0) -> 1387.881622 | O130: =SUM(C130:N130) -> 16654.57946
A131: 2016 | B131: Feed | C131: ='Operating-Overhead Cost'!$F$4/12 -> 563.8778846 | D131: ='Operating-Overhead Cost'!$F$4/12 -> 563.8778846 | E131: ='Operating-Overhead Cost'!$F$4/12 -> 563.8778846 | F131: ='Operating-Overhead Cost'!$F$4/12 -> 563.8778846 | G131: ='Operating-Overhead Cost'!$F$4/12 -> 563.8778846 | H131: ='Operating-Overhead Cost'!$F$4/12 -> 563.8778846 | I131: ='Operating-Overhead Cost'!$F$4/12 -> 563.8778846 | J131: ='Operating-Overhead Cost'!$F$4/12 -> 563.8778846 | K131: ='Operating-Overhead Cost'!$F$4/12 -> 563.8778846 | L131: ='Operating-Overhead Cost'!$F$4/12 -> 563.8778846 | M131: ='Operating-Overhead Cost'!$F$4/12 -> 563.8778846 | N131: ='Operating-Overhead Cost'!$F$4/12 -> 563.8778846 | O131: 6766.534615
A132: 2016 | B132: Chemicals | C132: ='Operating-Overhead Cost'!$F$10/12 -> 200 | D132: ='Operating-Overhead Cost'!$F$10/12 -> 200 | E132: ='Operating-Overhead Cost'!$F$10/12 -> 200 | F132: ='Operating-Overhead Cost'!$F$10/12 -> 200 | G132: ='Operating-Overhead Cost'!$F$10/12 -> 200 | H132: ='Operating-Overhead Cost'!$F$10/12 -> 200 | I132: ='Operating-Overhead Cost'!$F$10/12 -> 200 | J132: ='Operating-Overhead Cost'!$F$10/12 -> 200 | K132: ='Operating-Overhead Cost'!$F$10/12 -> 200 | L132: ='Operating-Overhead Cost'!$F$10/12 -> 200 | M132: ='Operating-Overhead Cost'!$F$10/12 -> 200 | N132: ='Operating-Overhead Cost'!$F$10/12 -> 200 | O132: 2400
A133: =A103+1 -> 2016 | B133: Electricity | C133: ='Operating-Overhead Cost'!$F$5/12 -> 141.6574646 | D133: ='Operating-Overhead Cost'!$F$5/12 -> 141.6574646 | E133: ='Operating-Overhead Cost'!$F$5/12 -> 141.6574646 | F133: ='Operating-Overhead Cost'!$F$5/12 -> 141.6574646 | G133: ='Operating-Overhead Cost'!$F$5/12 -> 141.6574646 | H133: ='Operating-Overhead Cost'!$F$5/12 -> 141.6574646 | I133: ='Operating-Overhead Cost'!$F$5/12 -> 141.6574646 | J133: ='Operating-Overhead Cost'!$F$5/12 -> 141.6574646 | K133: ='Operating-Overhead Cost'!$F$5/12 -> 141.6574646 | L133: ='Operating-Overhead Cost'!$F$5/12 -> 141.6574646 | M133: ='Operating-Overhead Cost'!$F$5/12 -> 141.6574646 | N133: ='Operating-Overhead Cost'!$F$5/12 -> 141.6574646 | O133: 1699.889575
A134: 2016 | B134: Oxygen | C134: ='Operating-Overhead Cost'!$F$6/12 -> 40.76837106 | D134: ='Operating-Overhead Cost'!$F$6/12 -> 40.76837106 | E134: ='Operating-Overhead Cost'!$F$6/12 -> 40.76837106 | F134: ='Operating-Overhead Cost'!$F$6/12 -> 40.76837106 | G134: ='Operating-Overhead Cost'!$F$6/12 -> 40.76837106 | H134: ='Operating-Overhead Cost'!$F$6/12 -> 40.76837106 | I134: ='Operating-Overhead Cost'!$F$6/12 -> 40.76837106 | J134: ='Operating-Overhead Cost'!$F$6/12 -> 40.76837106 | K134: ='Operating-Overhead Cost'!$F$6/12 -> 40.76837106 | L134: ='Operating-Overhead Cost'!$F$6/12 -> 40.76837106 | M134: ='Operating-Overhead Cost'!$F$6/12 -> 40.76837106 | N134: ='Operating-Overhead Cost'!$F$6/12 -> 40.76837106 | O134: 489.2204527
A135: 2016 | B135: Hired Labor - Hours | C135: ='Operating-Overhead Cost'!$F$7/12 -> 2000 | D135: ='Operating-Overhead Cost'!$F$7/12 -> 2000 | E135: ='Operating-Overhead Cost'!$F$7/12 -> 2000 | F135: ='Operating-Overhead Cost'!$F$7/12 -> 2000 | G135: ='Operating-Overhead Cost'!$F$7/12 -> 2000 | H135: ='Operating-Overhead Cost'!$F$7/12 -> 2000 | I135: ='Operating-Overhead Cost'!$F$7/12 -> 2000 | J135: ='Operating-Overhead Cost'!$F$7/12 -> 2000 | K135: ='Operating-Overhead Cost'!$F$7/12 -> 2000 | L135: ='Operating-Overhead Cost'!$F$7/12 -> 2000 | M135: ='Operating-Overhead Cost'!$F$7/12 -> 2000 | N135: ='Operating-Overhead Cost'!$F$7/12 -> 2000 | O135: 24000
A136: 2016 | B136: Transportation Costs of Fingerlings | C136: ='Operating-Overhead Cost'!$F$8/12 -> 0 | D136: ='Operating-Overhead Cost'!$F$8/12 -> 0 | E136: ='Operating-Overhead Cost'!$F$8/12 -> 0 | F136: ='Operating-Overhead Cost'!$F$8/12 -> 0 | G136: ='Operating-Overhead Cost'!$F$8/12 -> 0 | H136: ='Operating-Overhead Cost'!$F$8/12 -> 0 | I136: ='Operating-Overhead Cost'!$F$8/12 -> 0 | J136: ='Operating-Overhead Cost'!$F$8/12 -> 0 | K136: ='Operating-Overhead Cost'!$F$8/12 -> 0 | L136: ='Operating-Overhead Cost'!$F$8/12 -> 0 | M136: ='Operating-Overhead Cost'!$F$8/12 -> 0 | N136: ='Operating-Overhead Cost'!$F$8/12 -> 0 | O136: 0
A137: 2016 | B137: Transportation Costs to Market | C137: ='Operating-Overhead Cost'!$F$9/12 -> 0 | D137: ='Operating-Overhead Cost'!$F$9/12 -> 0 | E137: ='Operating-Overhead Cost'!$F$9/12 -> 0 | F137: ='Operating-Overhead Cost'!$F$9/12 -> 0 | G137: ='Operating-Overhead Cost'!$F$9/12 -> 0 | H137: ='Operating-Overhead Cost'!$F$9/12 -> 0 | I137: ='Operating-Overhead Cost'!$F$9/12 -> 0 | J137: ='Operating-Overhead Cost'!$F$9/12 -> 0 | K137: ='Operating-Overhead Cost'!$F$9/12 -> 0 | L137: ='Operating-Overhead Cost'!$F$9/12 -> 0 | M137: ='Operating-Overhead Cost'!$F$9/12 -> 0 | N137: ='Operating-Overhead Cost'!$F$9/12 -> 0 | O137: 0
A138: 2016 | B138: Miscellaneous | O138: =5%*(O139+O146) -> 2855.761865
A139: 2016 | B139: Total Variable Cost | C139: =SUM(C130:C138) -> 4334.185342 | D139: 4334.185342 | E139: 4334.185342 | F139: 4334.185342 | G139: 4334.185342 | H139: 4334.185342 | I139: 4334.185342 | J139: 4334.185342 | K139: 4334.185342 | L139: 4334.185342 | M139: 4334.185342 | N139: 4334.185342 | O139: =SUM(O130:O137) -> 52010.2241
A140: 2016
A141: 2016 | B141: Overhead Costs
A142: 2016 | B142: Repair & maintenance | C142: ='Enter Operation Parameters Here'!$D$68/12 -> 208.7085 | D142: ='Enter Operation Parameters Here'!$D$68/12 -> 208.7085 | E142: ='Enter Operation Parameters Here'!$D$68/12 -> 208.7085 | F142: ='Enter Operation Parameters Here'!$D$68/12 -> 208.7085 | G142: ='Enter Operation Parameters Here'!$D$68/12 -> 208.7085 | H142: ='Enter Operation Parameters Here'!$D$68/12 -> 208.7085 | I142: ='Enter Operation Parameters Here'!$D$68/12 -> 208.7085 | J142: ='Enter Operation Parameters Here'!$D$68/12 -> 208.7085 | K142: ='Enter Operation Parameters Here'!$D$68/12 -> 208.7085 | L142: ='Enter Operation Parameters Here'!$D$68/12 -> 208.7085 | M142: ='Enter Operation Parameters Here'!$D$68/12 -> 208.7085 | N142: ='Enter Operation Parameters Here'!$D$68/12 -> 208.7085 | O142: =SUM(C142:N142) -> 2504.502
A143: 2016 | B143: Insurance | C143: ='Enter Operation Parameters Here'!$G$69/12 -> 0 | D143: ='Enter Operation Parameters Here'!$G$69/12 -> 0 | E143: ='Enter Operation Parameters Here'!$G$69/12 -> 0 | F143: ='Enter Operation Parameters Here'!$G$69/12 -> 0 | G143: ='Enter Operation Parameters Here'!$G$69/12 -> 0 | H143: ='Enter Operation Parameters Here'!$G$69/12 -> 0 | I143: ='Enter Operation Parameters Here'!$G$69/12 -> 0 | J143: ='Enter Operation Parameters Here'!$G$69/12 -> 0 | K143: ='Enter Operation Parameters Here'!$G$69/12 -> 0 | L143: ='Enter Operation Parameters Here'!$G$69/12 -> 0 | M143: ='Enter Operation Parameters Here'!$G$69/12 -> 0 | N143: ='Enter Operation Parameters Here'!$G$69/12 -> 0 | O143: =SUM(C143:N143) -> 0
A144: 2016 | B144: Adminstration/Management - legal fees, professional services, etc. | C144: ='Operating-Overhead Cost'!$F$15/12 -> 216.7092671 | D144: ='Operating-Overhead Cost'!$F$15/12 -> 216.7092671 | E144: ='Operating-Overhead Cost'!$F$15/12 -> 216.7092671 | F144: ='Operating-Overhead Cost'!$F$15/12 -> 216.7092671 | G144: ='Operating-Overhead Cost'!$F$15/12 -> 216.7092671 | H144: ='Operating-Overhead Cost'!$F$15/12 -> 216.7092671 | I144: ='Operating-Overhead Cost'!$F$15/12 -> 216.7092671 | J144: ='Operating-Overhead Cost'!$F$15/12 -> 216.7092671 | K144: ='Operating-Overhead Cost'!$F$15/12 -> 216.7092671 | L144: ='Operating-Overhead Cost'!$F$15/12 -> 216.7092671 | M144: ='Operating-Overhead Cost'!$F$15/12 -> 216.7092671 | N144: ='Operating-Overhead Cost'!$F$15/12 -> 216.7092671 | O144: =SUM(C144:N144) -> 2600.511205
A145: 2016 | B145: Other | C145: ='Enter Operation Parameters Here'!$G$71/12 -> 0 | D145: ='Enter Operation Parameters Here'!$G$71/12 -> 0 | E145: ='Enter Operation Parameters Here'!$G$71/12 -> 0 | F145: ='Enter Operation Parameters Here'!$G$71/12 -> 0 | G145: ='Enter Operation Parameters Here'!$G$71/12 -> 0 | H145: ='Enter Operation Parameters Here'!$G$71/12 -> 0 | I145: ='Enter Operation Parameters Here'!$G$71/12 -> 0 | J145: ='Enter Operation Parameters Here'!$G$71/12 -> 0 | K145: ='Enter Operation Parameters Here'!$G$71/12 -> 0 | L145: ='Enter Operation Parameters Here'!$G$71/12 -> 0 | M145: ='Enter Operation Parameters Here'!$G$71/12 -> 0 | N145: ='Enter Operation Parameters Here'!$G$71/12 -> 0 | O145: =SUM(C145:N145) -> 0
A146: 2016 | B146: Total Overhead Costs | C146: =SUM(C142:C145) -> 425.4177671 | D146: =SUM(D142:D145) -> 425.4177671 | E146: 425.4177671 | F146: 425.4177671 | G146: 425.4177671 | H146: 425.4177671 | I146: 425.4177671 | J146: 425.4177671 | K146: 425.4177671 | L146: 425.4177671 | M146: 425.4177671 | N146: 425.4177671 | O146: =SUM(O142:O145) -> 5105.013205
A147: 2016
A148: 2016 | B148: Loan | C148: ='Enter Operation Parameters Here'!$Q$81/12 -> 1525.04 | D148: ='Enter Operation Parameters Here'!$Q$81/12 -> 1525.04 | E148: ='Enter Operation Parameters Here'!$Q$81/12 -> 1525.04 | F148: ='Enter Operation Parameters Here'!$Q$81/12 -> 1525.04 | G148: ='Enter Operation Parameters Here'!$Q$81/12 -> 1525.04 | H148: ='Enter Operation Parameters Here'!$Q$81/12 -> 1525.04 | I148: ='Enter Operation Parameters Here'!$Q$81/12 -> 1525.04 | J148: ='Enter Operation Parameters Here'!$Q$81/12 -> 1525.04 | K148: ='Enter Operation Parameters Here'!$Q$81/12 -> 1525.04 | L148: ='Enter Operation Parameters Here'!$Q$81/12 -> 1525.04 | M148: ='Enter Operation Parameters Here'!$Q$81/12 -> 1525.04 | N148: ='Enter Operation Parameters Here'!$Q$81/12 -> 1525.04 | O148: =SUM(C148:N148) -> 18300.48
A149: 2016
A150: 2016 | B150: Cash Flow | C150: =C127-SUM(C139,C146,C148)+N120 -> -460.6481357 | D150: =D127-SUM(D139,D146,D148)+C150 -> -134.6095626 | E150: 191.4290105 | F150: 517.4675836 | G150: 843.5061568 | H150: 1169.54473 | I150: 1495.583303 | J150: 1821.621876 | K150: 2147.660449 | L150: 2473.699022 | M150: 2799.737595 | N150: 3125.776169
B152: YEAR 6 | C152: YEAR 6
C153: January | D153: February | E153: March | F153: April | G153: May | H153: June | I153: July | J153: August | K153: September | L153: October | M153: November | N153: December
A154: 2017 | B154: Gross Receipts:
A155: 2017 | B155: Fish sale | C155: =IF('Enter Systems Parameters Here'!B$54="Harvest", 'Enter Operation Parameters Here'!$D$84*'Enter Operation Parameters Here'!$G$44,0) -> 6610.681682 | D155: =IF('Enter Systems Parameters Here'!C$54="Harvest", 'Enter Operation Parameters Here'!$D$84*'Enter Operation Parameters Here'!$G$44,0) -> 6610.681682 | E155: =IF('Enter Systems Parameters Here'!D$54="Harvest", 'Enter Operation Parameters Here'!$D$84*'Enter Operation Parameters Here'!$G$44,0) -> 6610.681682 | F155: =IF('Enter Systems Parameters Here'!E$54="Harvest", 'Enter Operation Parameters Here'!$D$84*'Enter Operation Parameters Here'!$G$44,0) -> 6610.681682 | G155: =IF('Enter Systems Parameters Here'!F$54="Harvest", 'Enter Operation Parameters Here'!$D$84*'Enter Operation Parameters Here'!$G$44,0) -> 6610.681682 | H155: =IF('Enter Systems Parameters Here'!G$54="Harvest", 'Enter Operation Parameters Here'!$D$84*'Enter Operation Parameters Here'!$G$44,0) -> 6610.681682 | I155: =IF('Enter Systems Parameters Here'!H$54="Harvest", 'Enter Operation Parameters Here'!$D$84*'Enter Operation Parameters Here'!$G$44,0) -> 6610.681682 | J155: =IF('Enter Systems Parameters Here'!I$54="Harvest", 'Enter Operation Parameters Here'!$D$84*'Enter Operation Parameters Here'!$G$44,0) -> 6610.681682 | K155: =IF('Enter Systems Parameters Here'!J$54="Harvest", 'Enter Operation Parameters Here'!$D$84*'Enter Operation Parameters Here'!$G$44,0) -> 6610.681682 | L155: =IF('Enter Systems Parameters Here'!K$54="Harvest", 'Enter Operation Parameters Here'!$D$84*'Enter Operation Parameters Here'!$G$44,0) -> 6610.681682 | M155: =IF('Enter Systems Parameters Here'!L$54="Harvest", 'Enter Operation Parameters Here'!$D$84*'Enter Operation Parameters Here'!$G$44,0) -> 6610.681682 | N155: =IF('Enter Systems Parameters Here'!M$54="Harvest", 'Enter Operation Parameters Here'!$D$84*'Enter Operation Parameters Here'!$G$44,0) -> 6610.681682 | O155: =SUM(C155:N155) -> 79328.18019
A156: 2017 | B156: Miscellaneous Receipts | O156: =SUM(C156:N156) -> 0
A157: 2017 | B157: Total Receipts | C157: =SUM(C155:C156) -> 6610.681682 | D157: =SUM(D155:D156) -> 6610.681682 | E157: 6610.681682 | F157: 6610.681682 | G157: 6610.681682 | H157: 6610.681682 | I157: 6610.681682 | J157: 6610.681682 | K157: 6610.681682 | L157: 6610.681682 | M157: 6610.681682 | N157: 6610.681682 | O157: =SUM(C157:N157) -> 79328.18019
A158: 2017
A159: 2017 | B159: Variable Inputs:
A160: 2017 | B160: Fingerlings (4") | C160: =IF('Enter Systems Parameters Here'!B$53="Stock nursery",'Enter Operation Parameters Here'!$D$54*'Enter Operation Parameters Here'!$D$41,0) -> 1387.881622 | D160: =IF('Enter Systems Parameters Here'!C$53="Stock nursery",'Enter Operation Parameters Here'!$D$54*'Enter Operation Parameters Here'!$D$41,0) -> 1387.881622 | E160: =IF('Enter Systems Parameters Here'!D$53="Stock nursery",'Enter Operation Parameters Here'!$D$54*'Enter Operation Parameters Here'!$D$41,0) -> 1387.881622 | F160: =IF('Enter Systems Parameters Here'!E$53="Stock nursery",'Enter Operation Parameters Here'!$D$54*'Enter Operation Parameters Here'!$D$41,0) -> 1387.881622 | G160: =IF('Enter Systems Parameters Here'!F$53="Stock nursery",'Enter Operation Parameters Here'!$D$54*'Enter Operation Parameters Here'!$D$41,0) -> 1387.881622 | H160: =IF('Enter Systems Parameters Here'!G$53="Stock nursery",'Enter Operation Parameters Here'!$D$54*'Enter Operation Parameters Here'!$D$41,0) -> 1387.881622 | I160: =IF('Enter Systems Parameters Here'!H$53="Stock nursery",'Enter Operation Parameters Here'!$D$54*'Enter Operation Parameters Here'!$D$41,0) -> 1387.881622 | J160: =IF('Enter Systems Parameters Here'!I$53="Stock nursery",'Enter Operation Parameters Here'!$D$54*'Enter Operation Parameters Here'!$D$41,0) -> 1387.881622 | K160: =IF('Enter Systems Parameters Here'!J$53="Stock nursery",'Enter Operation Parameters Here'!$D$54*'Enter Operation Parameters Here'!$D$41,0) -> 1387.881622 | L160: =IF('Enter Systems Parameters Here'!K$53="Stock nursery",'Enter Operation Parameters Here'!$D$54*'Enter Operation Parameters Here'!$D$41,0) -> 1387.881622 | M160: =IF('Enter Systems Parameters Here'!L$53="Stock nursery",'Enter Operation Parameters Here'!$D$54*'Enter Operation Parameters Here'!$D$41,0) -> 1387.881622 | N160: =IF('Enter Systems Parameters Here'!M$53="Stock nursery",'Enter Operation Parameters Here'!$D$54*'Enter Operation Parameters Here'!$D$41,0) -> 1387.881622 | O160: =SUM(C160:N160) -> 16654.57946
A161: 2017 | B161: Feed | C161: ='Operating-Overhead Cost'!$G$4/12 -> 563.8778846 | D161: ='Operating-Overhead Cost'!$G$4/12 -> 563.8778846 | E161: ='Operating-Overhead Cost'!$G$4/12 -> 563.8778846 | F161: ='Operating-Overhead Cost'!$G$4/12 -> 563.8778846 | G161: ='Operating-Overhead Cost'!$G$4/12 -> 563.8778846 | H161: ='Operating-Overhead Cost'!$G$4/12 -> 563.8778846 | I161: ='Operating-Overhead Cost'!$G$4/12 -> 563.8778846 | J161: ='Operating-Overhead Cost'!$G$4/12 -> 563.8778846 | K161: ='Operating-Overhead Cost'!$G$4/12 -> 563.8778846 | L161: ='Operating-Overhead Cost'!$G$4/12 -> 563.8778846 | M161: ='Operating-Overhead Cost'!$G$4/12 -> 563.8778846 | N161: ='Operating-Overhead Cost'!$G$4/12 -> 563.8778846 | O161: 6766.534615
A162: 2017 | B162: Chemicals | C162: ='Operating-Overhead Cost'!$G$10/12 -> 200 | D162: ='Operating-Overhead Cost'!$G$10/12 -> 200 | E162: ='Operating-Overhead Cost'!$G$10/12 -> 200 | F162: ='Operating-Overhead Cost'!$G$10/12 -> 200 | G162: ='Operating-Overhead Cost'!$G$10/12 -> 200 | H162: ='Operating-Overhead Cost'!$G$10/12 -> 200 | I162: ='Operating-Overhead Cost'!$G$10/12 -> 200 | J162: ='Operating-Overhead Cost'!$G$10/12 -> 200 | K162: ='Operating-Overhead Cost'!$G$10/12 -> 200 | L162: ='Operating-Overhead Cost'!$G$10/12 -> 200 | M162: ='Operating-Overhead Cost'!$G$10/12 -> 200 | N162: ='Operating-Overhead Cost'!$G$10/12 -> 200 | O162: 2400
A163: 2017 | B163: Electricity | C163: ='Operating-Overhead Cost'!$G$5/12 -> 141.6574646 | D163: ='Operating-Overhead Cost'!$G$5/12 -> 141.6574646 | E163: ='Operating-Overhead Cost'!$G$5/12 -> 141.6574646 | F163: ='Operating-Overhead Cost'!$G$5/12 -> 141.6574646 | G163: ='Operating-Overhead Cost'!$G$5/12 -> 141.6574646 | H163: ='Operating-Overhead Cost'!$G$5/12 -> 141.6574646 | I163: ='Operating-Overhead Cost'!$G$5/12 -> 141.6574646 | J163: ='Operating-Overhead Cost'!$G$5/12 -> 141.6574646 | K163: ='Operating-Overhead Cost'!$G$5/12 -> 141.6574646 | L163: ='Operating-Overhead Cost'!$G$5/12 -> 141.6574646 | M163: ='Operating-Overhead Cost'!$G$5/12 -> 141.6574646 | N163: ='Operating-Overhead Cost'!$G$5/12 -> 141.6574646 | O163: 1699.889575
A164: 2017 | B164: Oxygen | C164: ='Operating-Overhead Cost'!$G$6/12 -> 40.76837106 | D164: ='Operating-Overhead Cost'!$G$6/12 -> 40.76837106 | E164: ='Operating-Overhead Cost'!$G$6/12 -> 40.76837106 | F164: ='Operating-Overhead Cost'!$G$6/12 -> 40.76837106 | G164: ='Operating-Overhead Cost'!$G$6/12 -> 40.76837106 | H164: ='Operating-Overhead Cost'!$G$6/12 -> 40.76837106 | I164: ='Operating-Overhead Cost'!$G$6/12 -> 40.76837106 | J164: ='Operating-Overhead Cost'!$G$6/12 -> 40.76837106 | K164: ='Operating-Overhead Cost'!$G$6/12 -> 40.76837106 | L164: ='Operating-Overhead Cost'!$G$6/12 -> 40.76837106 | M164: ='Operating-Overhead Cost'!$G$6/12 -> 40.76837106 | N164: ='Operating-Overhead Cost'!$G$6/12 -> 40.76837106 | O164: 489.2204527
A165: =A135+1 -> 2017 | B165: Hired Labor - Hours | C165: ='Operating-Overhead Cost'!$G$7/12 -> 2000 | D165: ='Operating-Overhead Cost'!$G$7/12 -> 2000 | E165: ='Operating-Overhead Cost'!$G$7/12 -> 2000 | F165: ='Operating-Overhead Cost'!$G$7/12 -> 2000 | G165: ='Operating-Overhead Cost'!$G$7/12 -> 2000 | H165: ='Operating-Overhead Cost'!$G$7/12 -> 2000 | I165: ='Operating-Overhead Cost'!$G$7/12 -> 2000 | J165: ='Operating-Overhead Cost'!$G$7/12 -> 2000 | K165: ='Operating-Overhead Cost'!$G$7/12 -> 2000 | L165: ='Operating-Overhead Cost'!$G$7/12 -> 2000 | M165: ='Operating-Overhead Cost'!$G$7/12 -> 2000 | N165: ='Operating-Overhead Cost'!$G$7/12 -> 2000 | O165: 24000
A166: =A136+1 -> 2017 | B166: Transportation Costs of Fingerlings | C166: ='Operating-Overhead Cost'!$G$8/12 -> 0 | D166: ='Operating-Overhead Cost'!$G$8/12 -> 0 | E166: ='Operating-Overhead Cost'!$G$8/12 -> 0 | F166: ='Operating-Overhead Cost'!$G$8/12 -> 0 | G166: ='Operating-Overhead Cost'!$G$8/12 -> 0 | H166: ='Operating-Overhead Cost'!$G$8/12 -> 0 | I166: ='Operating-Overhead Cost'!$G$8/12 -> 0 | J166: ='Operating-Overhead Cost'!$G$8/12 -> 0 | K166: ='Operating-Overhead Cost'!$G$8/12 -> 0 | L166: ='Operating-Overhead Cost'!$G$8/12 -> 0 | M166: ='Operating-Overhead Cost'!$G$8/12 -> 0 | N166: ='Operating-Overhead Cost'!$G$8/12 -> 0 | O166: 0
A167: =A137+1 -> 2017 | B167: Transportation Costs to Market | C167: ='Operating-Overhead Cost'!$G$9/12 -> 0 | D167: ='Operating-Overhead Cost'!$G$9/12 -> 0 | E167: ='Operating-Overhead Cost'!$G$9/12 -> 0 | F167: ='Operating-Overhead Cost'!$G$9/12 -> 0 | G167: ='Operating-Overhead Cost'!$G$9/12 -> 0 | H167: ='Operating-Overhead Cost'!$G$9/12 -> 0 | I167: ='Operating-Overhead Cost'!$G$9/12 -> 0 | J167: ='Operating-Overhead Cost'!$G$9/12 -> 0 | K167: ='Operating-Overhead Cost'!$G$9/12 -> 0 | L167: ='Operating-Overhead Cost'!$G$9/12 -> 0 | M167: ='Operating-Overhead Cost'!$G$9/12 -> 0 | N167: ='Operating-Overhead Cost'!$G$9/12 -> 0 | O167: 0
A168: 2017 | B168: Miscellaneous | O168: =5%*(O169+O176) -> 2855.761865
A169: 2017 | B169: Total Variable Cost | C169: =SUM(C160:C168) -> 4334.185342 | D169: 4334.185342 | E169: 4334.185342 | F169: 4334.185342 | G169: 4334.185342 | H169: 4334.185342 | I169: 4334.185342 | J169: 4334.185342 | K169: 4334.185342 | L169: 4334.185342 | M169: 4334.185342 | N169: 4334.185342 | O169: =SUM(O160:O167) -> 52010.2241
A170: 2017
A171: 2017 | B171: Overhead Costs
A172: 2017 | B172: Repair & maintenance | C172: ='Enter Operation Parameters Here'!$D$68/12 -> 208.7085 | D172: ='Enter Operation Parameters Here'!$D$68/12 -> 208.7085 | E172: ='Enter Operation Parameters Here'!$D$68/12 -> 208.7085 | F172: ='Enter Operation Parameters Here'!$D$68/12 -> 208.7085 | G172: ='Enter Operation Parameters Here'!$D$68/12 -> 208.7085 | H172: ='Enter Operation Parameters Here'!$D$68/12 -> 208.7085 | I172: ='Enter Operation Parameters Here'!$D$68/12 -> 208.7085 | J172: ='Enter Operation Parameters Here'!$D$68/12 -> 208.7085 | K172: ='Enter Operation Parameters Here'!$D$68/12 -> 208.7085 | L172: ='Enter Operation Parameters Here'!$D$68/12 -> 208.7085 | M172: ='Enter Operation Parameters Here'!$D$68/12 -> 208.7085 | N172: ='Enter Operation Parameters Here'!$D$68/12 -> 208.7085 | O172: =SUM(C172:N172) -> 2504.502
A173: 2017 | B173: Insurance | C173: ='Enter Operation Parameters Here'!$G$69/12 -> 0 | D173: ='Enter Operation Parameters Here'!$G$69/12 -> 0 | E173: ='Enter Operation Parameters Here'!$G$69/12 -> 0 | F173: ='Enter Operation Parameters Here'!$G$69/12 -> 0 | G173: ='Enter Operation Parameters Here'!$G$69/12 -> 0 | H173: ='Enter Operation Parameters Here'!$G$69/12 -> 0 | I173: ='Enter Operation Parameters Here'!$G$69/12 -> 0 | J173: ='Enter Operation Parameters Here'!$G$69/12 -> 0 | K173: ='Enter Operation Parameters Here'!$G$69/12 -> 0 | L173: ='Enter Operation Parameters Here'!$G$69/12 -> 0 | M173: ='Enter Operation Parameters Here'!$G$69/12 -> 0 | N173: ='Enter Operation Parameters Here'!$G$69/12 -> 0 | O173: =SUM(C173:N173) -> 0
A174: 2017 | B174: Adminstration/Management - legal fees, professional services, etc. | C174: ='Operating-Overhead Cost'!$G$15/12 -> 216.7092671 | D174: ='Operating-Overhead Cost'!$G$15/12 -> 216.7092671 | E174: ='Operating-Overhead Cost'!$G$15/12 -> 216.7092671 | F174: ='Operating-Overhead Cost'!$G$15/12 -> 216.7092671 | G174: ='Operating-Overhead Cost'!$G$15/12 -> 216.7092671 | H174: ='Operating-Overhead Cost'!$G$15/12 -> 216.7092671 | I174: ='Operating-Overhead Cost'!$G$15/12 -> 216.7092671 | J174: ='Operating-Overhead Cost'!$G$15/12 -> 216.7092671 | K174: ='Operating-Overhead Cost'!$G$15/12 -> 216.7092671 | L174: ='Operating-Overhead Cost'!$G$15/12 -> 216.7092671 | M174: ='Operating-Overhead Cost'!$G$15/12 -> 216.7092671 | N174: ='Operating-Overhead Cost'!$G$15/12 -> 216.7092671 | O174: =SUM(C174:N174) -> 2600.511205
A175: 2017 | B175: Other | C175: ='Enter Operation Parameters Here'!$G$71/12 -> 0 | D175: ='Enter Operation Parameters Here'!$G$71/12 -> 0 | E175: ='Enter Operation Parameters Here'!$G$71/12 -> 0 | F175: ='Enter Operation Parameters Here'!$G$71/12 -> 0 | G175: ='Enter Operation Parameters Here'!$G$71/12 -> 0 | H175: ='Enter Operation Parameters Here'!$G$71/12 -> 0 | I175: ='Enter Operation Parameters Here'!$G$71/12 -> 0 | J175: ='Enter Operation Parameters Here'!$G$71/12 -> 0 | K175: ='Enter Operation Parameters Here'!$G$71/12 -> 0 | L175: ='Enter Operation Parameters Here'!$G$71/12 -> 0 | M175: ='Enter Operation Parameters Here'!$G$71/12 -> 0 | N175: ='Enter Operation Parameters Here'!$G$71/12 -> 0 | O175: =SUM(C175:N175) -> 0
A176: 2017 | B176: Total Overhead Costs | C176: =SUM(C172:C175) -> 425.4177671 | D176: =SUM(D172:D175) -> 425.4177671 | E176: 425.4177671 | F176: 425.4177671 | G176: 425.4177671 | H176: 425.4177671 | I176: 425.4177671 | J176: 425.4177671 | K176: 425.4177671 | L176: 425.4177671 | M176: 425.4177671 | N176: 425.4177671 | O176: =SUM(O172:O175) -> 5105.013205
A177: 2017
A178: 2017 | B178: Loan | C178: ='Enter Operation Parameters Here'!$R$81/12 -> 0 | D178: ='Enter Operation Parameters Here'!$R$81/12 -> 0 | E178: ='Enter Operation Parameters Here'!$R$81/12 -> 0 | F178: ='Enter Operation Parameters Here'!$R$81/12 -> 0 | G178: ='Enter Operation Parameters Here'!$R$81/12 -> 0 | H178: ='Enter Operation Parameters Here'!$R$81/12 -> 0 | I178: ='Enter Operation Parameters Here'!$R$81/12 -> 0 | J178: ='Enter Operation Parameters Here'!$R$81/12 -> 0 | K178: ='Enter Operation Parameters Here'!$R$81/12 -> 0 | L178: ='Enter Operation Parameters Here'!$R$81/12 -> 0 | M178: ='Enter Operation Parameters Here'!$R$81/12 -> 0 | N178: ='Enter Operation Parameters Here'!$R$81/12 -> 0 | O178: =SUM(C178:N178) -> 0
A179: 2017
A180: 2017 | B180: Cash Flow | C180: =C157-SUM(C169,C176,C178)+N150 -> 4976.854742 | D180: =D157-SUM(D169,D176,D178)+C180 -> 6827.933315 | E180: 8679.011888 | F180: 10530.09046 | G180: 12381.16903 | H180: 14232.24761 | I180: 16083.32618 | J180: 17934.40475 | K180: 19785.48333 | L180: 21636.5619 | M180: 23487.64047 | N180: 25338.71905
B182: YEAR 7 | C182: YEAR 7
C183: January | D183: February | E183: March | F183: April | G183: May | H183: June | I183: July | J183: August | K183: September | L183: October | M183: November | N183: December
A184: =$A$180+1 -> 2018 | B184: Gross Receipts: | O184: =SUM(C184:N184) -> 0
A185: =$A$180+1 -> 2018 | B185: Fish sale | C185: =IF('Enter Systems Parameters Here'!B$57="Harvest", 'Enter Operation Parameters Here'!$D$84*'Enter Operation Parameters Here'!$G$44,0) -> 6610.681682 | D185: =IF('Enter Systems Parameters Here'!C$57="Harvest", 'Enter Operation Parameters Here'!$D$84*'Enter Operation Parameters Here'!$G$44,0) -> 6610.681682 | E185: =IF('Enter Systems Parameters Here'!D$57="Harvest", 'Enter Operation Parameters Here'!$D$84*'Enter Operation Parameters Here'!$G$44,0) -> 6610.681682 | F185: =IF('Enter Systems Parameters Here'!E$57="Harvest", 'Enter Operation Parameters Here'!$D$84*'Enter Operation Parameters Here'!$G$44,0) -> 6610.681682 | G185: =IF('Enter Systems Parameters Here'!F$57="Harvest", 'Enter Operation Parameters Here'!$D$84*'Enter Operation Parameters Here'!$G$44,0) -> 6610.681682 | H185: =IF('Enter Systems Parameters Here'!G$57="Harvest", 'Enter Operation Parameters Here'!$D$84*'Enter Operation Parameters Here'!$G$44,0) -> 6610.681682 | I185: =IF('Enter Systems Parameters Here'!H$57="Harvest", 'Enter Operation Parameters Here'!$D$84*'Enter Operation Parameters Here'!$G$44,0) -> 6610.681682 | J185: =IF('Enter Systems Parameters Here'!I$57="Harvest", 'Enter Operation Parameters Here'!$D$84*'Enter Operation Parameters Here'!$G$44,0) -> 6610.681682 | K185: =IF('Enter Systems Parameters Here'!J$57="Harvest", 'Enter Operation Parameters Here'!$D$84*'Enter Operation Parameters Here'!$G$44,0) -> 6610.681682 | L185: =IF('Enter Systems Parameters Here'!K$57="Harvest", 'Enter Operation Parameters Here'!$D$84*'Enter Operation Parameters Here'!$G$44,0) -> 6610.681682 | M185: =IF('Enter Systems Parameters Here'!L$57="Harvest", 'Enter Operation Parameters Here'!$D$84*'Enter Operation Parameters Here'!$G$44,0) -> 6610.681682 | N185: =IF('Enter Systems Parameters Here'!M$57="Harvest", 'Enter Operation Parameters Here'!$D$84*'Enter Operation Parameters Here'!$G$44,0) -> 6610.681682 | O185: =SUM(C185:N185) -> 79328.18019
A186: 2018 | B186: Miscellaneous Receipts | O186: =SUM(C186:N186) -> 0
A187: 2018 | B187: Total Receipts | C187: =SUM(C185:C186) -> 6610.681682 | D187: =SUM(D185:D186) -> 6610.681682 | E187: 6610.681682 | F187: 6610.681682 | G187: 6610.681682 | H187: 6610.681682 | I187: 6610.681682 | J187: 6610.681682 | K187: 6610.681682 | L187: 6610.681682 | M187: 6610.681682 | N187: 6610.681682 | O187: =SUM(C187:N187) -> 79328.18019
A188: 2018
A189: 2018 | B189: Variable Inputs:
A190: 2018 | B190: Fingerlings (4") | C190: =IF('Enter Systems Parameters Here'!B$56="Stock nursery",'Enter Operation Parameters Here'!$D$54*'Enter Operation Parameters Here'!$D$41,0) -> 1387.881622 | D190: =IF('Enter Systems Parameters Here'!C$56="Stock nursery",'Enter Operation Parameters Here'!$D$54*'Enter Operation Parameters Here'!$D$41,0) -> 1387.881622 | E190: =IF('Enter Systems Parameters Here'!D$56="Stock nursery",'Enter Operation Parameters Here'!$D$54*'Enter Operation Parameters Here'!$D$41,0) -> 1387.881622 | F190: =IF('Enter Systems Parameters Here'!E$56="Stock nursery",'Enter Operation Parameters Here'!$D$54*'Enter Operation Parameters Here'!$D$41,0) -> 1387.881622 | G190: =IF('Enter Systems Parameters Here'!F$56="Stock nursery",'Enter Operation Parameters Here'!$D$54*'Enter Operation Parameters Here'!$D$41,0) -> 1387.881622 | H190: =IF('Enter Systems Parameters Here'!G$56="Stock nursery",'Enter Operation Parameters Here'!$D$54*'Enter Operation Parameters Here'!$D$41,0) -> 1387.881622 | I190: =IF('Enter Systems Parameters Here'!H$56="Stock nursery",'Enter Operation Parameters Here'!$D$54*'Enter Operation Parameters Here'!$D$41,0) -> 1387.881622 | J190: =IF('Enter Systems Parameters Here'!I$56="Stock nursery",'Enter Operation Parameters Here'!$D$54*'Enter Operation Parameters Here'!$D$41,0) -> 1387.881622 | K190: =IF('Enter Systems Parameters Here'!J$56="Stock nursery",'Enter Operation Parameters Here'!$D$54*'Enter Operation Parameters Here'!$D$41,0) -> 1387.881622 | L190: =IF('Enter Systems Parameters Here'!K$56="Stock nursery",'Enter Operation Parameters Here'!$D$54*'Enter Operation Parameters Here'!$D$41,0) -> 1387.881622 | M190: =IF('Enter Systems Parameters Here'!L$56="Stock nursery",'Enter Operation Parameters Here'!$D$54*'Enter Operation Parameters Here'!$D$41,0) -> 1387.881622 | N190: =IF('Enter Systems Parameters Here'!M$56="Stock nursery",'Enter Operation Parameters Here'!$D$54*'Enter Operation Parameters Here'!$D$41,0) -> 1387.881622 | O190: =SUM(C190:N190) -> 16654.57946
A191: 2018 | B191: Feed | C191: ='Operating-Overhead Cost'!$H$4/12 -> 563.8778846 | D191: ='Operating-Overhead Cost'!$H$4/12 -> 563.8778846 | E191: ='Operating-Overhead Cost'!$H$4/12 -> 563.8778846 | F191: ='Operating-Overhead Cost'!$H$4/12 -> 563.8778846 | G191: ='Operating-Overhead Cost'!$H$4/12 -> 563.8778846 | H191: ='Operating-Overhead Cost'!$H$4/12 -> 563.8778846 | I191: ='Operating-Overhead Cost'!$H$4/12 -> 563.8778846 | J191: ='Operating-Overhead Cost'!$H$4/12 -> 563.8778846 | K191: ='Operating-Overhead Cost'!$H$4/12 -> 563.8778846 | L191: ='Operating-Overhead Cost'!$H$4/12 -> 563.8778846 | M191: ='Operating-Overhead Cost'!$H$4/12 -> 563.8778846 | N191: ='Operating-Overhead Cost'!$H$4/12 -> 563.8778846 | O191: 6766.534615
A192: 2018 | B192: Chemicals | C192: ='Operating-Overhead Cost'!$H$10/12 -> 200 | D192: ='Operating-Overhead Cost'!$H$10/12 -> 200 | E192: ='Operating-Overhead Cost'!$H$10/12 -> 200 | F192: ='Operating-Overhead Cost'!$H$10/12 -> 200 | G192: ='Operating-Overhead Cost'!$H$10/12 -> 200 | H192: ='Operating-Overhead Cost'!$H$10/12 -> 200 | I192: ='Operating-Overhead Cost'!$H$10/12 -> 200 | J192: ='Operating-Overhead Cost'!$H$10/12 -> 200 | K192: ='Operating-Overhead Cost'!$H$10/12 -> 200 | L192: ='Operating-Overhead Cost'!$H$10/12 -> 200 | M192: ='Operating-Overhead Cost'!$H$10/12 -> 200 | N192: ='Operating-Overhead Cost'!$H$10/12 -> 200 | O192: 2400
A193: 2018 | B193: Electricity | C193: ='Operating-Overhead Cost'!$H$5/12 -> 141.6574646 | D193: ='Operating-Overhead Cost'!$H$5/12 -> 141.6574646 | E193: ='Operating-Overhead Cost'!$H$5/12 -> 141.6574646 | F193: ='Operating-Overhead Cost'!$H$5/12 -> 141.6574646 | G193: ='Operating-Overhead Cost'!$H$5/12 -> 141.6574646 | H193: ='Operating-Overhead Cost'!$H$5/12 -> 141.6574646 | I193: ='Operating-Overhead Cost'!$H$5/12 -> 141.6574646 | J193: ='Operating-Overhead Cost'!$H$5/12 -> 141.6574646 | K193: ='Operating-Overhead Cost'!$H$5/12 -> 141.6574646 | L193: ='Operating-Overhead Cost'!$H$5/12 -> 141.6574646 | M193: ='Operating-Overhead Cost'!$H$5/12 -> 141.6574646 | N193: ='Operating-Overhead Cost'!$H$5/12 -> 141.6574646 | O193: 1699.889575
A194: 2018 | B194: Oxygen | C194: ='Operating-Overhead Cost'!$H$6/12 -> 40.76837106 | D194: ='Operating-Overhead Cost'!$H$6/12 -> 40.76837106 | E194: ='Operating-Overhead Cost'!$H$6/12 -> 40.76837106 | F194: ='Operating-Overhead Cost'!$H$6/12 -> 40.76837106 | G194: ='Operating-Overhead Cost'!$H$6/12 -> 40.76837106 | H194: ='Operating-Overhead Cost'!$H$6/12 -> 40.76837106 | I194: ='Operating-Overhead Cost'!$H$6/12 -> 40.76837106 | J194: ='Operating-Overhead Cost'!$H$6/12 -> 40.76837106 | K194: ='Operating-Overhead Cost'!$H$6/12 -> 40.76837106 | L194: ='Operating-Overhead Cost'!$H$6/12 -> 40.76837106 | M194: ='Operating-Overhead Cost'!$H$6/12 -> 40.76837106 | N194: ='Operating-Overhead Cost'!$H$6/12 -> 40.76837106 | O194: 489.2204527
A195: 2018 | B195: Hired Labor - Hours | C195: ='Operating-Overhead Cost'!$H$7/12 -> 2000 | D195: ='Operating-Overhead Cost'!$H$7/12 -> 2000 | E195: ='Operating-Overhead Cost'!$H$7/12 -> 2000 | F195: ='Operating-Overhead Cost'!$H$7/12 -> 2000 | G195: ='Operating-Overhead Cost'!$H$7/12 -> 2000 | H195: ='Operating-Overhead Cost'!$H$7/12 -> 2000 | I195: ='Operating-Overhead Cost'!$H$7/12 -> 2000 | J195: ='Operating-Overhead Cost'!$H$7/12 -> 2000 | K195: ='Operating-Overhead Cost'!$H$7/12 -> 2000 | L195: ='Operating-Overhead Cost'!$H$7/12 -> 2000 | M195: ='Operating-Overhead Cost'!$H$7/12 -> 2000 | N195: ='Operating-Overhead Cost'!$H$7/12 -> 2000 | O195: 24000
A196: 2018 | B196: Transportation Costs of Fingerlings | C196: ='Operating-Overhead Cost'!$H$8/12 -> 0 | D196: ='Operating-Overhead Cost'!$H$8/12 -> 0 | E196: ='Operating-Overhead Cost'!$H$8/12 -> 0 | F196: ='Operating-Overhead Cost'!$H$8/12 -> 0 | G196: ='Operating-Overhead Cost'!$H$8/12 -> 0 | H196: ='Operating-Overhead Cost'!$H$8/12 -> 0 | I196: ='Operating-Overhead Cost'!$H$8/12 -> 0 | J196: ='Operating-Overhead Cost'!$H$8/12 -> 0 | K196: ='Operating-Overhead Cost'!$H$8/12 -> 0 | L196: ='Operating-Overhead Cost'!$H$8/12 -> 0 | M196: ='Operating-Overhead Cost'!$H$8/12 -> 0 | N196: ='Operating-Overhead Cost'!$H$8/12 -> 0 | O196: 0
A197: 2018 | B197: Transportation Costs to Market | C197: ='Operating-Overhead Cost'!$H$9/12 -> 0 | D197: ='Operating-Overhead Cost'!$H$9/12 -> 0 | E197: ='Operating-Overhead Cost'!$H$9/12 -> 0 | F197: ='Operating-Overhead Cost'!$H$9/12 -> 0 | G197: ='Operating-Overhead Cost'!$H$9/12 -> 0 | H197: ='Operating-Overhead Cost'!$H$9/12 -> 0 | I197: ='Operating-Overhead Cost'!$H$9/12 -> 0 | J197: ='Operating-Overhead Cost'!$H$9/12 -> 0 | K197: ='Operating-Overhead Cost'!$H$9/12 -> 0 | L197: ='Operating-Overhead Cost'!$H$9/12 -> 0 | M197: ='Operating-Overhead Cost'!$H$9/12 -> 0 | N197: ='Operating-Overhead Cost'!$H$9/12 -> 0 | O197: 0
A198: 2018 | B198: Miscellaneous | O198: =5%*(O199+O206) -> 2855.761865
A199: 2018 | B199: Total Variable Cost | C199: =SUM(C190:C198) -> 4334.185342 | D199: 4334.185342 | E199: 4334.185342 | F199: 4334.185342 | G199: 4334.185342 | H199: 4334.185342 | I199: 4334.185342 | J199: 4334.185342 | K199: 4334.185342 | L199: 4334.185342 | M199: 4334.185342 | N199: 4334.185342 | O199: =SUM(O190:O197) -> 52010.2241
A200: 2018
A201: 2018 | B201: Overhead Costs
A202: 2018 | B202: Repair & maintenance | C202: ='Enter Operation Parameters Here'!$D$68/12 -> 208.7085 | D202: ='Enter Operation Parameters Here'!$D$68/12 -> 208.7085 | E202: ='Enter Operation Parameters Here'!$D$68/12 -> 208.7085 | F202: ='Enter Operation Parameters Here'!$D$68/12 -> 208.7085 | G202: ='Enter Operation Parameters Here'!$D$68/12 -> 208.7085 | H202: ='Enter Operation Parameters Here'!$D$68/12 -> 208.7085 | I202: ='Enter Operation Parameters Here'!$D$68/12 -> 208.7085 | J202: ='Enter Operation Parameters Here'!$D$68/12 -> 208.7085 | K202: ='Enter Operation Parameters Here'!$D$68/12 -> 208.7085 | L202: ='Enter Operation Parameters Here'!$D$68/12 -> 208.7085 | M202: ='Enter Operation Parameters Here'!$D$68/12 -> 208.7085 | N202: ='Enter Operation Parameters Here'!$D$68/12 -> 208.7085 | O202: =SUM(C202:N202) -> 2504.502
A203: 2018 | B203: Insurance | C203: ='Enter Operation Parameters Here'!$G$69/12 -> 0 | D203: ='Enter Operation Parameters Here'!$G$69/12 -> 0 | E203: ='Enter Operation Parameters Here'!$G$69/12 -> 0 | F203: ='Enter Operation Parameters Here'!$G$69/12 -> 0 | G203: ='Enter Operation Parameters Here'!$G$69/12 -> 0 | H203: ='Enter Operation Parameters Here'!$G$69/12 -> 0 | I203: ='Enter Operation Parameters Here'!$G$69/12 -> 0 | J203: ='Enter Operation Parameters Here'!$G$69/12 -> 0 | K203: ='Enter Operation Parameters Here'!$G$69/12 -> 0 | L203: ='Enter Operation Parameters Here'!$G$69/12 -> 0 | M203: ='Enter Operation Parameters Here'!$G$69/12 -> 0 | N203: ='Enter Operation Parameters Here'!$G$69/12 -> 0 | O203: =SUM(C203:N203) -> 0
A204: 2018 | B204: Adminstration/Management - legal fees, professional services, etc. | C204: ='Operating-Overhead Cost'!$H$15/12 -> 216.7092671 | D204: ='Operating-Overhead Cost'!$H$15/12 -> 216.7092671 | E204: ='Operating-Overhead Cost'!$H$15/12 -> 216.7092671 | F204: ='Operating-Overhead Cost'!$H$15/12 -> 216.7092671 | G204: ='Operating-Overhead Cost'!$H$15/12 -> 216.7092671 | H204: ='Operating-Overhead Cost'!$H$15/12 -> 216.7092671 | I204: ='Operating-Overhead Cost'!$H$15/12 -> 216.7092671 | J204: ='Operating-Overhead Cost'!$H$15/12 -> 216.7092671 | K204: ='Operating-Overhead Cost'!$H$15/12 -> 216.7092671 | L204: ='Operating-Overhead Cost'!$H$15/12 -> 216.7092671 | M204: ='Operating-Overhead Cost'!$H$15/12 -> 216.7092671 | N204: ='Operating-Overhead Cost'!$H$15/12 -> 216.7092671 | O204: =SUM(C204:N204) -> 2600.511205
A205: 2018 | B205: Other | C205: ='Enter Operation Parameters Here'!$G$71/12 -> 0 | D205: ='Enter Operation Parameters Here'!$G$71/12 -> 0 | E205: ='Enter Operation Parameters Here'!$G$71/12 -> 0 | F205: ='Enter Operation Parameters Here'!$G$71/12 -> 0 | G205: ='Enter Operation Parameters Here'!$G$71/12 -> 0 | H205: ='Enter Operation Parameters Here'!$G$71/12 -> 0 | I205: ='Enter Operation Parameters Here'!$G$71/12 -> 0 | J205: ='Enter Operation Parameters Here'!$G$71/12 -> 0 | K205: ='Enter Operation Parameters Here'!$G$71/12 -> 0 | L205: ='Enter Operation Parameters Here'!$G$71/12 -> 0 | M205: ='Enter Operation Parameters Here'!$G$71/12 -> 0 | N205: ='Enter Operation Parameters Here'!$G$71/12 -> 0 | O205: =SUM(C205:N205) -> 0
... 92 more rows

Sheet Operating-Overhead Cost
B1: ='Cash Flow'!W4 -> 2012 | C1: ='Cash Flow'!W7 -> 2013 | D1: ='Cash Flow'!W10 -> 2014 | E1: ='Cash Flow'!W13 -> 2015 | F1: ='Cash Flow'!W16 -> 2016 | G1: ='Cash Flow'!W19 -> 2017 | H1: ='Cash Flow'!W22 -> 2018 | I1: ='Cash Flow'!W25 -> 2019 | J1: ='Cash Flow'!W28 -> 2020 | K1: ='Cash Flow'!W31 -> 2021
A3: Fingerlings | B3: ='Enter Operation Parameters Here'!F54*'Cash Flow'!$AJ$16 -> 16654.57946 | C3: ='Enter Operation Parameters Here'!F54*'Cash Flow'!$AJ$19 -> 16654.57946 | D3: ='Enter Operation Parameters Here'!F54*'Cash Flow'!$AJ$10 -> 16654.57946 | E3: ='Enter Operation Parameters Here'!F54*'Cash Flow'!$AJ$13 -> 16654.57946 | F3: ='Enter Operation Parameters Here'!F54*'Cash Flow'!$AJ$16 -> 16654.57946 | G3: ='Enter Operation Parameters Here'!F54*'Cash Flow'!$AJ$19 -> 16654.57946 | H3: ='Enter Operation Parameters Here'!F54*'Cash Flow'!$AJ$22 -> 16654.57946 | I3: ='Enter Operation Parameters Here'!F54*'Cash Flow'!$AJ$25 -> 16654.57946 | J3: ='Enter Operation Parameters Here'!F54*'Cash Flow'!$AJ$28 -> 16654.57946 | K3: ='Enter Operation Parameters Here'!F54*'Cash Flow'!$AJ$31 -> 16654.57946
A4: Feed (wt avg) | B4: ='Enter Operation Parameters Here'!$D$46*'Enter Operation Parameters Here'!$D$39*'Cash Flow'!AJ4+'Enter Operation Parameters Here'!$E$46*'Enter Operation Parameters Here'!$E$39*'Cash Flow'!AJ5+'Enter Operation Parameters Here'!$F$46*'Enter Operation Parameters Here'!$F$39*'Cash Flow'!AJ5 -> 6766.534615 | C4: ='Enter Operation Parameters Here'!$D$46*'Enter Operation Parameters Here'!$D$39*'Cash Flow'!AJ7+'Enter Operation Parameters Here'!$E$46*'Enter Operation Parameters Here'!$E$39*'Cash Flow'!AJ8+'Enter Operation Parameters Here'!$F$46*'Enter Operation Parameters Here'!$F$39*'Cash Flow'!AJ9 -> 6766.534615 | D4: ='Enter Operation Parameters Here'!$D$46*'Enter Operation Parameters Here'!$D$39*'Cash Flow'!AJ10+'Enter Operation Parameters Here'!$E$46*'Enter Operation Parameters Here'!$E$39*'Cash Flow'!AJ11+'Enter Operation Parameters Here'!$F$46*'Enter Operation Parameters Here'!$F$39*'Cash Flow'!AJ12 -> 6766.534615 | E4: ='Enter Operation Parameters Here'!$D$46*'Enter Operation Parameters Here'!$D$39*'Cash Flow'!AJ13+'Enter Operation Parameters Here'!$E$46*'Enter Operation Parameters Here'!$E$39*'Cash Flow'!AJ14+'Enter Operation Parameters Here'!$F$46*'Enter Operation Parameters Here'!$F$39*'Cash Flow'!AJ15 -> 6766.534615 | F4: ='Enter Operation Parameters Here'!$D$46*'Enter Operation Parameters Here'!$D$39*'Cash Flow'!AJ16+'Enter Operation Parameters Here'!$E$46*'Enter Operation Parameters Here'!$E$39*'Cash Flow'!AJ17+'Enter Operation Parameters Here'!$F$46*'Enter Operation Parameters Here'!$F$39*'Cash Flow'!AJ18 -> 6766.534615 | G4: ='Enter Operation Parameters Here'!$D$46*'Enter Operation Parameters Here'!$D$39*'Cash Flow'!AJ19+'Enter Operation Parameters Here'!$E$46*'Enter Operation Parameters Here'!$E$39*'Cash Flow'!AJ20+'Enter Operation Parameters Here'!$F$46*'Enter Operation Parameters Here'!$F$39*'Cash Flow'!AJ21 -> 6766.534615 | H4: ='Enter Operation Parameters Here'!$D$46*'Enter Operation Parameters Here'!$D$39*'Cash Flow'!AJ22+'Enter Operation Parameters Here'!$E$46*'Enter Operation Parameters Here'!$E$39*'Cash Flow'!AJ23+'Enter Operation Parameters Here'!$F$46*'Enter Operation Parameters Here'!$F$39*'Cash Flow'!AJ24 -> 6766.534615 | I4: ='Enter Operation Parameters Here'!$D$46*'Enter Operation Parameters Here'!$D$39*'Cash Flow'!AJ25+'Enter Operation Parameters Here'!$E$46*'Enter Operation Parameters Here'!$E$39*'Cash Flow'!AJ26+'Enter Operation Parameters Here'!$F$46*'Enter Operation Parameters Here'!$F$39*'Cash Flow'!AJ27 -> 6766.534615 | J4: ='Enter Operation Parameters Here'!$D$46*'Enter Operation Parameters Here'!$D$39*'Cash Flow'!AJ28+'Enter Operation Parameters Here'!$E$46*'Enter Operation Parameters Here'!$E$39*'Cash Flow'!AJ29+'Enter Operation Parameters Here'!$F$46*'Enter Operation Parameters Here'!$F$39*'Cash Flow'!AJ30 -> 6766.534615 | K4: ='Enter Operation Parameters Here'!$D$46*'Enter Operation Parameters Here'!$D$39*'Cash Flow'!AJ31+'Enter Operation Parameters Here'!$E$46*'Enter Operation Parameters Here'!$E$39*'Cash Flow'!AJ32+'Enter Operation Parameters Here'!$F$46*'Enter Operation Parameters Here'!$F$39*'Cash Flow'!AJ33 -> 6766.534615
A5: Electricity | B5: ='Enter Operation Parameters Here'!$F$56*'Enter Systems Parameters Here'!N39 -> 1133.259717 | C5: ='Enter Operation Parameters Here'!$F$56*'Enter Systems Parameters Here'!N42 -> 1699.889575 | D5: ='Enter Operation Parameters Here'!$F$56*'Enter Systems Parameters Here'!N45 -> 1699.889575 | E5: ='Enter Operation Parameters Here'!$F$56*'Enter Systems Parameters Here'!N48 -> 1699.889575 | F5: ='Enter Operation Parameters Here'!$F$56*'Enter Systems Parameters Here'!N51 -> 1699.889575 | G5: ='Enter Operation Parameters Here'!$F$56*'Enter Systems Parameters Here'!N54 -> 1699.889575 | H5: ='Enter Operation Parameters Here'!$F$56*'Enter Systems Parameters Here'!N57 -> 1699.889575 | I5: ='Enter Operation Parameters Here'!$F$56*'Enter Systems Parameters Here'!N60 -> 1699.889575 | J5: ='Enter Operation Parameters Here'!$F$56*'Enter Systems Parameters Here'!N63 -> 1699.889575 | K5: ='Enter Operation Parameters Here'!$F$56*'Enter Systems Parameters Here'!N66 -> 1699.889575
A6: Oxygen | B6: ='Enter Operation Parameters Here'!$F$57*'Enter Systems Parameters Here'!N39 -> 326.1469684 | C6: ='Enter Operation Parameters Here'!$F$57*'Enter Systems Parameters Here'!N42 -> 489.2204527 | D6: ='Enter Operation Parameters Here'!$F$57*'Enter Systems Parameters Here'!$N45 -> 489.2204527 | E6: ='Enter Operation Parameters Here'!$F$57*'Enter Systems Parameters Here'!$N48 -> 489.2204527 | F6: ='Enter Operation Parameters Here'!$F$57*'Enter Systems Parameters Here'!$N51 -> 489.2204527 | G6: ='Enter Operation Parameters Here'!$F$57*'Enter Systems Parameters Here'!$N54 -> 489.2204527 | H6: ='Enter Operation Parameters Here'!$F$57*'Enter Systems Parameters Here'!$N57 -> 489.2204527 | I6: ='Enter Operation Parameters Here'!$F$57*'Enter Systems Parameters Here'!$N60 -> 489.2204527 | J6: ='Enter Operation Parameters Here'!$F$57*'Enter Systems Parameters Here'!$N63 -> 489.2204527 | K6: ='Enter Operation Parameters Here'!$F$57*'Enter Systems Parameters Here'!$N66 -> 489.2204527
A7: Hired labor | B7: ='Enter Operation Parameters Here'!$F$58*'Enter Systems Parameters Here'!$N39 -> 16000 | C7: ='Enter Operation Parameters Here'!$F$58*'Enter Systems Parameters Here'!$N42 -> 24000 | D7: ='Enter Operation Parameters Here'!$F$58*'Enter Systems Parameters Here'!$N45 -> 24000 | E7: ='Enter Operation Parameters Here'!$F$58*'Enter Systems Parameters Here'!$N48 -> 24000 | F7: ='Enter Operation Parameters Here'!$F$58*'Enter Systems Parameters Here'!$N51 -> 24000 | G7: ='Enter Operation Parameters Here'!$F$58*'Enter Systems Parameters Here'!$N54 -> 24000 | H7: ='Enter Operation Parameters Here'!$F$58*'Enter Systems Parameters Here'!$N57 -> 24000 | I7: ='Enter Operation Parameters Here'!$F$58*'Enter Systems Parameters Here'!$N60 -> 24000 | J7: ='Enter Operation Parameters Here'!$F$58*'Enter Systems Parameters Here'!$N63 -> 24000 | K7: ='Enter Operation Parameters Here'!$F$58*'Enter Systems Parameters Here'!$N66 -> 24000
A8: Tansportation cost of fingerlings | B8: ='Enter Operation Parameters Here'!F59*'Cash Flow'!$AJ$16 -> 0 | C8: ='Enter Operation Parameters Here'!F59*'Cash Flow'!$AJ$19 -> 0 | D8: ='Enter Operation Parameters Here'!F59*'Cash Flow'!$AJ$10 -> 0 | E8: ='Enter Operation Parameters Here'!F59*'Cash Flow'!$AJ$13 -> 0 | F8: ='Enter Operation Parameters Here'!F59*'Cash Flow'!$AJ$16 -> 0 | G8: ='Enter Operation Parameters Here'!F59*'Cash Flow'!$AJ$19 -> 0 | H8: ='Enter Operation Parameters Here'!F59*'Cash Flow'!$AJ$22 -> 0 | I8: ='Enter Operation Parameters Here'!F59*'Cash Flow'!$AJ$25 -> 0 | J8: ='Enter Operation Parameters Here'!F59*'Cash Flow'!$AJ$28 -> 0 | K8: ='Enter Operation Parameters Here'!F59*'Cash Flow'!$AJ$31 -> 0
A9: Tansportation cost to Market | B9: ='Enter Operation Parameters Here'!F60*'Enter Systems Parameters Here'!N39 -> 0 | C9: ='Enter Operation Parameters Here'!F60*'Enter Systems Parameters Here'!N42 -> 0 | D9: ='Enter Operation Parameters Here'!F60*'Enter Systems Parameters Here'!N45 -> 0 | E9: ='Enter Operation Parameters Here'!F60*'Enter Systems Parameters Here'!N48 -> 0 | F9: ='Enter Operation Parameters Here'!F60*'Enter Systems Parameters Here'!N51 -> 0 | G9: ='Enter Operation Parameters Here'!F60*'Enter Systems Parameters Here'!N54 -> 0 | H9: ='Enter Operation Parameters Here'!F60*'Enter Systems Parameters Here'!N57 -> 0 | I9: ='Enter Operation Parameters Here'!F60*'Enter Systems Parameters Here'!N60 -> 0 | J9: ='Enter Operation Parameters Here'!F60*'Enter Systems Parameters Here'!N63 -> 0 | K9: ='Enter Operation Parameters Here'!F60*'Enter Systems Parameters Here'!N66 -> 0
A10: Chemicals | B10: ='Enter Operation Parameters Here'!$F$61*'Enter Systems Parameters Here'!$N39 -> 1600 | C10: ='Enter Operation Parameters Here'!$F$61*'Enter Systems Parameters Here'!$N42 -> 2400 | D10: ='Enter Operation Parameters Here'!$F$61*'Enter Systems Parameters Here'!$N45 -> 2400 | E10: ='Enter Operation Parameters Here'!$F$61*'Enter Systems Parameters Here'!$N48 -> 2400 | F10: ='Enter Operation Parameters Here'!$F$61*'Enter Systems Parameters Here'!$N51 -> 2400 | G10: ='Enter Operation Parameters Here'!$F$61*'Enter Systems Parameters Here'!$N54 -> 2400 | H10: ='Enter Operation Parameters Here'!$F$61*'Enter Systems Parameters Here'!$N57 -> 2400 | I10: ='Enter Operation Parameters Here'!$F$61*'Enter Systems Parameters Here'!$N60 -> 2400 | J10: ='Enter Operation Parameters Here'!$F$61*'Enter Systems Parameters Here'!$N63 -> 2400 | K10: ='Enter Operation Parameters Here'!$F$61*'Enter Systems Parameters Here'!$N66 -> 2400
A11: Total Operating Cost | B11: =SUM(B3:B10) -> 42480.52076 | C11: =SUM(C3:C10) -> 52010.2241 | D11: 52010.2241 | E11: 52010.2241 | F11: 52010.2241 | G11: 52010.2241 | H11: 52010.2241 | I11: 52010.2241 | J11: 52010.2241 | K11: 52010.2241
A13: Overhead Cost
A14: Insurance | B14: ='Enter Operation Parameters Here'!$G$69 -> 0 | C14: ='Enter Operation Parameters Here'!$G$69 -> 0 | D14: ='Enter Operation Parameters Here'!$G$69 -> 0 | E14: ='Enter Operation Parameters Here'!$G$69 -> 0 | F14: ='Enter Operation Parameters Here'!$G$69 -> 0 | G14: ='Enter Operation Parameters Here'!$G$69 -> 0 | H14: ='Enter Operation Parameters Here'!$G$69 -> 0 | I14: ='Enter Operation Parameters Here'!$G$69 -> 0 | J14: ='Enter Operation Parameters Here'!$G$69 -> 0 | K14: ='Enter Operation Parameters Here'!$G$69 -> 0
A15: Adminstration/Management - legal fees, professional services, etc. | B15: ='Enter Operation Parameters Here'!$D$70*'Operating-Overhead Cost'!B$11 -> 2124.026038 | C15: ='Enter Operation Parameters Here'!$D$70*'Operating-Overhead Cost'!C$11 -> 2600.511205 | D15: ='Enter Operation Parameters Here'!$D$70*'Operating-Overhead Cost'!D$11 -> 2600.511205 | E15: ='Enter Operation Parameters Here'!$D$70*'Operating-Overhead Cost'!E$11 -> 2600.511205 | F15: ='Enter Operation Parameters Here'!$D$70*'Operating-Overhead Cost'!F$11 -> 2600.511205 | G15: ='Enter Operation Parameters Here'!$D$70*'Operating-Overhead Cost'!G$11 -> 2600.511205 | H15: ='Enter Operation Parameters Here'!$D$70*'Operating-Overhead Cost'!H$11 -> 2600.511205 | I15: ='Enter Operation Parameters Here'!$D$70*'Operating-Overhead Cost'!I$11 -> 2600.511205 | J15: ='Enter Operation Parameters Here'!$D$70*'Operating-Overhead Cost'!J$11 -> 2600.511205 | K15: ='Enter Operation Parameters Here'!$D$70*'Operating-Overhead Cost'!K$11 -> 2600.511205
A16: Oxygen tank rental | B16: ='Enter Operation Parameters Here'!$F$66 -> 9000 | C16: ='Enter Operation Parameters Here'!$F$66 -> 9000 | D16: ='Enter Operation Parameters Here'!$F$66 -> 9000 | E16: ='Enter Operation Parameters Here'!$F$66 -> 9000 | F16: ='Enter Operation Parameters Here'!$F$66 -> 9000 | G16: ='Enter Operation Parameters Here'!$F$66 -> 9000 | H16: ='Enter Operation Parameters Here'!$F$66 -> 9000 | I16: ='Enter Operation Parameters Here'!$F$66 -> 9000 | J16: ='Enter Operation Parameters Here'!$F$66 -> 9000 | K16: ='Enter Operation Parameters Here'!$F$66 -> 9000
A17: Electrical demand charge | B17: ='Enter Operation Parameters Here'!$F$67 -> 1200 | C17: ='Enter Operation Parameters Here'!$F$67 -> 1200 | D17: ='Enter Operation Parameters Here'!$F$67 -> 1200 | E17: ='Enter Operation Parameters Here'!$F$67 -> 1200 | F17: ='Enter Operation Parameters Here'!$F$67 -> 1200 | G17: ='Enter Operation Parameters Here'!$F$67 -> 1200 | H17: ='Enter Operation Parameters Here'!$F$67 -> 1200 | I17: ='Enter Operation Parameters Here'!$F$67 -> 1200 | J17: ='Enter Operation Parameters Here'!$F$67 -> 1200 | K17: ='Enter Operation Parameters Here'!$F$67 -> 1200
A18: Maintenance (3% of cap inv) | B18: ='Enter Operation Parameters Here'!$F$68 -> 2504.502 | C18: ='Enter Operation Parameters Here'!$F$68 -> 2504.502 | D18: ='Enter Operation Parameters Here'!$F$68 -> 2504.502 | E18: ='Enter Operation Parameters Here'!$F$68 -> 2504.502 | F18: ='Enter Operation Parameters Here'!$F$68 -> 2504.502 | G18: ='Enter Operation Parameters Here'!$F$68 -> 2504.502 | H18: ='Enter Operation Parameters Here'!$F$68 -> 2504.502 | I18: ='Enter Operation Parameters Here'!$F$68 -> 2504.502 | J18: ='Enter Operation Parameters Here'!$F$68 -> 2504.502 | K18: ='Enter Operation Parameters Here'!$F$68 -> 2504.502
A19: Total Overhead Cost | B19: =SUM(B14:B18) -> 14828.52804 | C19: =SUM(C14:C18) -> 15305.01321 | D19: 15305.01321 | E19: 15305.01321 | F19: 15305.01321 | G19: 15305.01321 | H19: 15305.01321 | I19: 15305.01321 | J19: 15305.01321 | K19: 15305.01321

Sheet Income Statement
A1: INCOME STATEMENT
D3: ='Enter Systems Parameters Here'!A38 -> 2012 | E3: ='Enter Systems Parameters Here'!A41 -> 2013 | F3: ='Enter Systems Parameters Here'!A44 -> 2014 | G3: ='Enter Systems Parameters Here'!A47 -> 2015 | H3: ='Enter Systems Parameters Here'!A50 -> 2016 | I3: ='Enter Systems Parameters Here'!A53 -> 2017 | J3: ='Enter Systems Parameters Here'!A56 -> 2018 | K3: ='Enter Systems Parameters Here'!A59 -> 2019 | L3: ='Enter Systems Parameters Here'!A62 -> 2020 | M3: ='Enter Systems Parameters Here'!A65 -> 2021
B4: REVENUE
B5: Fish Sales | D5: ='Cash Flow'!$O$5 -> 52885.45346 | E5: ='Cash Flow'!$O$35 -> 79328.18019 | F5: ='Cash Flow'!$O$65 -> 79328.18019 | G5: ='Cash Flow'!$O$95 -> 79328.18019 | H5: ='Cash Flow'!$O$125 -> 79328.18019 | I5: ='Cash Flow'!$O$155 -> 79328.18019 | J5: ='Cash Flow'!O187 -> 79328.18019 | K5: ='Cash Flow'!O217 -> 79328.18019 | L5: ='Cash Flow'!O247 -> 79328.18019 | M5: ='Cash Flow'!O277 -> 79328.18019
B6: Other Income | D6: ='Cash Flow'!$O$6 -> 0 | E6: ='Cash Flow'!$O$36 -> 0 | F6: ='Cash Flow'!$O$66 -> 0 | G6: ='Cash Flow'!$O$96 -> 0 | H6: ='Cash Flow'!$O$126 -> 0 | I6: ='Cash Flow'!$O$156 -> 0 | J6: ='Cash Flow'!$O$156 -> 0 | K6: ='Cash Flow'!$O$156 -> 0 | L6: ='Cash Flow'!$O$156 -> 0 | M6: ='Cash Flow'!$O$156 -> 0
B7: Gross Revenue | D7: =SUM(D5:D6) -> 52885.45346 | E7: 79328.18019 | F7: 79328.18019 | G7: 79328.18019 | H7: 79328.18019 | I7: 79328.18019 | J7: 79328.18019 | K7: 79328.18019 | L7: 79328.18019 | M7: 79328.18019
B9: EXPENSES
B10: Operating Expenses | D10: ='Cash Flow'!$O$19+'Cash Flow'!$O$26 -> 47109.0488 | E10: ='Cash Flow'!$O$49+'Cash Flow'!$O$56 -> 57115.23731 | F10: ='Cash Flow'!$O$79+'Cash Flow'!$O$86 -> 57115.23731 | G10: ='Cash Flow'!$O$109+'Cash Flow'!$O$116 -> 57115.23731 | H10: ='Cash Flow'!$O$139+'Cash Flow'!$O$146 -> 57115.23731 | I10: ='Cash Flow'!$O$169+'Cash Flow'!$O$176 -> 57115.23731 | J10: ='Cash Flow'!O199+'Cash Flow'!O206 -> 57115.23731 | K10: ='Cash Flow'!O229+'Cash Flow'!O236 -> 57115.23731 | L10: ='Cash Flow'!O259+'Cash Flow'!O266 -> 57115.23731 | M10: ='Cash Flow'!O289+'Cash Flow'!O296 -> 57115.23731
B11: Miscellanous Expenses | D11: ='Cash Flow'!O18 -> 2355.45244 | E11: ='Cash Flow'!O48 -> 2855.761865 | F11: ='Cash Flow'!O78 -> 2855.761865 | G11: ='Cash Flow'!O108 -> 2855.761865 | H11: ='Cash Flow'!O138 -> 2855.761865 | I11: ='Cash Flow'!O168 -> 2855.761865 | J11: ='Cash Flow'!O198 -> 2855.761865 | K11: ='Cash Flow'!O228 -> 2855.761865 | L11: ='Cash Flow'!O258 -> 2855.761865 | M11: ='Cash Flow'!O288 -> 2855.761865
B12: Depreciation | D12: ='Enter Operation Parameters Here'!$I$28 -> 6956.95 | E12: ='Enter Operation Parameters Here'!$I$28 -> 6956.95 | F12: ='Enter Operation Parameters Here'!$I$28 -> 6956.95 | G12: ='Enter Operation Parameters Here'!$I$28 -> 6956.95 | H12: ='Enter Operation Parameters Here'!$I$28 -> 6956.95 | I12: ='Enter Operation Parameters Here'!$I$28 -> 6956.95 | J12: ='Enter Operation Parameters Here'!$I$28 -> 6956.95 | K12: ='Enter Operation Parameters Here'!$I$28 -> 6956.95 | L12: ='Enter Operation Parameters Here'!$I$28 -> 6956.95 | M12: ='Enter Operation Parameters Here'!$I$28 -> 6956.95
B13: Interest | D13: ='Enter Operation Parameters Here'!M$80 -> 8235.216 | E13: ='Enter Operation Parameters Here'!N$80 -> 6859.173525 | F13: ='Enter Operation Parameters Here'!O$80 -> 5359.287227 | G13: ='Enter Operation Parameters Here'!P$80 -> 3724.411163 | H13: ='Enter Operation Parameters Here'!Q$80 -> 1942.396252 | I13: ='Enter Operation Parameters Here'!R76 -> 0 | J13: ='Enter Operation Parameters Here'!S$80 -> 0 | K13: ='Enter Operation Parameters Here'!T$80 -> 0 | L13: ='Enter Operation Parameters Here'!U$80 -> 0 | M13: ='Enter Operation Parameters Here'!V$80 -> 0
B14: Principal +interest | D14: ='Cash Flow'!$O$28+'Income Statement'!D$13 -> 21960.576 | E14: ='Cash Flow'!$O$58+'Income Statement'!E$13 -> 25159.65352 | F14: ='Cash Flow'!$O$88+'Income Statement'!F$13 -> 23659.76723 | G14: ='Cash Flow'!$O$118+'Income Statement'!G$13 -> 22024.89116 | H14: ='Cash Flow'!$O$148+'Income Statement'!H$13 -> 20242.87625 | I14: ='Cash Flow'!$O$178+'Income Statement'!I$13 -> 0 | J14: ='Cash Flow'!$O$208+'Income Statement'!J$13 -> 0 | K14: ='Cash Flow'!$O$238+'Income Statement'!K$13 -> 0 | L14: ='Cash Flow'!$O$268+'Income Statement'!L$13 -> 0 | M14: ='Cash Flow'!$O$298+'Income Statement'!M$13 -> 0
B15: Total Expenses | D15: =SUM(D10:D12) -> 56421.45124 | E15: =SUM(E10:E12) -> 66927.94917 | F15: =SUM(F10:F12) -> 66927.94917 | G15: 66927.94917 | H15: 66927.94917 | I15: 66927.94917 | J15: 66927.94917 | K15: 66927.94917 | L15: 66927.94917 | M15: 66927.94917
B16: Total Expenses with loan repayment | D16: =SUM(D10:D12)+D14 -> 78382.02724 | E16: =SUM(E10:E12)+E14 -> 92087.6027 | F16: 90587.7164 | G16: 88952.84034 | H16: 87170.82543 | I16: 66927.94917 | J16: 66927.94917 | K16: 66927.94917 | L16: 66927.94917 | M16: 66927.94917
B17: Net Farm Income from Operations | D17: =D7-D15 -> -3535.997781 | E17: 12400.23101 | F17: 12400.23101 | G17: 12400.23101 | H17: 12400.23101 | I17: 12400.23101 | J17: 12400.23101 | K17: 12400.23101 | L17: 12400.23101 | M17: 12400.23101
B18: Net Income (with loan repayment) | D18: =D7-D16 -> -25496.57378 | E18: =E7-E16 -> -12759.42251 | F18: -11259.53622 | G18: -9624.660151 | H18: -7842.64524 | I18: 12400.23101 | J18: 12400.23101 | K18: 12400.23101 | L18: 12400.23101 | M18: 12400.23101
B20: Gain/Loss on Sale of Capital Assets
B22: NET FARM INCOME | D22: =D17+D20 -> -3535.997781 | E22: 12400.23101 | F22: 12400.23101 | G22: 12400.23101 | H22: 12400.23101 | I22: 12400.23101 | J22: 12400.23101 | K22: 12400.23101 | L22: 12400.23101 | M22: 12400.23101
D25: Net Income Comparison

Sheet Module1 (hidden)

Sheet Sheet7 (hidden)

Sheet Sheet6 (hidden)

Sheet Sheet2 (hidden)

Sheet Sheet1 (hidden)

Sheet Sheet5 (hidden)

Sheet Sheet4 (hidden)

Sheet Sheet3 (hidden)

Sheet SolverTableSheet (hidden)
B1: 1
B2: $B$2
B3: 1
B4: 0.1
B5: 1
B6: 0.1
B8: $F$2
B9: 1
B10: 1
B11: 5
B12: 0.5
B14: $B$11
B15: $A$15
